Workbook

Sheet Programm
A1: Stallbilanz im schweinehaltenden Betrieb; Stand 08.09.2020 | Y1: ausblenden bis BG
A2: Eintragungen sind nur möglich in den gelb gekennzeichnete Felder und beim "pull down menü".
A4: Betriebsnr.:
A5: Name: | Q5: Jahr: | AC5: 1
A6: Straße/Nr.: | P6: LF nach DüV: | T6: ha
A7: PLZ/Ort:
A9: Berechnungsergebnis - Nährstoffe in kg
C12: Zukauf Tiere | T12: Verkauf/Abgang Tiere
C13: N | E13: P2O5 | T13: N | V13: P2O5
A14: Betrieb | C14: =+AD108 -> 0 | E14: =+AE108 -> 0 | R14: Betrieb | T14: =+AG108 -> 0 | V14: =+AH108 -> 0
A15: je ha | C15: =IF(R6="","",C14/$R$6) ->  | E15: =IF(R6="","",E14/$R$6) ->  | R15: je ha | T15: =IF(R6="","",T14/$R$6) ->  | V15: =IF(R6="","",V14/$R$6) -> 
C17: Zukauf Futter
C18: N | E18: P2O5 | R18: Nährstoffausscheidung brutto (kg)
A19: Betrieb | C19: =+AD143 -> 0 | E19: =+AE143 -> 0 | T19: tatsächlich | V19: Faustzahlen | AA19: % Nährstoffausscheidung
A20: je ha | C20: =IF(R6="","",C19/$R$6) ->  | E20: =IF(R6="","",E19/$R$6) ->  | T20: N | U20: P2O5 | V20: N | W20: P2O5 | AA20: N | AB20: P
R21: Betrieb | T21: =+C19+C14+C24-T14 -> 0 | U21: =+E19+E14+E24-V14 -> 0 | V21: =+AA108 -> 0 | W21: =+AB108 -> 0 | AA21: =+T21/V21 ->  | AB21: =+U21/W21 -> 
C22: Eigenerz. Futter | R22: je ha | T22: =IF(R6="","",T21/$R$6) ->  | U22: =IF(R6="","",U21/$R$6) ->  | V22: =IF(R6="","",V21/$R$6) ->  | W22: =IF(R6="","",W21/$R$6) -> 
C23: N | E23: P2O5
A24: Betrieb | C24: =+AD94 -> 0 | E24: =+AE94 -> 0
A25: je ha | C25: =IF(R6="","",C24/$R$6) ->  | E25: =IF(R6="","",E24/$R$6) -> 
A28: Auswertung der Eingaben: | I28: ERGEBNIS: Nährstoffausscheidung in der Schweinehaltung je mittlerer Jahresbestand
I29: Tierhaltung | Q29: N | S29: P2O5 | U29: Fütterung
Q30: kg/Tier | S30: kg/Tier | U30: stark N/P-red.
I31: =IF(AN101=0," ",IF(I101="","",AN101)) ->  | Q31: =IF($T$21=0,"",IF(I101="","",AO101*$AA$21)) ->  | S31: =IF($T$21=0,"",IF(I101="","",AP101*$AB$21)) ->  | U31: =IF(AM101=1,"",IF(I101="","",IF(BG101=30,"evt. möglich",IF(AZ101=3,"ja","nein")))) -> 
A32: Nur für Mastschweinebetriebe
A33: Futtereinsatz: | D33: =+Z94+Z143 -> 0 | F33: dt TM
A34: davon eigenerzeugt: | D34: =+Z94 -> 0 | F34: dt TM
A35: davon Zukauf: | D35: =+Z143 -> 0 | F35: dt TM
A36: Zuwachs: | D36: =+(AG108-AD108)/2.56 -> 0 | F36: dt
A37: Futteraufwand: | D37: =IF(D36=0,"",D33/D36) ->  | F37: kg/kg TM
A40: Angaben zur Flächennutzung
A41: FM = Frischmasse, TM = Trockenmasse, TS = Trockensubstanz (TM und TS ist das selbe)
H43: Fläche | J43: Ertrag | K43: Trockensub. | M43: Rohproteingehalt | P43: Nährstoffgehalt | T43: Umrechnung:
H44: gesamt | I44: davon Futter | K44: TS* | L44: TS | M44: Rohpr.* | N44: Rohpr. | O44: Rohpr. | Q44: kg/dt FM | T44: Berechnung des N-Gehalts aus dem | AA44: Summe Betrieb
A45: Hauptfrucht | E45: Eigene | J45: FM | K45: % | L45: % | M45: % TM | N45: % TM | O45: % FM | T45: angegebenen Rohprotein % TM: | Z45: Futter | AA45: Futter | AD45: kg/dt
E46: Bemerkung | K46: der | L46: der | M46: falls | P46: N | Q46: P | R46: P2O5 | T46: angegebener RP-Gehalt % in TM / 6,25 | Z46: Menge | AA46: Menge | AC46: FM | AD46: FM | AE46: FM | AO46: Rp | AP46: N | AQ46: P2O5 | AR46: TS | AS46: Rp
H47: ha | I47: ha | J47: dt/ha | K47: FM | L47: FM | M47: bekannt | T47: * angegebene TM in % / 100 | Z47: dt TM | AA47: dt FM | AB47: TS | AC47: Rp | AD47: N | AE47: P2O5 | AO47: TM | AS47: FM
L48: =IF($AM48=1," ",IF(K48>0,K48,AR48)) ->  | N48: =IF($AM48=1," ",IF(M48>0,M48,AO48)) ->  | O48: =IF($AM48=1," ",N48*L48/100) ->  | P48: =IF($AM48=1," ",(AP48/AR48*L48)/AO48*N48) ->  | Q48: =IF($AM48=1," ",R48/2.291) ->  | R48: =IF($AM48=1," ",(AQ48/AR48*L48)) ->  | T48: = Stickstoffgehalt in kg/dt FM | Z48: =+AA48*AB48/100 -> 0 | AA48: =+J48*I48 -> 0 | AB48: =IF(AA48=0,0,L48) -> 0 | AC48: =IF(AA48=0,0,O48) -> 0 | AD48: =IF(AA48=0,0,AA48*P48) -> 0 | AE48: =IF(AA48=0,0,AA48*R48) -> 0 | AM48: 1 | AN48: =INDEX(Hauptfrüchte!B$4:B$86,$AM48) -> 0 | AO48: =INDEX(Hauptfrüchte!C$4:C$86,$AM48) -> 0 | AP48: =INDEX(Hauptfrüchte!D$4:D$86,$AM48) -> 0 | AQ48: =INDEX(Hauptfrüchte!E$4:E$86,$AM48) -> 0 | AR48: =INDEX(Hauptfrüchte!F$4:F$86,$AM48) -> 0 | AS48: =INDEX(Hauptfrüchte!G$4:G$86,$AM48) -> 0
T49: Berechnung des Rohprotein % TM aus | Z49: 0 | AA49: =+J49*I49 -> 0 | AB49: =IF(AA49=0,0,L49) -> 0 | AC49: =IF(AA49=0,0,O49) -> 0 | AD49: =IF(AA49=0,0,AA49*P49) -> 0 | AE49: =IF(AA49=0,0,AA49*R49) -> 0 | AM49: 1 | AN49: =INDEX(Hauptfrüchte!B$4:B$86,$AM49) -> 0 | AO49: =INDEX(Hauptfrüchte!C$4:C$86,$AM49) -> 0 | AP49: =INDEX(Hauptfrüchte!D$4:D$86,$AM49) -> 0 | AQ49: =INDEX(Hauptfrüchte!E$4:E$86,$AM49) -> 0 | AR49: =INDEX(Hauptfrüchte!F$4:F$86,$AM49) -> 0 | AS49: =INDEX(Hauptfrüchte!G$4:G$86,$AM49) -> 0
T50: dem angegebenen Stickstoffgehalt in FM: | Z50: 0 | AA50: 0 | AB50: 0 | AC50: 0 | AD50: 0 | AE50: 0 | AM50: 1 | AN50: =INDEX(Hauptfrüchte!B$4:B$86,$AM50) -> 0 | AO50: =INDEX(Hauptfrüchte!C$4:C$86,$AM50) -> 0 | AP50: =INDEX(Hauptfrüchte!D$4:D$86,$AM50) -> 0 | AQ50: =INDEX(Hauptfrüchte!E$4:E$86,$AM50) -> 0 | AR50: =INDEX(Hauptfrüchte!F$4:F$86,$AM50) -> 0 | AS50: =INDEX(Hauptfrüchte!G$4:G$86,$AM50) -> 0
T51: Stickstoffgehalt in kg/dt FM * 6,25 | Z51: 0 | AA51: 0 | AB51: 0 | AC51: 0 | AD51: 0 | AE51: 0 | AM51: 1 | AN51: =INDEX(Hauptfrüchte!B$4:B$86,$AM51) -> 0 | AO51: =INDEX(Hauptfrüchte!C$4:C$86,$AM51) -> 0 | AP51: =INDEX(Hauptfrüchte!D$4:D$86,$AM51) -> 0 | AQ51: =INDEX(Hauptfrüchte!E$4:E$86,$AM51) -> 0 | AR51: =INDEX(Hauptfrüchte!F$4:F$86,$AM51) -> 0 | AS51: =INDEX(Hauptfrüchte!G$4:G$86,$AM51) -> 0
T52: / angegebene TM in % / 100 | Z52: 0 | AA52: 0 | AB52: 0 | AC52: 0 | AD52: 0 | AE52: 0 | AM52: 1 | AN52: =INDEX(Hauptfrüchte!B$4:B$86,$AM52) -> 0 | AO52: =INDEX(Hauptfrüchte!C$4:C$86,$AM52) -> 0 | AP52: =INDEX(Hauptfrüchte!D$4:D$86,$AM52) -> 0 | AQ52: =INDEX(Hauptfrüchte!E$4:E$86,$AM52) -> 0 | AR52: =INDEX(Hauptfrüchte!F$4:F$86,$AM52) -> 0 | AS52: =INDEX(Hauptfrüchte!G$4:G$86,$AM52) -> 0
T53: = Rohprotein % TM | Z53: 0 | AA53: 0 | AB53: 0 | AC53: 0 | AD53: 0 | AE53: 0 | AM53: 1 | AN53: =INDEX(Hauptfrüchte!B$4:B$86,$AM53) -> 0 | AO53: =INDEX(Hauptfrüchte!C$4:C$86,$AM53) -> 0 | AP53: =INDEX(Hauptfrüchte!D$4:D$86,$AM53) -> 0 | AQ53: =INDEX(Hauptfrüchte!E$4:E$86,$AM53) -> 0 | AR53: =INDEX(Hauptfrüchte!F$4:F$86,$AM53) -> 0 | AS53: =INDEX(Hauptfrüchte!G$4:G$86,$AM53) -> 0
T54: Weizen Umrechnungsfaktor 5,7 statt 6,25 | Z54: 0 | AA54: 0 | AB54: 0 | AC54: 0 | AD54: 0 | AE54: 0 | AM54: 1 | AN54: =INDEX(Hauptfrüchte!B$4:B$86,$AM54) -> 0 | AO54: =INDEX(Hauptfrüchte!C$4:C$86,$AM54) -> 0 | AP54: =INDEX(Hauptfrüchte!D$4:D$86,$AM54) -> 0 | AQ54: =INDEX(Hauptfrüchte!E$4:E$86,$AM54) -> 0 | AR54: =INDEX(Hauptfrüchte!F$4:F$86,$AM54) -> 0 | AS54: =INDEX(Hauptfrüchte!G$4:G$86,$AM54) -> 0
T55: Umrechnung P auf P2O5: | Z55: 0 | AA55: 0 | AB55: 0 | AC55: 0 | AD55: 0 | AE55: 0 | AM55: 1 | AN55: =INDEX(Hauptfrüchte!B$4:B$86,$AM55) -> 0 | AO55: =INDEX(Hauptfrüchte!C$4:C$86,$AM55) -> 0 | AP55: =INDEX(Hauptfrüchte!D$4:D$86,$AM55) -> 0 | AQ55: =INDEX(Hauptfrüchte!E$4:E$86,$AM55) -> 0 | AR55: =INDEX(Hauptfrüchte!F$4:F$86,$AM55) -> 0 | AS55: =INDEX(Hauptfrüchte!G$4:G$86,$AM55) -> 0
T56: P-Gehalt * 2,291 = P2O5-Gehalt | Z56: 0 | AA56: 0 | AB56: 0 | AC56: 0 | AD56: 0 | AE56: 0 | AM56: 1 | AN56: =INDEX(Hauptfrüchte!B$4:B$86,$AM56) -> 0 | AO56: =INDEX(Hauptfrüchte!C$4:C$86,$AM56) -> 0 | AP56: =INDEX(Hauptfrüchte!D$4:D$86,$AM56) -> 0 | AQ56: =INDEX(Hauptfrüchte!E$4:E$86,$AM56) -> 0 | AR56: =INDEX(Hauptfrüchte!F$4:F$86,$AM56) -> 0 | AS56: =INDEX(Hauptfrüchte!G$4:G$86,$AM56) -> 0
Z57: 0 | AA57: 0 | AB57: 0 | AC57: 0 | AD57: 0 | AE57: 0 | AM57: 1 | AN57: =INDEX(Hauptfrüchte!B$4:B$86,$AM57) -> 0 | AO57: =INDEX(Hauptfrüchte!C$4:C$86,$AM57) -> 0 | AP57: =INDEX(Hauptfrüchte!D$4:D$86,$AM57) -> 0 | AQ57: =INDEX(Hauptfrüchte!E$4:E$86,$AM57) -> 0 | AR57: =INDEX(Hauptfrüchte!F$4:F$86,$AM57) -> 0 | AS57: =INDEX(Hauptfrüchte!G$4:G$86,$AM57) -> 0
Z58: 0 | AA58: 0 | AB58: 0 | AC58: 0 | AD58: 0 | AE58: 0 | AM58: 1 | AN58: =INDEX(Hauptfrüchte!B$4:B$86,$AM58) -> 0 | AO58: =INDEX(Hauptfrüchte!C$4:C$86,$AM58) -> 0 | AP58: =INDEX(Hauptfrüchte!D$4:D$86,$AM58) -> 0 | AQ58: =INDEX(Hauptfrüchte!E$4:E$86,$AM58) -> 0 | AR58: =INDEX(Hauptfrüchte!F$4:F$86,$AM58) -> 0 | AS58: =INDEX(Hauptfrüchte!G$4:G$86,$AM58) -> 0
R59: =IF(Q59="","",Q59*2.291) ->  | T59: P2O5 Nährstoffgehalt muss mit Angaben in der Nährstoffbilanz übereinstimmen | Z59: 0 | AA59: 0 | AB59: 0 | AC59: 0 | AD59: 0 | AE59: 0 | AM59: 1 | AN59: =INDEX(Hauptfrüchte!B$4:B$86,$AM59) -> 0 | AO59: =INDEX(Hauptfrüchte!C$4:C$86,$AM59) -> 0 | AP59: =INDEX(Hauptfrüchte!D$4:D$86,$AM59) -> 0 | AQ59: =INDEX(Hauptfrüchte!E$4:E$86,$AM59) -> 0 | AR59: =INDEX(Hauptfrüchte!F$4:F$86,$AM59) -> 0 | AS59: =INDEX(Hauptfrüchte!G$4:G$86,$AM59) -> 0
N60: =IF($AM60=1," ",IF(M60>0,M60,AO60)) ->  | O60: =IF($AM60=1," ",N60*L60/100) ->  | P60: =IF($AM60=1," ",(AP60/AR60*L60)/AO60*N60) ->  | R60: =IF(Q60="","",Q60*2.291) ->  | Z60: 0 | AA60: =+J60*I60 -> 0 | AB60: =IF(AA60=0,0,L60) -> 0 | AC60: =IF(AA60=0,0,O60) -> 0 | AD60: =IF(AA60=0,0,AA60*P60) -> 0 | AE60: =IF(AA60=0,0,AA60*R60) -> 0 | AM60: 1 | AN60: =INDEX(Hauptfrüchte!B$4:B$86,$AM60) -> 0 | AO60: =INDEX(Hauptfrüchte!C$4:C$86,$AM60) -> 0 | AP60: =INDEX(Hauptfrüchte!D$4:D$86,$AM60) -> 0 | AQ60: =INDEX(Hauptfrüchte!E$4:E$86,$AM60) -> 0 | AR60: =INDEX(Hauptfrüchte!F$4:F$86,$AM60) -> 0 | AS60: =INDEX(Hauptfrüchte!G$4:G$86,$AM60) -> 0
R61: =IF(Q61="","",Q61*2.291) ->  | Z61: 0 | AA61: 0 | AB61: 0 | AC61: 0 | AD61: 0 | AE61: 0 | AM61: 1 | AN61: =INDEX(Hauptfrüchte!B$4:B$86,$AM61) -> 0 | AO61: =INDEX(Hauptfrüchte!C$4:C$86,$AM61) -> 0 | AP61: =INDEX(Hauptfrüchte!D$4:D$86,$AM61) -> 0 | AQ61: =INDEX(Hauptfrüchte!E$4:E$86,$AM61) -> 0 | AR61: =INDEX(Hauptfrüchte!F$4:F$86,$AM61) -> 0 | AS61: =INDEX(Hauptfrüchte!G$4:G$86,$AM61) -> 0
R62: =IF(Q62="","",Q62*2.291) ->  | Z62: 0 | AA62: 0 | AB62: 0 | AC62: 0 | AD62: 0 | AE62: 0 | AM62: 1 | AN62: =INDEX(Hauptfrüchte!B$4:B$86,$AM62) -> 0 | AO62: =INDEX(Hauptfrüchte!C$4:C$86,$AM62) -> 0 | AP62: =INDEX(Hauptfrüchte!D$4:D$86,$AM62) -> 0 | AQ62: =INDEX(Hauptfrüchte!E$4:E$86,$AM62) -> 0 | AR62: =INDEX(Hauptfrüchte!F$4:F$86,$AM62) -> 0 | AS62: =INDEX(Hauptfrüchte!G$4:G$86,$AM62) -> 0
R63: =IF(Q63="","",Q63*2.291) ->  | Z63: =+AA63*AB63/100 -> 0 | AA63: 0 | AB63: 0 | AC63: 0 | AD63: =IF(AA63=0,0,AA63*P63) -> 0 | AE63: 0 | AM63: 1 | AN63: =INDEX(Hauptfrüchte!B$4:B$86,$AM63) -> 0 | AO63: =INDEX(Hauptfrüchte!C$4:C$86,$AM63) -> 0 | AP63: =INDEX(Hauptfrüchte!D$4:D$86,$AM63) -> 0 | AQ63: =INDEX(Hauptfrüchte!E$4:E$86,$AM63) -> 0 | AR63: =INDEX(Hauptfrüchte!F$4:F$86,$AM63) -> 0 | AS63: =INDEX(Hauptfrüchte!G$4:G$86,$AM63) -> 0
A64: Anrechenbare N-Menge bei der Düngebedarfsermittlung (fachlich) in kg N/ha (= N-Wirkung Pflanzen im Anwendungsjahr)
I66: Fläche | M66: N-Wirkung (zur Hauptfrucht) in kg/ha | Y66: Summe
I67: gesamt | J67: davon Futter | K67: Ertrag | L67: Roh- | Y67: Betrieb
A68: Zwischen- | D68: Haupt- | F68: Eigene | L68: protein | M68: Jul | N68: Aug | O68: Sep | P68: Okt | Q68: Nov | R68: Dez | S68: Jan | T68: Feb | U68: Mrz | V68: Apr | W68: Mai | X68: Jun | Y68: N (kg)
A69: fruchtgruppe | D69: frucht | F69: Bemerkung
I70: ha | J70: ha | K70: dt/ha | L70: %
A71: =+#REF! ->  | C71: =+AN48 -> 0 | F71: =+IF(E48="","",E48) ->  | I71: =+H48 -> 0 | J71: 0 | K71: 0 | L71: =+IF(N48="","",N48) ->  | M71: =IF(P48>1,P48*#REF!/100*#REF!,"") ->  | N71: =IF(Q48>1,Q48*#REF!/100*#REF!,"") ->  | O71: =IF(R48>1,R48*#REF!/100*#REF!,"") ->  | P71: =IF(W44>1,W44*#REF!/100*#REF!,"") ->  | Q71: =IF(X48>1,X48*#REF!/100*#REF!,"") ->  | R71: =IF(#REF!>1,#REF!*#REF!/100*#REF!,"") ->  | S71: =IF(Z48>1,Z48*#REF!/100*#REF!,"") ->  | T71: =IF(#REF!>1,#REF!*#REF!/100*#REF!,"") ->  | U71: =IF(#REF!>1,#REF!*#REF!/100*#REF!,"") ->  | V71: =IF(#REF!>1,#REF!*#REF!/100*#REF!,"") ->  | W71: =IF(#REF!>1,#REF!*#REF!/100*#REF!,"") ->  | X71: =IF(#REF!>1,#REF!*#REF!/100*#REF!,"") ->  | Y71: =SUM(M71:X71)*I71 -> 
A72: =+#REF! ->  | C72: =+AN49 -> 0 | F72: =+IF(E49="","",E49) ->  | I72: 0 | J72: 0 | K72: 0 | L72: =+IF(N49="","",N49) ->  | M72: =IF(P49>1,P49*#REF!/100*#REF!,"") ->  | N72: =IF(Q49>1,Q49*#REF!/100*#REF!,"") ->  | O72: =IF(R49>1,R49*#REF!/100*#REF!,"") ->  | P72: =IF(W45>1,W45*#REF!/100*#REF!,"") ->  | Q72: =IF(X49>1,X49*#REF!/100*#REF!,"") ->  | R72: =IF(#REF!>1,#REF!*#REF!/100*#REF!,"") ->  | S72: =IF(Z49>1,Z49*#REF!/100*#REF!,"") ->  | T72: =IF(#REF!>1,#REF!*#REF!/100*#REF!,"") ->  | U72: =IF(#REF!>1,#REF!*#REF!/100*#REF!,"") ->  | V72: =IF(#REF!>1,#REF!*#REF!/100*#REF!,"") ->  | W72: =IF(#REF!>1,#REF!*#REF!/100*#REF!,"") ->  | X72: =IF(#REF!>1,#REF!*#REF!/100*#REF!,"") ->  | Y72: =SUM(M72:X72)*I72 -> 
A73: =+#REF! ->  | C73: =+AN50 -> 0 | F73: =+IF(E50="","",E50) ->  | I73: 0 | J73: 0 | K73: 0 | L73: =+IF(N50="","",N50) ->  | M73: =IF(P50>1,P50*#REF!/100*#REF!,"") ->  | N73: =IF(Q50>1,Q50*#REF!/100*#REF!,"") ->  | O73: =IF(R50>1,R50*#REF!/100*#REF!,"") ->  | P73: =IF(W46>1,W46*#REF!/100*#REF!,"") ->  | Q73: =IF(X50>1,X50*#REF!/100*#REF!,"") ->  | R73: =IF(#REF!>1,#REF!*#REF!/100*#REF!,"") ->  | S73: =IF(Z50>1,Z50*#REF!/100*#REF!,"") ->  | T73: =IF(#REF!>1,#REF!*#REF!/100*#REF!,"") ->  | U73: =IF(#REF!>1,#REF!*#REF!/100*#REF!,"") ->  | V73: =IF(#REF!>1,#REF!*#REF!/100*#REF!,"") ->  | W73: =IF(#REF!>1,#REF!*#REF!/100*#REF!,"") ->  | X73: =IF(#REF!>1,#REF!*#REF!/100*#REF!,"") ->  | Y73: =SUM(M73:X73)*I73 -> 
Y74: =SUM(M74:X74)*L74 -> 0
A88: Grünland
U91: Summe Betrieb kg N | Y91: =SUM(Y71:Y90) -> 
U92: Mittel Betrieb % N-Wirkung | Y92: =+Y91/(#REF!*#REF!)*100 -> 
A94: * falls bekannt (bei keiner Angabe werden die Basisdaten verwendet) | Z94: =SUM(Z48:Z93) -> 0 | AA94: =SUM(AA48:AA93) -> 0 | AB94: =+(AA48*AB48+AA49*AB49+AA50*AB50+AA51*AB51+AA52*AB52+AA53*AB53+AA54*AB54+AA55*AB55+AA56*AB56+AA57*AB57+AA58*AB58+AA59*AB59+AA62*AB62+AA63*AB63)/AA94 ->  | AC94: =+(AA48*AC48+AA49*AC49+AA50*AC50+AA51*AC51+AA52*AC52+AA53*AC53+AA54*AC54+AA55*AC55+AA56*AC56+AA57*AC57+AA58*AC58+AA59*AC59+AA62*AC62+AA63*AC63)/AA94 ->  | AD94: =SUM(AD48:AD93) -> 0 | AE94: =SUM(AE48:AE93) -> 0 | AF94: Summe Betrieb | AO94: =SUM(AO48:AO93) -> 0 | AP94: =SUM(AP48:AP93) -> 0 | AQ94: =SUM(AQ48:AQ93) -> 0
AC95: =+AC94/AB94*88 ->  | AF95: Rp bei 88 % TS
A96: Tierhaltung
I98: Mittlerer | L98: Zukauf | P98: Verkauf/Abgang
A99: Tierhaltung | I99: Jahresbestand | L99: Anzahl | N99: kg LG | P99: Anzahl | R99: kg LG | AA99: Nährstoffauscheidung | AD99: Zukauf | AG99: Verkauf
I100: Anzahl Tiere | L100: Tiere | N100: je Tier | P100: Tiere | R100: je Tier | AA100: N | AB100: P2O5 | AC100: K2O | AD100: N | AE100: P2O5 | AF100: K2O | AG100: N | AH100: P2O5 | AI100: K2O | AX100: n | AY100: p | AZ100: summe | BG100: summe
AA101: =+$I101*AO101 -> 0 | AB101: 0 | AC101: 0 | AD101: =+$L101*$N101/100*AR101 -> 0 | AE101: 0 | AF101: 0 | AG101: =+$P101*$R101/100*AR101 -> 0 | AH101: 0 | AI101: 0 | AM101: 1 | AN101: =INDEX(Tiere!A$6:A$81,$AM101) -> 0 | AO101: =INDEX(Tiere!C$6:C$81,$AM101) -> 0 | AP101: =INDEX(Tiere!D$6:D$81,$AM101) -> 0 | AQ101: =INDEX(Tiere!E$6:E$81,$AM101) -> 0 | AR101: =INDEX(Tiere!F$6:F$81,$AM101) -> 0 | AS101: =INDEX(Tiere!G$6:G$81,$AM101) -> 0 | AT101: =INDEX(Tiere!H$6:H$81,$AM101) -> 0 | AU101: =INDEX(Tiere!I$6:I$81,$AM101) -> 0 | AV101: =INDEX(Tiere!J$6:J$81,$AM101) -> 0 | AW101: =INDEX(Tiere!K$6:K$81,$AM101) -> 0 | AX101: =IF(AU101>$AA$21,1,0) ->  | AY101: =IF(AV101>$AB$21,1,0) ->  | AZ101: =SUM(AW101:AY101) ->  | BB101: =INDEX(Tiere!L$6:L$81,$AM101) -> 0 | BC101: =INDEX(Tiere!M$6:M$81,$AM101) -> 0 | BD101: =INDEX(Tiere!N$6:N$81,$AM101) -> 0 | BE101: =IF(BB101>$AA$21,10,0) ->  | BF101: =IF(BC101>$AB$21,10,0) ->  | BG101: =+BF101+BE101+BD101 -> 
AA102: 0 | AB102: 0 | AC102: 0 | AD102: 0 | AE102: 0 | AF102: 0 | AG102: 0 | AH102: 0 | AI102: 0 | AM102: 1 | AN102: =INDEX(Tiere!A$6:A$81,$AM102) -> 0 | AO102: =INDEX(Tiere!C$6:C$81,$AM102) -> 0 | AP102: =INDEX(Tiere!D$6:D$81,$AM102) -> 0 | AQ102: =INDEX(Tiere!E$6:E$81,$AM102) -> 0 | AR102: =INDEX(Tiere!F$6:F$81,$AM102) -> 0 | AS102: =INDEX(Tiere!G$6:G$81,$AM102) -> 0 | AT102: =INDEX(Tiere!H$6:H$81,$AM102) -> 0 | AU102: =INDEX(Tiere!I$6:I$81,$AM102) -> 0 | AV102: =INDEX(Tiere!J$6:J$81,$AM102) -> 0 | AW102: =INDEX(Tiere!K$6:K$81,$AM102) -> 0 | AX102: =IF(AU102>$AA$21,1,0) ->  | AY102: =IF(AV102>$AB$21,1,0) ->  | AZ102: =SUM(AW102:AY102) ->  | BB102: =INDEX(Tiere!L$6:L$81,$AM102) -> 0 | BC102: =INDEX(Tiere!M$6:M$81,$AM102) -> 0 | BD102: =INDEX(Tiere!N$6:N$81,$AM102) -> 0 | BE102: =IF(BB102>$AA$21,10,0) ->  | BF102: =IF(BC102>$AB$21,10,0) ->  | BG102: =+BF102+BE102+BD102 -> 
AA103: 0 | AB103: 0 | AC103: 0 | AD103: 0 | AE103: 0 | AF103: 0 | AG103: 0 | AH103: 0 | AI103: 0 | AM103: 1 | AN103: =INDEX(Tiere!A$6:A$81,$AM103) -> 0 | AO103: =INDEX(Tiere!C$6:C$81,$AM103) -> 0 | AP103: =INDEX(Tiere!D$6:D$81,$AM103) -> 0 | AQ103: =INDEX(Tiere!E$6:E$81,$AM103) -> 0 | AR103: =INDEX(Tiere!F$6:F$81,$AM103) -> 0 | AS103: =INDEX(Tiere!G$6:G$81,$AM103) -> 0 | AT103: =INDEX(Tiere!H$6:H$81,$AM103) -> 0 | AU103: =INDEX(Tiere!I$6:I$81,$AM103) -> 0 | AV103: =INDEX(Tiere!J$6:J$81,$AM103) -> 0 | AW103: =INDEX(Tiere!K$6:K$81,$AM103) -> 0 | BB103: =INDEX(Tiere!L$6:L$81,$AM103) -> 0 | BC103: =INDEX(Tiere!M$6:M$81,$AM103) -> 0 | BD103: =INDEX(Tiere!N$6:N$81,$AM103) -> 0
AA104: 0 | AB104: 0 | AC104: 0 | AD104: 0 | AE104: 0 | AF104: 0 | AG104: 0 | AH104: 0 | AI104: 0 | AM104: 1 | AN104: =INDEX(Tiere!A$6:A$81,$AM104) -> 0 | AO104: =INDEX(Tiere!C$6:C$81,$AM104) -> 0 | AP104: =INDEX(Tiere!D$6:D$81,$AM104) -> 0 | AQ104: =INDEX(Tiere!E$6:E$81,$AM104) -> 0 | AR104: =INDEX(Tiere!F$6:F$81,$AM104) -> 0 | AS104: =INDEX(Tiere!G$6:G$81,$AM104) -> 0 | AT104: =INDEX(Tiere!H$6:H$81,$AM104) -> 0 | AU104: =INDEX(Tiere!I$6:I$81,$AM104) -> 0 | AV104: =INDEX(Tiere!J$6:J$81,$AM104) -> 0 | AW104: =INDEX(Tiere!K$6:K$81,$AM104) -> 0 | BB104: =INDEX(Tiere!L$6:L$81,$AM104) -> 0 | BC104: =INDEX(Tiere!M$6:M$81,$AM104) -> 0 | BD104: =INDEX(Tiere!N$6:N$81,$AM104) -> 0
AA105: 0 | AB105: 0 | AC105: 0 | AD105: 0 | AE105: 0 | AF105: 0 | AG105: 0 | AH105: 0 | AI105: 0 | AM105: 1 | AN105: =INDEX(Tiere!A$6:A$81,$AM105) -> 0 | AO105: =INDEX(Tiere!C$6:C$81,$AM105) -> 0 | AP105: =INDEX(Tiere!D$6:D$81,$AM105) -> 0 | AQ105: =INDEX(Tiere!E$6:E$81,$AM105) -> 0 | AR105: =INDEX(Tiere!F$6:F$81,$AM105) -> 0 | AS105: =INDEX(Tiere!G$6:G$81,$AM105) -> 0 | AT105: =INDEX(Tiere!H$6:H$81,$AM105) -> 0 | AU105: =INDEX(Tiere!I$6:I$81,$AM105) -> 0 | AV105: =INDEX(Tiere!J$6:J$81,$AM105) -> 0 | AW105: =INDEX(Tiere!K$6:K$81,$AM105) -> 0 | BB105: =INDEX(Tiere!L$6:L$81,$AM105) -> 0 | BC105: =INDEX(Tiere!M$6:M$81,$AM105) -> 0 | BD105: =INDEX(Tiere!N$6:N$81,$AM105) -> 0
AA106: 0 | AB106: 0 | AC106: 0 | AD106: 0 | AE106: 0 | AF106: 0 | AG106: 0 | AH106: 0 | AI106: 0 | AM106: 1 | AN106: =INDEX(Tiere!A$6:A$81,$AM106) -> 0 | AO106: =INDEX(Tiere!C$6:C$81,$AM106) -> 0 | AP106: =INDEX(Tiere!D$6:D$81,$AM106) -> 0 | AQ106: =INDEX(Tiere!E$6:E$81,$AM106) -> 0 | AR106: =INDEX(Tiere!F$6:F$81,$AM106) -> 0 | AS106: =INDEX(Tiere!G$6:G$81,$AM106) -> 0 | AT106: =INDEX(Tiere!H$6:H$81,$AM106) -> 0 | AU106: =INDEX(Tiere!I$6:I$81,$AM106) -> 0 | AV106: =INDEX(Tiere!J$6:J$81,$AM106) -> 0 | AW106: =INDEX(Tiere!K$6:K$81,$AM106) -> 0 | BB106: =INDEX(Tiere!L$6:L$81,$AM106) -> 0 | BC106: =INDEX(Tiere!M$6:M$81,$AM106) -> 0 | BD106: =INDEX(Tiere!N$6:N$81,$AM106) -> 0
AA107: 0 | AB107: 0 | AC107: 0 | AD107: 0 | AE107: 0 | AF107: 0 | AG107: 0 | AH107: 0 | AI107: 0 | AM107: 1 | AN107: =INDEX(Tiere!A$6:A$81,$AM107) -> 0 | AO107: =INDEX(Tiere!C$6:C$81,$AM107) -> 0 | AP107: =INDEX(Tiere!D$6:D$81,$AM107) -> 0 | AQ107: =INDEX(Tiere!E$6:E$81,$AM107) -> 0 | AR107: =INDEX(Tiere!F$6:F$81,$AM107) -> 0 | AS107: =INDEX(Tiere!G$6:G$81,$AM107) -> 0 | AT107: =INDEX(Tiere!H$6:H$81,$AM107) -> 0 | AU107: =INDEX(Tiere!I$6:I$81,$AM107) -> 0 | AV107: =INDEX(Tiere!J$6:J$81,$AM107) -> 0 | AW107: =INDEX(Tiere!K$6:K$81,$AM107) -> 0 | BB107: =INDEX(Tiere!L$6:L$81,$AM107) -> 0 | BC107: =INDEX(Tiere!M$6:M$81,$AM107) -> 0 | BD107: =INDEX(Tiere!N$6:N$81,$AM107) -> 0
AA108: =SUM(AA101:AA107) -> 0 | AB108: =SUM(AB101:AB107) -> 0 | AC108: 0 | AD108: 0 | AE108: 0 | AF108: 0 | AG108: 0 | AH108: 0 | AI108: 0 | AJ108: Summe Betrieb
A110: Zukauf Futtermittel
A111: Hauptfrüchte, die in der oberen Masek nicht eingegeben werden können, bitte hier eingeben. | AA111: Summe Betrieb
I112: Zukauf | K112: Trockensub. | M112: Rohprotein | P112: Nährstoffgehalt kg/dt in FM | Z112: Futter | AA112: Futter | AD112: kg/dt
A113: Zukauf Futtermittel | I113: Menge | K113: TS* | L113: TS | M113: Rohpr.* | N113: Rohpr. | O113: Rohpr. | P113: oder % in der FM | Z113: Menge | AA113: Menge | AC113: FM | AD113: FM | AE113: FM
I114: dt FM | K114: % in der FM | M114: % TM | N114: % TM | O114: % FM | P114: N | R114: P | T114: P2O5 | Z114: dt TM | AA114: dt FM | AB114: TS | AC114: Rp | AD114: N | AE114: P2O5
L115: =IF($AM115=1," ",IF(K115>0,K115,AR115)) ->  | N115: =IF($AM115=1," ",IF(M115>0,M115,AO115)) ->  | O115: =IF($AM115=1," ",N115*L115/100) ->  | P115: =IF(N115=0,0,IF($AM115=1," ",(AP115/AR115*L115)/AO115*N115)) ->  | R115: =IF($AM115=1," ",T115/2.291) ->  | T115: =IF($AM115=1," ",(AQ115/AR115*L115)) ->  | Z115: =+AA115*AB115/100 -> 0 | AA115: =+IF(I115="",0,I115) -> 0 | AB115: =IF(AA115=0,0,L115) -> 0 | AC115: =IF(AA115=0,0,O115) -> 0 | AD115: =IF(AA115=0,0,AA115*P115) -> 0 | AE115: =IF(AA115=0,0,AA115*T115) -> 0 | AM115: 1 | AN115: =INDEX(Futtermittel!A$6:A$177,$AM115) -> 0 | AO115: =INDEX(Futtermittel!B$6:B$177,$AM115) -> 0 | AP115: =INDEX(Futtermittel!C$6:C$177,$AM115) -> 0 | AQ115: =INDEX(Futtermittel!D$6:D$177,$AM115) -> 0 | AR115: =INDEX(Futtermittel!E$6:E$177,$AM115) -> 0 | AS115: =INDEX(Futtermittel!F$6:F$177,$AM115) -> 0
L116: =IF($AM116=1," ",IF(K116>0,K116,AR116)) ->  | N116: =IF($AM116=1," ",IF(M116>0,M116,AO116)) ->  | O116: =IF($AM116=1," ",N116*L116/100) ->  | Z116: 0 | AA116: =+IF(I116="",0,I116) -> 0 | AB116: =IF(AA116=0,0,L116) -> 0 | AC116: =IF(AA116=0,0,O116) -> 0 | AD116: =IF(AA116=0,0,AA116*P116) -> 0 | AE116: =IF(AA116=0,0,AA116*T116) -> 0 | AM116: 1 | AN116: =INDEX(Futtermittel!A$6:A$177,$AM116) -> 0 | AO116: =INDEX(Futtermittel!B$6:B$177,$AM116) -> 0 | AP116: =INDEX(Futtermittel!C$6:C$177,$AM116) -> 0 | AQ116: =INDEX(Futtermittel!D$6:D$177,$AM116) -> 0 | AR116: =INDEX(Futtermittel!E$6:E$177,$AM116) -> 0 | AS116: =INDEX(Futtermittel!F$6:F$177,$AM116) -> 0
Z117: 0 | AA117: 0 | AB117: 0 | AC117: 0 | AD117: 0 | AE117: 0 | AM117: 1 | AN117: =INDEX(Futtermittel!A$6:A$177,$AM117) -> 0 | AO117: =INDEX(Futtermittel!B$6:B$177,$AM117) -> 0 | AP117: =INDEX(Futtermittel!C$6:C$177,$AM117) -> 0 | AQ117: =INDEX(Futtermittel!D$6:D$177,$AM117) -> 0 | AR117: =INDEX(Futtermittel!E$6:E$177,$AM117) -> 0 | AS117: =INDEX(Futtermittel!F$6:F$177,$AM117) -> 0
Z118: 0 | AA118: 0 | AB118: 0 | AC118: 0 | AD118: 0 | AE118: 0 | AM118: 1 | AN118: =INDEX(Futtermittel!A$6:A$177,$AM118) -> 0 | AO118: =INDEX(Futtermittel!B$6:B$177,$AM118) -> 0 | AP118: =INDEX(Futtermittel!C$6:C$177,$AM118) -> 0 | AQ118: =INDEX(Futtermittel!D$6:D$177,$AM118) -> 0 | AR118: =INDEX(Futtermittel!E$6:E$177,$AM118) -> 0 | AS118: =INDEX(Futtermittel!F$6:F$177,$AM118) -> 0
Z119: 0 | AA119: 0 | AB119: 0 | AC119: 0 | AD119: 0 | AE119: 0 | AM119: 1 | AN119: =INDEX(Futtermittel!A$6:A$177,$AM119) -> 0 | AO119: =INDEX(Futtermittel!B$6:B$177,$AM119) -> 0 | AP119: =INDEX(Futtermittel!C$6:C$177,$AM119) -> 0 | AQ119: =INDEX(Futtermittel!D$6:D$177,$AM119) -> 0 | AR119: =INDEX(Futtermittel!E$6:E$177,$AM119) -> 0 | AS119: =INDEX(Futtermittel!F$6:F$177,$AM119) -> 0
Z120: 0 | AA120: 0 | AB120: 0 | AC120: 0 | AD120: 0 | AE120: 0 | AM120: 1 | AN120: =INDEX(Futtermittel!A$6:A$177,$AM120) -> 0 | AO120: =INDEX(Futtermittel!B$6:B$177,$AM120) -> 0 | AP120: =INDEX(Futtermittel!C$6:C$177,$AM120) -> 0 | AQ120: =INDEX(Futtermittel!D$6:D$177,$AM120) -> 0 | AR120: =INDEX(Futtermittel!E$6:E$177,$AM120) -> 0 | AS120: =INDEX(Futtermittel!F$6:F$177,$AM120) -> 0
Z121: 0 | AA121: 0 | AB121: 0 | AC121: 0 | AD121: 0 | AE121: 0 | AM121: 1 | AN121: =INDEX(Futtermittel!A$6:A$177,$AM121) -> 0 | AO121: =INDEX(Futtermittel!B$6:B$177,$AM121) -> 0 | AP121: =INDEX(Futtermittel!C$6:C$177,$AM121) -> 0 | AQ121: =INDEX(Futtermittel!D$6:D$177,$AM121) -> 0 | AR121: =INDEX(Futtermittel!E$6:E$177,$AM121) -> 0 | AS121: =INDEX(Futtermittel!F$6:F$177,$AM121) -> 0
Z122: 0 | AA122: 0 | AB122: 0 | AC122: 0 | AD122: 0 | AE122: 0 | AM122: 1 | AN122: =INDEX(Futtermittel!A$6:A$177,$AM122) -> 0 | AO122: =INDEX(Futtermittel!B$6:B$177,$AM122) -> 0 | AP122: =INDEX(Futtermittel!C$6:C$177,$AM122) -> 0 | AQ122: =INDEX(Futtermittel!D$6:D$177,$AM122) -> 0 | AR122: =INDEX(Futtermittel!E$6:E$177,$AM122) -> 0 | AS122: =INDEX(Futtermittel!F$6:F$177,$AM122) -> 0
Z123: 0 | AA123: 0 | AB123: 0 | AC123: 0 | AD123: 0 | AE123: 0 | AM123: 1 | AN123: =INDEX(Futtermittel!A$6:A$177,$AM123) -> 0 | AO123: =INDEX(Futtermittel!B$6:B$177,$AM123) -> 0 | AP123: =INDEX(Futtermittel!C$6:C$177,$AM123) -> 0 | AQ123: =INDEX(Futtermittel!D$6:D$177,$AM123) -> 0 | AR123: =INDEX(Futtermittel!E$6:E$177,$AM123) -> 0 | AS123: =INDEX(Futtermittel!F$6:F$177,$AM123) -> 0
N124: =IF(O124=""," ",(O124/L124)*100) ->  | T124: =IF(R124="","",R124*2.291) ->  | Z124: 0 | AA124: 0 | AB124: 0 | AC124: 0 | AD124: 0 | AE124: 0
N125: =IF(O125=""," ",(O125/L125)*100) ->  | T125: =IF(R125="","",R125*2.291) ->  | Z125: 0 | AA125: 0 | AB125: 0 | AC125: 0 | AD125: 0 | AE125: 0
N126: =IF(O126=""," ",(O126/L126)*100) ->  | Z126: 0 | AA126: 0 | AB126: 0 | AC126: 0 | AD126: 0 | AE126: 0
Z127: 0 | AA127: 0 | AB127: 0 | AC127: 0 | AD127: 0 | AE127: 0
Z128: 0 | AA128: 0 | AB128: 0 | AC128: 0 | AD128: 0 | AE128: 0
Z129: 0 | AA129: 0 | AB129: 0 | AC129: 0 | AD129: =IF(AA129=0,0,AA129*P129) -> 0 | AE129: =IF(AA129=0,0,AA129*T129) -> 0
Z130: 0 | AA130: 0 | AB130: 0 | AC130: 0 | AD130: 0 | AE130: 0
Z131: 0 | AA131: 0 | AB131: 0 | AC131: 0 | AD131: 0 | AE131: 0
Z132: 0 | AA132: 0 | AB132: 0 | AC132: 0 | AD132: 0 | AE132: 0
T133: =IF(R133="","",R133*2.291) ->  | Z133: 0 | AA133: =+IF(I133="",0,I133) -> 0 | AB133: =IF(AA133=0,0,L133) -> 0 | AC133: =IF(AA133=0,0,O133) -> 0 | AD133: =IF(AA133=0,0,AA133*P133) -> 0 | AE133: =IF(AA133=0,0,AA133*T133) -> 0
Z134: 0 | AA134: 0 | AB134: 0 | AC134: 0 | AD134: 0 | AE134: 0
Z135: 0 | AA135: 0 | AB135: 0 | AC135: 0 | AD135: 0 | AE135: 0
Z136: 0 | AA136: 0 | AB136: 0 | AC136: 0 | AD136: 0 | AE136: 0
Z137: 0 | AA137: 0 | AB137: 0 | AC137: 0 | AD137: 0 | AE137: 0
Z138: 0 | AA138: 0 | AB138: 0 | AC138: 0 | AD138: 0 | AE138: 0
Z139: 0 | AA139: 0 | AB139: 0 | AC139: 0 | AD139: 0 | AE139: 0
Z140: 0 | AA140: 0 | AB140: 0 | AC140: 0 | AD140: 0 | AE140: 0
Z141: 0 | AA141: 0 | AB141: 0 | AC141: 0 | AD141: 0 | AE141: 0
Z142: 0 | AA142: 0 | AB142: 0 | AC142: 0 | AD142: 0 | AE142: 0
A143: * falls bekannt (bei keiner Angabe werden die Basisdaten verwendet) | Z143: =SUM(Z115:Z142) -> 0 | AA143: =SUM(AA115:AA142) -> 0 | AB143: =+(AA115*AB115+AA116*AB116+AA117*AB117+AA118*AB118+AA119*AB119+AA120*AB120+AA121*AB121+AA122*AB122+AA123*AB123+AA124*AB124+AA125*AB125+AA126*AB126+AA127*AB127+AA128*AB128+AA129*AB129+AA130*AB130+AA131*AB131+AA132*AB132+AA138*AB138+AA139*AB139+AA140*AB140+AA141+AB141+AA142*AB142)/AA143 ->  | AC143: =+(AA115*AC115+AA116*AC116+AA117*AC117+AA118*AC118+AA119*AC119+AA120*AC120+AA121*AC121+AA122*AC122+AA123*AC123+AA124*AC124+AA125*AC125+AA126*AC126+AA127*AC127+AA128*AC128+AA129*AC129+AA130*AC130+AA131*AC131+AA132*AC132+AA138*AC138+AA139*AC139+AA140*AC140+AA141+AC141+AA142*AC142)/AA143 ->  | AD143: =SUM(AD115:AD142) -> 0 | AE143: 0 | AF143: Summe Betrieb
A144: © Bayerische Landesanstalt für Landwirtschaft (Of, Sp, We, Schn, Br, Ka) - Stand: 08.09.2020 | AC144: =+AC143/AB143*88 ->  | AF144: Rp bei 88 % TS
AA164: =SUM(AA115:AA163) -> 0 | AB164: =+(AA115*AB115+AA116*AB116+AA117*AB117+AA118*AB118+AA119*AB119+AA120*AB120+AA121*AB121+AA122*AB122+AA123*AB123+AA124*AB124+AA125*AB125+AA126*AB126+AA127*AB127+AA128*AB128)/AA164 ->  | AC164: =+(AA115*AC115+AA116*AC116+AA117*AC117+AA118*AC118+AA119*AC119+AA120*AC120+AA121*AC121+AA122*AC122+AA123*AC123+AA124*AC124+AA125*AC125+AA126*AC126+AA127*AC127+AA128*AC128)/AA164 ->  | AD164: =SUM(AD115:AD163) -> 0 | AE164: =SUM(AE115:AE163) -> 0 | AF164: Summe Betrieb
AQ191: 0
AQ192: 0
AQ193: 0
AQ194: 0
AQ195: 0
AQ196: 0
AQ197: 0
AQ198: 0
AQ199: 0
AQ200: 0
AP201: für Grafik
AQ230: 0

Sheet Tiere (hidden)
C1: Nährstoffauscheidung | F1: Nährstoffabfuhr je dt Lebendgewicht
C2: N | D2: P2O5 | E2: K2O | F2: N | G2: P2O5 | H2: K2O | I2: N | J2: P2O5
I3: % über stark np möglich | L3: % geringer bei stark np
A7: Zuchtsauen (ab Belegen) mit 22 Ferkel bis 8 kg, N-/P-red. | C7: 24 | D7: 11 | E7: 11.568 | F7: 2.56 | G7: 1.17 | H7: 0.24 | L7: =+C8/C7 -> 0.9583333333 | M7: =+D8/D7 -> 0.9363636364 | N7: 10
A8: Zuchtsauen (ab Belegen) mit 22 Ferkel bis 8 kg, stark N-/P-red. | C8: 23 | D8: 10.3 | E8: 11.568 | F8: 2.56 | G8: 1.17 | H8: 0.24 | I8: =+C7/C8 -> 1.043478261 | J8: =+D7/D8 -> 1.067961165 | K8: 1
A9: Zuchtsauen (ab Belegen) mit 25 Ferkel bis 8 kg, N-/P-red. | C9: 24.1 | D9: 11.2 | E9: 11.58005 | F9: 2.56 | G9: 1.17 | H9: 0.24 | L9: =+C10/C9 -> 0.9585062241 | M9: =+D10/D9 -> 0.9196428571 | N9: 10
A10: Zuchtsauen (ab Belegen) mit 25 Ferkel bis 8 kg, stark N-/P-red. | C10: 23.1 | D10: 10.3 | E10: 11.58005 | F10: 2.56 | G10: 1.17 | H10: 0.24 | I10: =+C9/C10 -> 1.043290043 | J10: =+D9/D10 -> 1.087378641 | K10: 1
A11: Zuchtsauen (ab Belegen) mit 28 Ferkel bis 8 kg, N-/P-red. | C11: 24.2 | D11: 11.2 | E11: 11.82105 | F11: 2.56 | G11: 1.17 | H11: 0.24 | L11: =+C12/C11 -> 0.958677686 | M11: =+D12/D11 -> 0.9196428571 | N11: 10
A12: Zuchtsauen (ab Belegen) mit 28 Ferkel bis 8 kg, stark N-/P-red. | C12: 23.2 | D12: 10.3 | E12: 11.82105 | F12: 2.56 | G12: 1.17 | H12: 0.24 | I12: =+C11/C12 -> 1.043103448 | J12: =+D11/D12 -> 1.087378641 | K12: 1
A13: Zuchtsauen (ab Belegen) mit 22 Ferkel bis 28 kg, N-/P-red. | C13: 35.1 | D13: 15.3 | E13: 18.316 | F13: 2.56 | G13: 1.17 | H13: 0.24 | L13: =+C14/C13 -> 0.9544159544 | M13: =+D14/D13 -> 0.9150326797 | N13: 10
A14: Zuchtsauen (ab Belegen) mit 22 Ferkel bis 28 kg, stark N-/P-red. | C14: 33.5 | D14: 14 | E14: 18.316 | F14: 2.56 | G14: 1.17 | H14: 0.24 | I14: =+C13/C14 -> 1.047761194 | J14: =+D13/D14 -> 1.092857143 | K14: 1
A15: Zuchtsauen (ab Belegen) mit 25 Ferkel bis 28 kg, N-/P-red. | C15: 36.8 | D15: 16 | E15: 19.521 | F15: 2.56 | G15: 1.17 | H15: 0.24 | L15: =+C16/C15 -> 0.9510869565 | M15: =+D16/D15 -> 0.91875 | N15: 10
A16: Zuchtsauen (ab Belegen) mit 25 Ferkel bis 28 kg, stark N-/P-red. | C16: 35 | D16: 14.7 | E16: 19.521 | F16: 2.56 | G16: 1.17 | H16: 0.24 | I16: =+C15/C16 -> 1.051428571 | J16: =+D15/D16 -> 1.088435374 | K16: 1
A17: Zuchtsauen (ab Belegen) mit 28 Ferkel bis 28 kg, N-/P-red. | C17: 38.4 | D17: 16.7 | E17: 20.726 | F17: 2.56 | G17: 1.17 | H17: 0.24 | L17: =+C18/C17 -> 0.953125 | M17: =+D18/D17 -> 0.9041916168 | N17: 10
A18: Zuchtsauen (ab Belegen) mit 28 Ferkel bis 28 kg, stark N-/P-red. | C18: 36.6 | D18: 15.1 | E18: 20.726 | F18: 2.56 | G18: 1.17 | H18: 0.24 | I18: =+C17/C18 -> 1.049180328 | J18: =+D17/D18 -> 1.105960265 | K18: 1
A19: Ferkel von 8 bis 28 kg, 450 g TZ, N-/P-red. | C19: 4.189871383 | D19: 1.613276527 | E19: 2.602180064 | F19: 2.56 | G19: 1.17 | H19: 0.24 | L19: =+C20/C19 -> 0.9411764706 | M19: =+D20/D19 -> 0.8333333333 | N19: 10
A20: Ferkel von 8 bis 28 kg, 450 g TZ, stark N-/P-red. | C20: 3.94340836 | D20: 1.344397106 | E20: 2.602180064 | F20: 2.56 | G20: 1.17 | H20: 0.24 | I20: =+C19/C20 -> 1.0625 | J20: =+D19/D20 -> 1.2 | K20: 1
A21: Ferkel von 8 bis 28 kg, 500 g TZ, N-/P-red. | C21: 4.38 | D21: 1.596875 | E21: 2.803884375 | F21: 2.56 | G21: 1.17 | H21: 0.24 | L21: =+C22/C21 -> 0.9375 | M21: =+D22/D21 -> 1 | N21: 10
A22: Ferkel von 8 bis 28 kg, 500 g TZ, stark N-/P-red. | C22: 4.10625 | D22: 1.596875 | E22: 2.803884375 | F22: 2.56 | G22: 1.17 | H22: 0.24 | I22: =+C21/C22 -> 1.066666667 | J22: =+D21/D22 -> 1 | K22: 1
A23: Jungsauenaufzucht, 28-95 kg, N-/P-red. | C23: 9.806333333 | D23: 5.128785333 | E23: 5.043326667 | F23: 2.56 | G23: 1.17 | H23: 0.24
A24: Jungsaueneingliederung, 95-135 kg, N-/P-red. | C24: 14.15306122 | D24: 7.996458309 | E24: 6.885889942 | F24: 2.56 | G24: 1.17 | H24: 0.24
A25: Mastschweine (700 g TZ), N-/P-red. | C25: 13.01833333 | D25: 4.989416167 | E25: 6.480088333 | F25: 2.56 | G25: 1.17 | H25: 0.24 | L25: =+C26/C25 -> 0.8971962617 | M25: =+D26/D25 -> 0.9217877095 | N25: 10
A26: Mastschweine (700 g TZ), stark N-/P-red. | C26: 11.68 | D26: 4.5991825 | E26: 6.304158333 | F26: 2.56 | G26: 1.17 | H26: 0.24 | I26: =+C25/C26 -> 1.114583333 | J26: =+D25/D26 -> 1.084848485 | K26: 1
A27: Mastschweine (750 g TZ), N-/P-red. | C27: 13.44087838 | D27: 5.14159223 | E27: 6.775682432 | F27: 2.56 | G27: 1.17 | H27: 0.24 | L27: =+C28/C27 -> 0.8990825688 | M27: =+D28/D27 -> 0.9175824176 | N27: 10
A28: Mastschweine (750 g TZ), stark N-/P-red. | C28: 12.08445946 | D28: 4.717834628 | E28: 6.567657095 | F28: 2.56 | G28: 1.17 | H28: 0.24 | I28: =+C27/C28 -> 1.112244898 | J28: =+D27/D28 -> 1.089820359 | K28: 1
A29: Mastschweine (850 g TZ), N-/P-red. | C29: 14.77681661 | D29: 5.410802941 | E29: 7.274614187 | F29: 2.56 | G29: 1.17 | H29: 0.24 | L29: =+C30/C29 -> 0.905982906 | M29: =+D30/D29 -> 0.9144385027 | N29: 10
A30: Mastschweine (850 g TZ), stark N-/P-red. | C30: 13.38754325 | D30: 4.94784654 | E30: 7.061550173 | F30: 2.56 | G30: 1.17 | H30: 0.24 | I30: =+C29/C30 -> 1.103773585 | J30: =+D29/D30 -> 1.093567251 | K30: 1
A31: Mastschweine (950 g TZ), N-/P-red. | C31: 15.58718861 | D31: 5.624364235 | E31: 7.77911121 | F31: 2.56 | G31: 1.17 | H31: 0.24 | L31: =+C32/C31 -> 0.9 | M31: =+D32/D31 -> 0.9153439153 | N31: 10
A32: Mastschweine (950 g TZ), stark N-/P-red. | C32: 14.02846975 | D32: 5.14822758 | E32: 7.544329181 | F32: 2.56 | G32: 1.17 | H32: 0.24 | I32: =+C31/C32 -> 1.111111111 | J32: =+D31/D32 -> 1.092485549 | K32: 1
A33: Jungebermast, 850 g TZ (w:m=1:1), N-/P-red. | C33: 14.2716263 | D33: 5.497607266 | E33: 8.111651384 | F33: 2.56 | G33: 1.17 | H33: 0.24 | L33: =+C34/C33 -> 0.9557522124 | M33: =+D34/D33 -> 0.9 | N33: 10
A34: Jungebermast, 850 g TZ (w:m=1:1), stark N-/P-red. | C34: 13.64013841 | D34: 4.94784654 | E34: 7.731179931 | F34: 2.56 | G34: 1.17 | H34: 0.24 | I34: =+C33/C34 -> 1.046296296 | J34: =+D33/D34 -> 1.111111111 | K34: 1
A35: Jungebermast, 900 g TZ (Eber=100%), N-/P-red. | C35: 13.95964912 | D35: 5.310698772 | E35: 8.179201754 | F35: 2.56 | G35: 1.17 | H35: 0.24 | L35: =+C36/C35 -> 0.9449541284 | M35: =+D36/D35 -> 0.8895027624 | N35: 10
A36: Jungebermast, 900 g TZ (Eber=100%), stark N-/P-red. | C36: 13.19122807 | D36: 4.723881228 | E36: 7.71622807 | F36: 2.56 | G36: 1.17 | H36: 0.24 | I36: =+C35/C36 -> 1.058252427 | J36: =+D35/D36 -> 1.124223602 | K36: 1
A37: Weibliche, 800 g TZ (Weibliche 100 %), N-/P-red. | C37: 14.625 | D37: 5.61295 | E37: 7.8776875 | F37: 2.56 | G37: 1.17 | H37: 0.24 | L37: =+C38/C37 -> 0.9572649573 | M37: =+D38/D37 -> 0.9081632653 | N37: 10
A38: Weibliche, 800 g TZ (Weibliche 100 %), stark N-/P-red. | C38: 14 | D38: 5.097475 | E38: 7.561375 | F38: 2.56 | G38: 1.17 | H38: 0.24 | I38: =+C37/C38 -> 1.044642857 | J38: =+D37/D38 -> 1.101123596 | K38: 1
A39: Zuchteber | C39: 22.1 | D39: 9.6222 | E39: 8.7965 | F39: 2.56 | G39: 1.17 | H39: 0.24

Sheet Futtermittel (hidden)
B4: RP TM | C4: N | D4: P2O5 | E4: TS | F4: Rp FM
A5: Futtermittel | C5: FM | D5: FM
A7: +++Getreide+++
A8: Winterweizen C-Sorte | B8: 12 | C8: 1.81 | D8: 0.8 | E8: 86 | F8: =+C8*5.7 -> 10.317 | G8: =+F8/E8*100 -> 11.99651163 | H8: =+B8-G8 -> 0.003488372093
A9: Winterweizen A/B-Sorte | B9: 14 | C9: 2.11 | D9: 0.8 | E9: 86 | F9: =+C9*5.7 -> 12.027 | G9: =+F9/E9*100 -> 13.98488372 | H9: =+B9-G9 -> 0.01511627907
A10: Winterweizen E-Sorte | B10: 16 | C10: 2.41 | D10: 0.8 | E10: 86 | F10: 13.737 | G10: 15.97325581 | H10: 0.02674418605
A11: Winterbrauweizen | B11: 12 | C11: 1.81 | D11: 0.75 | E11: 86 | F11: 10.317 | G11: 11.99651163 | H11: 0.003488372093
A12: Sommerweizen | B12: 14 | C12: 2.11 | D12: 0.75 | E12: 86 | F12: 12.027 | G12: 13.98488372 | H12: 0.01511627907
A13: Weizenstroh | B13: =+F13/E13*100 -> 3.63372093 | C13: 0.5 | D13: 0.3 | E13: 86 | F13: =+C13*6.25 -> 3.125 | G13: 3.63372093 | H13: 0
A14: Wintergerste | B14: 12 | C14: 1.65 | D14: 0.8 | E14: 86 | F14: 10.3125 | G14: 11.99127907 | H14: 0.008720930233
A15: Winterbraugerste | B15: 11 | C15: 1.51 | D15: 0.8 | E15: 86 | F15: 9.4375 | G15: 10.97383721 | H15: 0.0261627907
A16: Sommerfuttergerste | B16: 12 | C16: 1.65 | D16: 0.8 | E16: 86 | F16: 10.3125 | G16: 11.99127907 | H16: 0.008720930233
A17: Sommerbraugerste | B17: 10 | C17: 1.38 | D17: 0.8 | E17: 86 | F17: 8.625 | G17: 10.02906977 | H17: -0.02906976744
A18: Gerstenstroh | B18: =+F18/E18*100 -> 3.63372093 | C18: 0.5 | D18: 0.3 | E18: 86 | F18: 3.125 | G18: 3.63372093 | H18: 0
A19: Winterroggen | B19: 11 | C19: 1.51 | D19: 0.8 | E19: 86 | F19: 9.4375 | G19: 10.97383721 | H19: 0.0261627907
A20: Sommerroggen | B20: 11 | C20: 1.51 | D20: 0.8 | E20: 86 | F20: 9.4375 | G20: 10.97383721 | H20: 0.0261627907
A21: Roggenstroh | B21: =+F21/E21*100 -> 3.63372093 | C21: 0.5 | D21: 0.3 | E21: 86 | F21: 3.125 | G21: 3.63372093 | H21: 0
A22: Hafer | B22: 11 | C22: 1.51 | D22: 0.8 | E22: 86 | F22: 9.4375 | G22: 10.97383721 | H22: 0.0261627907
A23: Haferstroh | B23: =+F23/E23*100 -> 3.63372093 | C23: 0.5 | D23: 0.3 | E23: 86 | F23: 3.125 | G23: 3.63372093 | H23: 0
A24: Triticale | B24: 12 | C24: 1.65 | D24: 0.8 | E24: 86 | F24: 10.3125 | G24: 11.99127907 | H24: 0.008720930233
A25: Dinkel | B25: 12 | C25: 1.65 | D25: 0.8 | E25: 86 | F25: 10.3125 | G25: 11.99127907 | H25: 0.008720930233
A26: Emmer/Einkorn | B26: 12 | C26: 1.81 | D26: 0.75 | E26: 86 | F26: =+C26*5.7 -> 10.317 | G26: 11.99651163 | H26: 0.003488372093
A27: Hartweizen (Durum) | B27: 12 | C27: 1.81 | D27: 0.8 | E27: 86 | F27: =+C27*5.7 -> 10.317 | G27: 11.99651163 | H27: 0.003488372093
A28: Buchweizen | B28: 16.93313953 | C28: 2.33 | D28: 0.65 | E28: 86 | F28: 14.5625 | G28: 16.93313953 | H28: 0
A29: ++++Körnermais, sonstige Körnernutzung+++
A30: Körnermais | B30: 10 | C30: 1.38 | D30: 0.8 | E30: 86 | F30: 8.625 | G30: 10.02906977 | H30: -0.02906976744
A31: Körnermaisstroh | B31: =+F31/E31*100 -> 6.540697674 | C31: 0.9 | D31: 0.2 | E31: 86 | F31: 5.625 | G31: 6.540697674 | H31: 0
A32: Hirse | B32: 17.00581395 | C32: 2.34 | D32: 0.89 | E32: 86 | F32: 14.625 | G32: 17.00581395 | H32: 0
A33: Amarant | B33: 17.00581395 | C33: 2.34 | D33: 0.89 | E33: 86 | F33: 14.625 | G33: 17.00581395 | H33: 0
A34: Quinoa | B34: 16.27906977 | C34: 2.24 | D34: 0.94 | E34: 86 | F34: 14 | G34: 16.27906977 | H34: 0
A35: +++Körnerleguminosen+++
A36: Ackerbohnen | B36: 29.8 | C36: 4.1 | D36: 1.2 | E36: 86 | F36: 25.625 | G36: 29.79651163 | H36: 0.003488372093
A37: Erbsen | B37: 26 | C37: 3.6 | D37: 1.1 | E37: 86 | F37: 22.5 | G37: 26.1627907 | H37: -0.1627906977
A38: Wicken | B38: 26 | C38: 3.6 | D38: 1.1 | E38: 86 | F38: 22.5 | G38: 26.1627907 | H38: -0.1627906977
A39: Lupinen blau | B39: 33 | C39: 4.48 | D39: 1.02 | E39: 86 | F39: 28 | G39: 32.55813953 | H39: 0.4418604651
A40: Linsen | B40: 26 | C40: 3.5776 | D40: 1.1 | E40: 86 | F40: 22.36 | G40: 26 | H40: 0
A41: Sojabohnen | B41: 32 | C41: 4.4 | D41: 1.5 | E41: 86 | F41: 27.5 | G41: 31.97674419 | H41: 0.02325581395
A42: +++Ölfrüchte und Faserpflanzen+++
A43: Raps | B43: 23 | C43: 3.35 | D43: 1.8 | E43: 91 | F43: 20.9375 | G43: 23.00824176 | H43: -0.008241758242
A44: Rübsen | B44: 23 | C44: 3.35 | D44: 1.8 | E44: 91 | F44: 20.9375 | G44: 23.00824176 | H44: -0.008241758242
A45: Sonnenblumen | B45: 20 | C45: 2.91 | D45: 1.6 | E45: 91 | F45: 18.1875 | G45: 19.98626374 | H45: 0.01373626374
A46: Körnersenf | B46: 35 | C46: 5.08 | D46: 1.77 | E46: 91 | F46: 31.75 | G46: 34.89010989 | H46: 0.1098901099
A47: Öllein, Faserflachs | B47: 24 | C47: 3.5 | D47: 1.2 | E47: 91 | F47: 21.875 | G47: 24.03846154 | H47: -0.03846153846
A48: Leindotter | B48: 24 | C48: 3.5 | D48: 1.2 | E48: 91 | F48: 21.875 | G48: 24.03846154 | H48: -0.03846153846
A49: Flachs (Faserlein) | B49: =+F49/E49*100 -> 7.26744186 | C49: 1 | D49: 0.64 | E49: 86 | F49: 6.25 | G49: 7.26744186 | H49: 0
A50: Hanf | B50: =+F50/E50*100 -> 6.25 | C50: 0.4 | D50: 0.3 | E50: 40 | F50: 2.5 | G50: 6.25 | H50: 0
A51: +++Hackfrüchte+++
A52: Kartoffel | B52: =+F52/E52*100 -> 9.943181818 | C52: 0.35 | D52: 0.14 | E52: 22 | F52: 2.1875 | G52: 9.943181818 | H52: 0
A53: Zuckerrüben | B53: =+F53/E53*100 -> 4.891304348 | C53: 0.18 | D53: 0.1 | E53: 23 | F53: 1.125 | G53: 4.891304348 | H53: 0
A54: Zuckerrübenblatt | B54: =+F54/E54*100 -> 13.88888889 | C54: 0.4 | D54: 0.11 | E54: 18 | F54: 2.5 | G54: 13.88888889 | H54: 0
A55: Futter-, Runkelrüben | B55: =+F55/E55*100 -> 7.5 | C55: 0.18 | D55: 0.09 | E55: 15 | F55: 1.125 | G55: 7.5 | H55: 0
A56: Kohl-, Steckrüben | B56: =+F56/E56*100 -> 7.291666667 | C56: 0.14 | D56: 0.07 | E56: 12 | F56: 0.875 | G56: 7.291666667 | H56: 0
A57: +++Futterpflanzen+++
A58: Silomais (28 % TM) | B58: =+F58/E58*100 -> 8.482142857 | C58: 0.38 | D58: 0.16 | E58: 28 | F58: 2.375 | G58: 8.482142857 | H58: 0
A59: Silomais (32 % TM) | B59: =+F59/E59*100 -> 8.3984375 | C59: 0.43 | D59: 0.17 | E59: 32 | F59: 2.6875 | G59: 8.3984375 | H59: 0
A60: Silomais (35 % TM) | B60: =+F60/E60*100 -> 8.3984375 | C60: 0.4703125 | D60: 0.18 | E60: 35 | F60: 2.939453125 | G60: 8.3984375 | H60: 0
A61: CCM | B61: 10.5 | C61: 1.008 | D61: 0.408 | E61: 60 | F61: =+C61*6.25 -> 6.3 | G61: 10.5 | H61: 0
A62: Lieschkolbensilage | B62: =+F62/E62*100 -> 9.5 | C62: 0.76 | D62: 0.32 | E62: 50 | F62: 4.75 | G62: 9.5 | H62: 0
A63: GPS Getreide | B63: 10 | C63: 0.56 | D63: 0.231 | E63: 35 | F63: 3.5 | G63: 10 | H63: 0
A64: GPS Lupinen | B64: =+F64/E64*100 -> 10 | C64: 0.56 | D64: 0.23 | E64: 35 | F64: 3.5 | G64: 10 | H64: 0
A65: GPS Erbsen/Ackerbohne | B65: =+F65/E65*100 -> 10 | C65: 0.56 | D65: 0.23 | E65: 35 | F65: 3.5 | G65: 10 | H65: 0
A66: GPS Sonnenblumen | B66: 8.4 | C66: 0.469 | D66: 0.196 | E66: 35 | F66: 2.93125 | G66: 8.375 | H66: 0.025
A67: GPS Rübsen | B67: =+F67/E67*100 -> 10 | C67: 0.56 | D67: 0.23 | E67: 35 | F67: 3.5 | G67: 10 | H67: 0
A68: GPS Wicken | B68: =+F68/E68*100 -> 10 | C68: 0.56 | D68: 0.23 | E68: 35 | F68: 3.5 | G68: 10 | H68: 0
A69: GPS Raps | B69: =+F69/E69*100 -> 10 | C69: 0.56 | D69: 0.23 | E69: 35 | F69: 3.5 | G69: 10 | H69: 0
A70: +++Milch+++
A71: Kuhmilch (3,2 % Eiweiß) | B71: 24.35114504 | C71: 0.5 | D71: 0.23 | E71: 13.1 | F71: =+C71*6.25 -> 3.125 | G71: 23.85496183 | H71: 0.4961832061
A72: Kuhmilch (3,4 % Eiweiß) | B72: 25.42406015 | C72: 0.53 | D72: 0.23 | E72: 13.3 | F72: 3.3125 | G72: 24.90601504 | H72: 0.5180451128
A73: Kuhmilch (3,6 % Eiweiß) | B73: 26.46518519 | C73: 0.56 | D73: 0.23 | E73: 13.5 | F73: 3.5 | G73: =+F73/E73*100 -> 25.92592593 | H73: =+B73-G73 -> 0.5392592593
A74: Stutenmilch (2,2 % Eiweiß) | B74: 21.67961165 | C74: 0.35 | D74: 0.14 | E74: 10.3 | F74: 2.1875 | G74: 21.23786408 | H74: 0.4417475728
A75: Ziegenmilch (3,7 % Eiweiß) | B75: 29.13700787 | C75: 0.58 | D75: 0.28 | E75: 12.7 | F75: 3.625 | G75: 28.54330709 | H75: 0.5937007874
A76: Schafmilch (5,3 % Eiweiß) | B76: 31.33372781 | C76: 0.83 | D76: 0.25 | E76: 16.9 | F76: 5.1875 | G76: 30.69526627 | H76: 0.6384615385
A77: +++Futtermittel nach Anlage 1, Tab.4 der StoffBilV+++
A78: Altbrot | B78: 15 | C78: 1.56 | D78: 0.195 | E78: 65 | F78: 9.75 | G78: 15 | H78: 0
A79: Apfeltrester | B79: 8.3125 | C79: 0.2926 | D79: 0.088 | E79: 22 | F79: 1.82875 | G79: 8.3125 | H79: 0
A80: Bierhefe, flüssig | B80: 52.5 | C80: 0.84 | D80: 0.26 | E80: 10 | F80: 5.25 | G80: 52.5 | H80: 0
A81: Biertreber, siliert | B81: 25 | C81: 1 | D81: 0.3425 | E81: 25 | F81: 6.25 | G81: 25 | H81: 0
A82: Fischmehl | B82: 63 | C82: 9.1728 | D82: 6.8796 | E82: 91 | F82: 57.33 | G82: 63 | H82: 0
A83: Getreideschlempe, frisch (Weizen) | B83: 36 | C83: 3.456 | D83: 0.69 | E83: 60 | F83: 21.6 | G83: 36 | H83: 0
A84: Getreideschlempe, getrocknet (Weizen) | B84: 38.1875 | C84: 5.6212 | D84: 1.8952 | E84: 92 | F84: 35.1325 | G84: 38.1875 | H84: 0
A85: Haferschälkleie | B85: 7 | C85: 1.008 | D85: 0.351 | E85: 90 | F85: 6.3 | G85: 7 | H85: 0
A86: Kartoffeleiweiß | B86: 84 | C86: 12.096 | D86: 1.035 | E86: 90 | F86: 75.6 | G86: 84 | H86: 0
A87: Kartoffelpülpe, siliert | B87: 4.875 | C87: 0.1404 | D87: 0.1152 | E87: 18 | F87: 0.8775 | G87: 4.875 | H87: 0
A88: Kartoffelschlempe, frisch | B88: 33 | C88: 0.2904 | D88: 0.08415 | E88: 5.5 | F88: 1.815 | G88: 33 | H88: 0
A89: Leinextraktionsschrot | B89: 37.5625 | C89: 5.3489 | D89: 1.958 | E89: 89 | F89: 33.430625 | G89: 37.5625 | H89: 0
A90: Leinkuchen | B90: 37 | C90: 5.328 | D90: 1.854 | E90: 90 | F90: 33.3 | G90: 37 | H90: 0
A91: Luzernegrünmehl | B91: 18.5 | C91: 2.664 | D91: 0.72 | E91: 90 | F91: 16.65 | G91: 18.5 | H91: 0
A92: Magermilch, frisch | B92: 36 | C92: 0.4896 | D92: 0.19465 | E92: 8.5 | F92: 3.06 | G92: 36 | H92: 0
A93: Maiskeimextraktionsschrot | B93: 25 | C93: 3.56 | D93: 1.424 | E93: 89 | F93: 22.25 | G93: 25 | H93: 0
A94: Maiskleberfutter | B94: 25 | C94: 3.6 | D94: 1.755 | E94: 90 | F94: 22.5 | G94: 25 | H94: 0
A95: Malzkeime | B95: 29.5 | C95: 4.3424 | D95: 1.6836 | E95: 92 | F95: 27.14 | G95: 29.5 | H95: 0
A96: Maniok | B96: 2.6875 | C96: 0.3784 | D96: 0.2024 | E96: 88 | F96: 2.365 | G96: 2.6875 | H96: 0
A97: Melasseschnitzel | B97: 10 | C97: 1.456 | D97: 0.1638 | E97: 91 | F97: 9.1 | G97: 10 | H97: 0
A98: Molke, Permeat | B98: 4.1875 | C98: 0.0335 | D98: 0.1535 | E98: 5 | F98: 0.209375 | G98: 4.1875 | H98: 0
A99: Pressschnitzel, siliert | B99: 8.5 | C99: 0.3672 | D99: 0.0621 | E99: 27 | F99: 2.295 | G99: 8.5 | H99: 0
A100: Rapsextraktionsschrot | B100: 38.125 | C100: 5.429 | D100: 2.4475 | E100: 89 | F100: 33.93125 | G100: 38.125 | H100: 0
A101: Rapskuchen, fettarm | B101: 36.625 | C101: 5.274 | D101: 2.475 | E101: 90 | F101: 32.9625 | G101: 36.625 | H101: 0
A102: Roggengrießkleie | B102: 16 | C102: 2.2528 | D102: 2.0152 | E102: 88 | F102: 14.08 | G102: 16 | H102: 0
A103: Roggenkleie | B103: 16.1875 | C103: 2.2792 | D103: 2.2352 | E103: 88 | F103: 14.245 | G103: 16.1875 | H103: 0
A104: Rübenkleinteile | B104: 7.5 | C104: 0.204 | D104: 0.0816 | E104: 17 | F104: 1.275 | G104: 7.5 | H104: 0
A105: Sojaextraktionsschrot, geschält, 48 % RP | B105: 54.5 | C105: 7.6736 | D105: 1.5136 | E105: 88 | F105: 47.96 | G105: 54.5 | H105: 0
A106: Sojaextraktionsschrot, ungeschält, 44 % RP | B106: 50 | C106: 7.04 | D106: 1.4696 | E106: 88 | F106: 44 | G106: 50 | H106: 0
A107: Sojaschalen | B107: 13.5 | C107: 1.9008 | D107: 0.3256 | E107: 88 | F107: 11.88 | G107: 13.5 | H107: 0
A108: Sonnenblumenextraktionsschrot, teilgeschält | B108: 38 | C108: 5.4112 | D108: 2.2428 | E108: 89 | F108: 33.82 | G108: 38 | H108: 0
A109: Sauermolke, frisch | B109: 9.875 | C109: 0.10112 | D109: 0.176 | E109: 6.4 | F109: 0.632 | G109: 9.875 | H109: 0
A110: Süßmolke, frisch | B110: 13.5 | C110: 0.1296 | D110: 0.0918 | E110: 6 | F110: 0.81 | G110: 13.5 | H110: 0
A111: Trockenschnitzel | B111: 8.3125 | C111: 1.197 | D111: 0.207 | E111: 90 | F111: 7.48125 | G111: 8.3125 | H111: 0
A112: Weizengrießkleie | B112: 16.074 | C112: 2.4675 | D112: 2.10875 | E112: 87.5 | F112: =+C112*5.7 -> 14.06475 | G112: 16.074 | H112: 0
A113: Weizenkleie | B113: 14.592 | C113: 2.2528 | D113: 2.6224 | E113: 88 | F113: =+C113*5.7 -> 12.84096 | G113: 14.592 | H113: 0
A114: Weizennachmehl | B114: 17.328 | C114: 2.6448 | D114: 1.392 | E114: 87 | F114: 15.07536 | G114: 17.328 | H114: 0
A115: Zuckerrübenmelasse | B115: 13.5 | C115: 1.6848 | D115: 0.0858 | E115: 78 | F115: 10.53 | G115: 13.5 | H115: 0
A116: +++sonstige Futtermittel+++
A117: Alleinfutter I Legehennen | B117: 19.886 | C117: 2.7999488 | D117: 1.26005 | E117: 88 | F117: 17.49968 | G117: 19.886 | H117: 0
A118: Alleinfutter Jungsau | B118: 18.182 | C118: 2.5600256 | D118: 1.03021688 | E118: 88 | F118: 16.00016 | G118: 18.182 | H118: 0
A119: Alleinfutter Schwein, Anfangsmast | B119: 19.886 | C119: 2.7999488 | D119: 1.26005 | E119: 88 | F119: 17.49968 | G119: 19.886 | H119: 0
A120: Alleinfutter Schwein, Endmast | B120: 17.045 | C120: 2.399936 | D120: 1.03021688 | E120: 88 | F120: 14.9996 | G120: 17.045 | H120: 0
A121: Alleinfutter Schwein, Mast | B121: 19.318 | C121: 2.7199744 | D121: 1.26005 | E121: 88 | F121: 16.99984 | G121: 19.318 | H121: 0
A122: Alleinfutter Zuchtsau, tragend | B122: 13.63636364 | C122: 1.92 | D122: 0.96222 | E122: 88 | F122: 12 | G122: 13.63636364 | H122: 0
A123: Alleinfutter Zuchtsau, säugend | B123: 19 | C123: 2.64 | D123: 1.1455 | E123: 88 | F123: =+C123*6.25 -> 16.5 | G123: 18.75 | H123: 0.25
A124: Backabfälle | B124: 12.045 | C124: 1.695936 | D124: 0.5241808 | E124: 88 | F124: 10.5996 | G124: 12.045 | H124: 0
A125: Buttermilch | B125: 37.4 | C125: 0.47872 | D125: 0.15798736 | E125: 8 | F125: 2.992 | G125: 37.4 | H125: 0
A126: Ca-Propionat | B126: 0 | C126: 0 | D126: 0 | E126: 99 | F126: 0 | G126: 0 | H126: 0
A127: DL-Methionin | B127: 99.298 | C127: 15.84001696 | D127: 0 | E127: 99.7 | F127: 99.000106 | G127: 99.298 | H127: 0
A128: Ergänz.futter Aufzuchtferkel, (Anteil 30 %) | B128: 39.773 | C128: 5.6000384 | D128: 2.29026688 | E128: 88 | F128: 35.00024 | G128: 39.773 | H128: 0
A129: Ergänz.futter Fohlen | B129: 18.409 | C129: 2.5919872 | D129: 1.3910952 | E129: 88 | F129: 16.19992 | G129: 18.409 | H129: 0
A130: Ergänz.futter I Schwein, Mast, (Anteil 30 %) | B130: 39.773 | C130: 5.6000384 | D130: 1.37496656 | E130: 88 | F130: 35.00024 | G130: 39.773 | H130: 0
A131: Ergänz.futter II Schwein, Mast, 28 % RP | B131: 31.818 | C131: 4.4799744 | D131: 3.20758328 | E131: 88 | F131: 27.99984 | G131: 31.818 | H131: 0
A132: Ergänz.futter Jungsau, (Anteil 30 %) | B132: 39.773 | C132: 5.6000384 | D132: 1.83261672 | E132: 88 | F132: 35.00024 | G132: 39.773 | H132: 0
A133: Ergänz.futter Saugferkel, (Anteil 100 %) | B133: 21.591 | C133: 3.0400128 | D133: 1.26005 | E133: 88 | F133: 19.00008 | G133: =+F133/E133*100 -> 21.591 | H133: =+B133-G133 -> 0
A134: Ergänz.futter Schwein, Mast, (Anteil 20 %) | B134: 51.136 | C134: 7.1999488 | D134: 1.6027836 | E134: 88 | F134: 44.99968 | G134: 51.136 | H134: 0
A135: Ergänz.futter Schwein, Mast (30 %) | B135: 39.77272727 | C135: 5.6 | D135: 1.3746 | E135: 88 | F135: 35 | G135: 39.77272727 | H135: 0
A136: Ergänz.futter Zuchtsau, säugend (Anteil 30 %) | B136: 39.773 | C136: 5.6000384 | D136: 1.83261672 | E136: 88 | F136: 35.00024 | G136: 39.773 | H136: 0
A137: Ergänz.futter Zuchtsau, tragend (Anteil 25 %) | B137: 28.409 | C137: 3.9999872 | D137: 2.29026688 | E137: 88 | F137: 24.99992 | G137: 28.409 | H137: 0
A138: Fasermix, 20 % Rohfaser | B138: 10 | C138: 1.44 | D138: 0.6866127 | E138: 90 | F138: 9 | G138: 10 | H138: 0
A139: Fasermix, 30 % Rohfaser | B139: 8.889 | C139: 1.280016 | D139: 1.1464164 | E139: 90 | F139: 8.0001 | G139: 8.889 | H139: 0
A140: Ferkelaufzuchtfutter I | B140: 20.455 | C140: 2.880064 | D140: 1.26005 | E140: 88 | F140: 18.0004 | G140: 20.455 | H140: 0
A141: Ferkelaufzuchtfutter II | B141: 19.886 | C141: 2.7999488 | D141: 1.03021688 | E141: 88 | F141: 17.49968 | G141: 19.886 | H141: 0
A142: Futtersäure | B142: 0 | C142: 0 | D142: 0 | E142: 99 | F142: 0 | G142: 0 | H142: 0
A143: Futterharnstoff | B143: 291.515 | C143: 46.175976 | D143: 0 | E143: 99 | F143: 288.59985 | G143: 291.515 | H143: 0
A144: Futterzucker | B144: 0.101 | C144: 0.0159984 | D144: 0 | E144: 99 | F144: 0.09999 | G144: 0.101 | H144: 0
A145: Karottentrester | B145: 8.6875 | C145: 0.2363 | D145: 0.0935 | E145: 17 | F145: 1.476875 | G145: 8.6875 | H145: 0
A146: Kartoffelflocken | B146: 8.864 | C146: 1.2480512 | D146: 0.5241808 | E146: 88 | F146: 7.80032 | G146: 8.864 | H146: 0
A147: Kartoffelschälabfälle, gedämpft | B147: 10.5 | C147: 0.1848 | D147: 0.0630025 | E147: 11 | F147: 1.155 | G147: 10.5 | H147: 0
A148: Kartoffelstärke | B148: 0.341 | C148: 0.0480128 | D148: 0.1209648 | E148: 88 | F148: 0.30008 | G148: 0.341 | H148: 0
A149: Kohlensaurer Kalk | B149: 0 | C149: 0 | D149: 0.09136508 | E149: 99.7 | F149: 0 | G149: 0 | H149: 0
A150: Lab-/Süßmolke | B150: 13.7 | C150: 0.1096 | D150: 0.09816935 | E150: 5 | F150: 0.685 | G150: 13.7 | H150: 0
A151: Futteröl | B151: 0 | C151: 0 | D151: 0 | E151: 99.9 | F151: 0 | G151: 0 | H151: 0
A152: Lignozellulose | B152: 1.522 | C152: 0.2240384 | D152: 0.0421544 | E152: 92 | F152: 1.40024 | G152: 1.522 | H152: 0
A153: L-Lysin-HCl | B153: 79.188 | C153: 12.4800288 | D153: 0 | E153: 98.5 | F153: 78.00018 | G153: 79.188 | H153: 0
A154: L-Threonin | B154: 98.99 | C154: 15.680016 | D154: 0 | E154: 99 | F154: 98.0001 | G154: 98.99 | H154: 0
A155: Magermilch | B155: 36.1 | C155: 0.496736 | D155: 0.21475834 | E155: 8.6 | F155: 3.1046 | G155: 36.1 | H155: 0
A156: Magermilchpulver | B156: 36.451 | C156: 5.48806256 | D156: 2.32829748 | E156: 94.1 | F156: 34.300391 | G156: 36.451 | H156: 0
A157: Maiskornsilage | B157: 10 | C157: 1.04 | D157: 0.52 | E157: 65 | F157: 6.5 | G157: 10 | H157: 0
A158: Maisschlempe, trocken | B158: 36 | C158: 5.184 | D158: 1.092807 | E158: 90 | F158: 32.4 | G158: 36 | H158: 0
A159: Mineralfutter Ferkel 4 AS (4 %) | B159: 21.57894737 | C159: 3.28 | D159: 5.73 | E159: 95 | F159: 20.5 | G159: 21.57894737 | H159: 0
A160: Mineralfutter Schwein, Anfangsmast | B160: 21.57894737 | C160: 3.28 | D160: 2.291 | E160: 95 | F160: 20.5 | G160: 21.57894737 | H160: 0
A161: Mineralfutter Schwein, Endmast | B161: 17.89473684 | C161: 2.72 | D161: 0 | E161: 95 | F161: 17 | G161: 17.89473684 | H161: 0
A162: Mineralfutter Zuchtsau, säugend (3,0 %) | B162: 13.68421053 | C162: 2.08 | D162: 6.873 | E162: 95 | F162: 13 | G162: 13.68421053 | H162: 0
A163: Mineralfutter Zuchtsau, tragend (2,5 %) | B163: 10 | C163: 1.52 | D163: 2.291 | E163: 95 | F163: =+C163*6.25 -> 9.5 | G163: 10 | H163: 0
A164: Futterfett | B164: 0 | C164: 0 | D164: 0 | E164: 99.9 | F164: 0 | G164: 0 | H164: 0
A165: Molkenpulver (Labmolke) | B165: 13.229 | C165: 2.0319744 | D165: 1.88485152 | E165: 96 | F165: 12.69984 | G165: 13.229 | H165: 0
A166: Monokalziumphosphat | B166: 0 | C166: 0 | D166: 52.452445 | E166: 95 | F166: 0 | G166: 0 | H166: 0
A167: Natriumbikarbonat | B167: 0 | C167: 0 | D167: 0 | E167: 99 | F167: 0 | G167: 0 | H167: 0
A168: Propionsäure | B168: 0 | C168: 0 | D168: 0 | E168: 99 | F168: 0 | G168: 0 | H168: 0
A169: Propylenglykol | B169: 0 | C169: 0 | D169: 0 | E169: 99 | F169: 0 | G169: 0 | H169: 0
A170: Glyzerin (roh, rein) | B170: 0 | C170: 0 | D170: 0 | E170: 99 | F170: 0 | G170: 0 | H170: 0
A171: Sauermilcherzeugnisse (Joghurt,Quark) | B171: 40 | C171: 1.024 | D171: 0.2822512 | E171: 16 | F171: 6.4 | G171: 40 | H171: 0
A172: Sauermolke | B172: 15.6 | C172: 0.139776 | D172: 0.20655656 | E172: 5.6 | F172: 0.8736 | G172: 15.6 | H172: 0
A173: Sojakuchen, 8 % Rohfett | B173: 44.944 | C173: 6.4000256 | D173: 1.427293 | E173: 89 | F173: 40.00016 | G173: =+F173/E173*100 -> 44.944 | H173: =+B173-G173 -> 0
A174: Tryptophan | B174: 98.99 | C174: 15.680016 | D174: 0 | E174: 99 | F174: 98.0001 | G174: 98.99 | H174: 0
A175: Viehsalz | B175: 0 | C175: 0 | D175: 0 | E175: 99 | F175: 0 | G175: 0 | H175: 0
A176: Vollmilchergänzer | B176: 0 | C176: 0 | D176: 0 | E176: 95 | F176: 0 | G176: 0 | H176: 0
A177: Vitaminkonzentrat | B177: 0 | C177: 0 | D177: 0 | E177: 95 | F177: 0 | G177: 0 | H177: 0
A184: Alleinfutter Legehennen, N/P reduziert | B184: 19.318 | C184: 2.7199744 | D184: 1.03021688 | E184: 88 | F184: =+C184*6.25 -> 16.99984 | G184: =+F184/E184*100 -> 19.318 | H184: =+B184-G184 -> 0
A185: Eiweißreicher Ergänzer Legehennen | B185: 34.091 | C185: 4.8000128 | D185: 2.74993312 | E185: 88 | F185: 30.00008 | G185: 34.091 | H185: 0
A186: Ergänz.futter Mastlämmer | B186: 20.682 | C186: 2.9120256 | D186: 1.3910952 | E186: 88 | F186: 18.20016 | G186: 20.682 | H186: 0
A187: Ergänz.futter Pferde | B187: 16.136 | C187: 2.2719488 | D187: 1.159246 | E187: 88 | F187: 14.19968 | G187: 16.136 | H187: 0
A188: Ergänz.futter Zuchtpferde | B188: 18.409 | C188: 2.5919872 | D188: 1.159246 | E188: 88 | F188: 16.19992 | G188: 18.409 | H188: 0
A189: Ergänz.futter Zuchtschafe | B189: 18.409 | C189: 2.5919872 | D189: 1.159246 | E189: 88 | F189: 16.19992 | G189: 18.409 | H189: 0
A190: Kälberaufzuchtfutter, 18 % RP | B190: 20.455 | C190: 2.880064 | D190: 1.14513344 | E190: 88 | F190: 18.0004 | G190: 20.455 | H190: 0
A191: Kükenaufzuchtfutter | B191: 20.455 | C191: 2.880064 | D191: 1.6027836 | E191: 88 | F191: 18.0004 | G191: 20.455 | H191: 0
A192: Legemehlergänzer Legehennen | B192: 22.955 | C192: 3.232064 | D192: 1.6229444 | E192: 88 | F192: 20.2004 | G192: 22.955 | H192: 0
A193: Mastkükenfutter | B193: 25 | C193: 3.52 | D193: 1.48988312 | E193: 88 | F193: 22 | G193: 25 | H193: 0
A194: Mastkükenfutter, N/P reduziert | B194: 23.864 | C194: 3.3600512 | D194: 1.26005 | E194: 88 | F194: 21.00032 | G194: 23.864 | H194: 0
A195: Milchaustauscher (MAT) Mast, 20 % Rohfett | B195: 23.404 | C195: 3.5199616 | D195: 1.37395852 | E195: 94 | F195: 21.99976 | G195: 23.404 | H195: 0
A196: Milchleist.futter, 14 % RP, EnergieStufe 3 | B196: 15.875 | C196: 2.2399872 | D196: 0.9173164 | E196: 88 | F196: 13.99992 | G196: 15.909 | H196: -0.034
A197: Milchleist.futter, 16 % RP, EnergieStufe 3 | B197: 18.182 | C197: 2.5600256 | D197: 0.9173164 | E197: 88 | F197: 16.00016 | G197: 18.182 | H197: 0
A198: Milchleist.futter, 18 % RP, EnergieStufe 4 | B198: 20.455 | C198: 2.880064 | D198: 0.9173164 | E198: 88 | F198: 18.0004 | G198: 20.455 | H198: 0
A199: Milchleist.futter, 25 % RP, EnergieStufe 3 | B199: 28.409 | C199: 3.9999872 | D199: 1.37496656 | E199: 88 | F199: 24.99992 | G199: 28.409 | H199: 0
A200: Milchleist.futter, 32 % RP, EnergieStufe 3 | B200: 36.364 | C200: 5.1200512 | D200: 1.6104 | E200: 88 | F200: 32.00032 | G200: 36.364 | H200: 0
A201: Milchleist.futter, 38 % RP, EnergieStufe 3 | B201: 43.1875 | C201: 6.0808 | D201: 1.83261672 | E201: 88 | F201: 38.005 | G201: 43.1875 | H201: 0
A202: Mineralfutter Geflügel | B202: 8.421 | C202: 1.279992 | D202: 16.0360836 | E202: 95 | F202: 7.99995 | G202: 8.421 | H202: 0
A203: Mineralfutter Pferde | B203: 0 | C203: 0 | D203: 11.45465635 | E203: 95 | F203: 0 | G203: 0 | H203: 0
A204: Mineralfutter Rind, Milchkuh, 12 % Ca, 0 % P | B204: 0 | C204: 0 | D204: 0 | E204: 95 | F204: 0 | G204: 0 | H204: 0
A205: Mineralfutter Rind, Milchkuh, 12 % Ca, 8 % P | B205: 0 | C205: 0 | D205: 18.32788545 | E205: 95 | F205: 0 | G205: 0 | H205: 0
A206: Mineralfutter Rind, Milchkuh, 20 % Ca, 5 % P | B206: 0 | C206: 0 | D206: 11.45465635 | E206: 95 | F206: 0 | G206: 0 | H206: 0
A207: Mineralfutter Rind, Milchkuh, 22 % Ca, 2 % P | B207: 0 | C207: 0 | D207: 4.58142725 | E207: 95 | F207: 0 | G207: 0 | H207: 0
A208: Mineralfutter Schafe | B208: 0 | C208: 0 | D208: 13.7464582 | E208: 95 | F208: 0 | G208: 0 | H208: 0
A209: Mineralfutter, Rindermast 22 % Ca, 2 % P | B209: 0 | C209: 0 | D209: 4.3605 | E209: 95 | F209: 0 | G209: 0 | H209: 0
A210: Mineralfutter, Rindermast 22 % Ca, 0 % P | B210: 0 | C210: 0 | D210: 0 | E210: 95 | F210: 0 | G210: 0 | H210: 0
... 270 more rows

Sheet Futtermittel unsortiert (hidden)
F1: Tabelle 7: Nährstoffgehalte von Ernteprodukten, Futtermitteln und Bioagssubstraten
F2: (Stand: November 2018)
H3: Nährstoffgehalt | P3: Nährstoffgehalt | W3: Roh- | X3: Grob- | Y3: Quelle | Z3: Code Grub
A4: Ernteprodukt | B4: Futtermittel | C4: Frucharten- | D4: Sortierung | E4: erzeugt | G4: Programmname | H4: in kg/dt TM | O4: TM | P4: in kg/dt FM | W4: protein | X4: futter | Y4: FutMit | Z4: FutMit
C5: gruppe | D5: FutMit | E5: auf | H5: N | I5: P2O5 | J5: P | K5: K2O | L5: K | M5: MgO | N5: S | O5: in % | P5: N | Q5: P2O5 | R5: P | S5: K2O | T5: K | U5: MgO | V5: S | W5: % in TM
G6: --
C7: 1 | F7: Getreide | G7: +++Getreide+++ | Y7: 1a
A8: 1 | B8: 2 | C8: 1 | D8: 1 | E8: Acker | G8: Winterweizen C-Sorte | H8: =+P8/$O8*100 -> 2.104651163 | I8: 0.9302325581 | J8: 0.4069767442 | K8: 0.6395348837 | L8: 0.5307343433 | M8: 0.2325581395 | N8: 0.168372093 | O8: 86 | P8: 1.81 | Q8: 0.8 | R8: 0.35 | S8: 0.55 | T8: 0.4564315353 | U8: 0.2 | V8: 0.1448 | W8: 12 | Y8: 1a
A9: 1 | B9: 2 | C9: 1 | D9: 1 | E9: Acker | G9: Winterweizen A/B-Sorte | H9: 2.453488372 | I9: 0.9302325581 | J9: 0.4069767442 | K9: 0.6395348837 | L9: 0.5307343433 | M9: 0.2325581395 | N9: 0.1534883721 | O9: 86 | P9: 2.11 | Q9: 0.8 | R9: 0.35 | S9: 0.55 | T9: 0.4564315353 | U9: 0.2 | V9: 0.132 | W9: 14 | X9: =+IF(B9=1,"ja","") ->  | Y9: 1a
A10: 1 | B10: 2 | C10: 1 | D10: 1 | E10: Acker | G10: Winterweizen E-Sorte | H10: 2.802325581 | I10: 0.9302325581 | J10: 0.4069767442 | K10: 0.6395348837 | L10: 0.5307343433 | M10: 0.2325581395 | N10: 0.2241860465 | O10: 86 | P10: 2.41 | Q10: 0.8 | R10: 0.35 | S10: 0.55 | T10: 0.4564315353 | U10: 0.2 | V10: 0.1928 | W10: 16 | Y10: 1a
A11: 1 | B11: 2 | C11: 1 | D11: 1 | E11: Acker | G11: Winterbrauweizen | H11: 2.104651163 | I11: 0.8720930233 | J11: 0.4069767442 | K11: 0.6395348837 | L11: 0.5348837209 | M11: 0.2325581395 | N11: 0.1627906977 | O11: 86 | P11: 1.81 | Q11: 0.75 | R11: 0.35 | S11: 0.55 | T11: 0.46 | U11: 0.2 | V11: 0.14 | W11: 12 | Y11: 1a
A12: 1 | B12: 2 | C12: 1 | D12: 1 | E12: Acker | G12: Sommerweizen | H12: 2.453488372 | I12: 0.8720930233 | J12: 0.4069767442 | K12: 0.6395348837 | L12: 0.5307343433 | M12: 0.2325581395 | N12: 0.1534883721 | O12: 86 | P12: 2.11 | Q12: 0.75 | R12: 0.35 | S12: 0.55 | T12: 0.4564315353 | U12: 0.2 | V12: 0.132 | W12: 14 | Y12: 1a
A13: 2 | B13: 1 | C13: 1 | D13: 16 | E13: Acker | G13: Weizenstroh | H13: 0.5813953488 | I13: 0.3488372093 | J13: 0.1511627907 | K13: 1.627906977 | L13: 1.350960147 | M13: 0.2325581395 | N13: 0.1 | O13: 86 | P13: 0.5 | Q13: 0.3 | R13: 0.13 | S13: 1.4 | T13: 1.161825726 | U13: 0.2 | V13: 0.086 | X13: =+IF(B13=1,"ja","") -> ja | Y13: 1a
A14: 1 | B14: 2 | C14: 1 | D14: 1 | E14: Acker | G14: Wintergerste | H14: 1.918604651 | I14: 0.9302325581 | J14: 0.4069767442 | K14: 0.6976744186 | L14: 0.57898292 | M14: 0.2325581395 | N14: 0.1534883721 | O14: 86 | P14: 1.65 | Q14: 0.8 | R14: 0.35 | S14: 0.6 | T14: 0.4979253112 | U14: 0.2 | V14: 0.132 | W14: 12 | Y14: 1a
A15: 1 | B15: 2 | C15: 1 | D15: 1 | E15: Acker | G15: Winterbraugerste | H15: 1.755813953 | I15: 0.9302325581 | J15: 0.4069767442 | K15: 0.6976744186 | L15: 0.5813953488 | M15: 0.2325581395 | N15: 0.1395348837 | O15: 86 | P15: 1.51 | Q15: 0.8 | R15: 0.35 | S15: 0.6 | T15: 0.5 | U15: 0.2 | V15: 0.12 | W15: 11 | Y15: 1a
A16: 1 | B16: 2 | C16: 1 | D16: 1 | E16: Acker | G16: Sommerfuttergerste | H16: 1.918604651 | I16: 0.9302325581 | J16: 0.4069767442 | K16: 0.6976744186 | L16: 0.57898292 | M16: 0.2325581395 | N16: 0.1534883721 | O16: 86 | P16: 1.65 | Q16: 0.8 | R16: 0.35 | S16: 0.6 | T16: 0.4979253112 | U16: 0.2 | V16: 0.132 | W16: 12 | Y16: 1a
A17: 1 | B17: 2 | C17: 1 | D17: 1 | E17: Acker | G17: Sommerbraugerste | H17: 1.604651163 | I17: 0.9302325581 | J17: 0.4069767442 | K17: 0.6976744186 | L17: 0.57898292 | M17: 0.2325581395 | N17: 0.128372093 | O17: 86 | P17: 1.38 | Q17: 0.8 | R17: 0.35 | S17: 0.6 | T17: 0.4979253112 | U17: 0.2 | V17: 0.1104 | W17: 10 | Y17: 1a
A18: 2 | B18: 1 | C18: 1 | D18: 16 | E18: Acker | G18: Gerstenstroh | H18: 0.5813953488 | I18: 0.3488372093 | J18: 0.1511627907 | K18: 1.976744186 | L18: 1.640451607 | M18: 0.1162790698 | N18: 0.04651162791 | O18: 86 | P18: 0.5 | Q18: 0.3 | R18: 0.13 | S18: 1.7 | T18: 1.410788382 | U18: 0.1 | V18: 0.04 | X18: =+IF(B18=1,"ja","") -> ja | Y18: 1a
A19: 1 | B19: 2 | C19: 1 | D19: 1 | E19: Acker | G19: Winterroggen | H19: 1.755813953 | I19: 0.9302325581 | J19: 0.4069767442 | K19: 0.6976744186 | L19: 0.57898292 | M19: 0.1162790698 | N19: 0.1404651163 | O19: 86 | P19: 1.51 | Q19: 0.8 | R19: 0.35 | S19: 0.6 | T19: 0.4979253112 | U19: 0.1 | V19: 0.1208 | W19: 11 | Y19: 1a
A20: 1 | B20: 2 | C20: 1 | D20: 1 | E20: Acker | G20: Sommerroggen | H20: 1.755813953 | I20: 0.9302325581 | J20: 0.4060377818 | K20: 0.6976744186 | L20: 0.57898292 | M20: 0.1162790698 | N20: 0.1404651163 | O20: 86 | P20: 1.51 | Q20: 0.8 | R20: 0.3491924924 | S20: 0.6 | T20: 0.4979253112 | U20: 0.1 | V20: 0.1208 | W20: 11 | Y20: 1a
A21: 2 | B21: 1 | C21: 1 | D21: 16 | E21: Acker | G21: Roggenstroh | H21: 0.5813953488 | I21: 0.3488372093 | J21: 0.1511627907 | K21: 2.325581395 | L21: 1.929943067 | M21: 0.2325581395 | N21: 0.04651162791 | O21: 86 | P21: 0.5 | Q21: 0.3 | R21: 0.13 | S21: 2 | T21: 1.659751037 | U21: 0.2 | V21: 0.04 | X21: =+IF(B21=1,"ja","") -> ja | Y21: 1a
A22: 1 | B22: 2 | C22: 1 | D22: 1 | E22: Acker | G22: Hafer | H22: 1.755813953 | I22: 0.9302325581 | J22: 0.4069767442 | K22: 0.6976744186 | L22: 0.57898292 | M22: 0.2325581395 | N22: 0.1404651163 | O22: 86 | P22: 1.51 | Q22: 0.8 | R22: 0.35 | S22: 0.6 | T22: 0.4979253112 | U22: 0.2 | V22: 0.1208 | W22: 11 | Y22: 1a
A23: 2 | B23: 1 | C23: 1 | D23: 16 | E23: Acker | G23: Haferstroh | H23: 0.5813953488 | I23: 0.3488372093 | J23: 0.1511627907 | K23: 1.976744186 | L23: 1.640451607 | M23: 0.2325581395 | N23: 0.04651162791 | O23: 86 | P23: 0.5 | Q23: 0.3 | R23: 0.13 | S23: 1.7 | T23: 1.410788382 | U23: 0.2 | V23: 0.04 | X23: ja | Y23: 1a
A24: 1 | B24: 2 | C24: 1 | D24: 1 | E24: Acker | G24: Triticale | H24: =+P24/$O24*100 -> 1.918604651 | I24: 0.9302325581 | J24: 0.4069767442 | K24: 0.6976744186 | L24: 0.57898292 | M24: 0.2325581395 | N24: 0.1534883721 | O24: 86 | P24: 1.65 | Q24: 0.8 | R24: 0.35 | S24: 0.6 | T24: 0.4979253112 | U24: 0.2 | V24: 0.132 | W24: 12 | Y24: 1a
A25: 1 | B25: 2 | C25: 1 | D25: 1 | E25: Acker | G25: Dinkel | H25: 1.918604651 | I25: 0.9302325581 | J25: 0.4060377818 | K25: 0.9302325581 | L25: 0.7719772267 | M25: 0.2325581395 | N25: 0.1488372093 | O25: 86 | P25: 1.65 | Q25: 0.8 | R25: 0.3491924924 | S25: 0.8 | T25: 0.6639004149 | U25: 0.2 | V25: 0.128 | W25: 12 | Y25: 1a
A26: 1 | B26: 2 | C26: 1 | D26: 1 | E26: Acker | G26: Emmer/Einkorn | H26: 2.104651163 | I26: 0.8720930233 | J26: 0.3806604205 | K26: 0.6395348837 | L26: 0.5307343433 | M26: 0.2325581395 | N26: 0.168372093 | O26: 86 | P26: 1.81 | Q26: 0.75 | R26: 0.3273679616 | S26: 0.55 | T26: 0.4564315353 | U26: 0.2 | V26: 0.1448 | W26: 12 | Y26: 1a
A27: 1 | B27: 2 | C27: 1 | D27: 1 | E27: Acker | G27: Hartweizen (Durum) | H27: 2.104651163 | I27: 0.9302325581 | J27: 0.4060377818 | K27: 0.6976744186 | L27: 0.57898292 | M27: 0.2325581395 | N27: 0.168372093 | O27: 86 | P27: 1.81 | Q27: 0.8 | R27: 0.3491924924 | S27: 0.6 | T27: 0.4979253112 | U27: 0.2 | V27: 0.1448 | W27: 12 | X27: =+IF(B27=1,"ja","") ->  | Y27: 1a
A28: 1 | B28: 2 | C28: 1 | D28: 1 | E28: Acker | G28: Buchweizen | H28: 2.709302326 | I28: 0.7558139535 | J28: 0.3299056977 | K28: 0.5813953488 | L28: 0.4824857667 | M28: 0.3488372093 | N28: 0.1581395349 | O28: 86 | P28: 2.33 | Q28: 0.65 | R28: 0.2837189 | S28: 0.5 | T28: 0.4149377593 | U28: 0.3 | V28: 0.136 | W28: 16.93313953 | X28: =+IF(B28=1,"ja","") ->  | Y28: 1a
B29: 0 | C29: 16 | D29: 1 | E29: Acker | F29: Körnermais, sonstige Körnernutzung | G29: ++++Körnermais, sonstige Körnernutzung+++ | X29: =+IF(B29=1,"ja","") ->  | Y29: 1a
A30: 1 | B30: 2 | C30: 16 | D30: 1 | E30: Acker | G30: Körnermais | H30: 1.604651163 | I30: 0.9302325581 | J30: 0.4069767442 | K30: 0.5813953488 | L30: 0.4824857667 | M30: 0.2325581395 | N30: 0.1534883721 | O30: 86 | P30: 1.38 | Q30: 0.8 | R30: 0.35 | S30: 0.5 | T30: 0.4149377593 | U30: 0.2 | V30: 0.132 | W30: 10 | Y30: 1a
A31: 2 | B31: 1 | C31: 16 | D31: 16 | E31: Acker | G31: Körnermaisstroh | H31: 1.046511628 | I31: 0.2325581395 | J31: 0.1046511628 | K31: 2.325581395 | L31: 1.929943067 | M31: 0.4651162791 | N31: 0.08372093023 | O31: 86 | P31: 0.9 | Q31: 0.2 | R31: 0.09 | S31: 2 | T31: 1.659751037 | U31: 0.4 | V31: 0.072 | X31: ja | Y31: 1a
A32: 1 | B32: 2 | C32: 16 | D32: 1 | E32: Acker | G32: Hirse | H32: 2.720930233 | I32: 1.034883721 | J32: 0.4517170323 | K32: 0.5813953488 | L32: 0.4824857667 | M32: 0.3488372093 | N32: 0.1581395349 | O32: 86 | P32: 2.34 | Q32: 0.89 | R32: 0.3884766478 | S32: 0.5 | T32: 0.4149377593 | U32: 0.3 | V32: 0.136 | W32: 17.00581395 | Y32: 1a
A33: 1 | B33: 2 | C33: 16 | D33: 1 | E33: Acker | G33: Amarant | H33: 2.720930233 | I33: 1.034883721 | J33: 0.4517170323 | K33: 0.5813953488 | L33: 0.4824857667 | M33: 0.3488372093 | N33: 0.1581395349 | O33: 86 | P33: 2.34 | Q33: 0.89 | R33: 0.3884766478 | S33: 0.5 | T33: 0.4149377593 | U33: 0.3 | V33: 0.136 | W33: 17.00581395 | Y33: 1a
A34: 1 | B34: 2 | C34: 16 | D34: 1 | E34: Acker | G34: Quinoa | H34: 2.604651163 | I34: 1.093023256 | J34: 0.4770943936 | K34: 1.104651163 | L34: 0.9167229567 | M34: 0.3720930233 | N34: 0.1627906977 | O34: 86 | P34: 2.24 | Q34: 0.94 | R34: 0.4103011785 | S34: 0.95 | T34: 0.7883817427 | U34: 0.32 | V34: 0.14 | W34: 16.27906977 | Y34: 1a
B35: 0 | C35: 2 | D35: 2 | E35: Acker | F35: Körnerleguminosen | G35: +++Körnerleguminosen+++ | Y35: 1a
A36: 1 | B36: 2 | C36: 2 | D36: 2 | E36: Acker | G36: Ackerbohnen | H36: 4.76744186 | I36: 1.395348837 | J36: 0.6046511628 | K36: 1.627906977 | L36: 1.350960147 | M36: 0.2325581395 | N36: 0.2046511628 | O36: 86 | P36: 4.1 | Q36: 1.2 | R36: 0.52 | S36: 1.4 | T36: 1.161825726 | U36: 0.2 | V36: 0.176 | W36: 29.8 | X36: =+IF(B36=1,"ja","") ->  | Y36: 1a
A37: 1 | B37: 2 | C37: 2 | D37: 2 | E37: Acker | G37: Erbsen | H37: 4.186046512 | I37: 1.279069767 | J37: 0.5581395349 | K37: 1.627906977 | L37: 1.350960147 | M37: 0.2325581395 | N37: 0.2046511628 | O37: 86 | P37: 3.6 | Q37: 1.1 | R37: 0.48 | S37: 1.4 | T37: 1.161825726 | U37: 0.2 | V37: 0.176 | W37: 26 | Y37: 1a
A38: 1 | B38: 2 | C38: 2 | D38: 2 | E38: Acker | G38: Wicken | H38: 4.186046512 | I38: 1.279069767 | J38: 0.55830195 | K38: 1.627906977 | L38: 1.350960147 | M38: 0.2325581395 | N38: 0.2046511628 | O38: 86 | P38: 3.6 | Q38: 1.1 | R38: 0.480139677 | S38: 1.4 | T38: 1.161825726 | U38: 0.2 | V38: 0.176 | W38: 26 | Y38: 1a
A39: 1 | B39: 2 | C39: 2 | D39: 2 | E39: Acker | G39: Lupinen blau | H39: 5.209302326 | I39: 1.186046512 | J39: 0.523255814 | K39: 1.151162791 | L39: 0.955321818 | M39: 0.2325581395 | N39: 0.2046511628 | O39: 86 | P39: 4.48 | Q39: 1.02 | R39: 0.45 | S39: 0.99 | T39: 0.8215767635 | U39: 0.2 | V39: 0.176 | W39: 33 | Y39: 1a
A40: 1 | B40: 2 | C40: 2 | D40: 2 | E40: Acker | G40: Linsen | H40: 4.16 | I40: 1.279069767 | J40: 0.55830195 | K40: 1.627906977 | L40: 1.350960147 | M40: 0.2325581395 | N40: 0.2046511628 | O40: 86 | P40: 3.5776 | Q40: 1.1 | R40: 0.480139677 | S40: 1.4 | T40: 1.161825726 | U40: 0.2 | V40: 0.176 | W40: 26 | Y40: 1a
A41: 1 | B41: 2 | C41: 2 | D41: 2 | E41: Acker | G41: Sojabohnen | H41: 5.11627907 | I41: 1.744186047 | J41: 0.7674418605 | K41: 1.976744186 | L41: 1.640451607 | M41: 0.5813953488 | N41: 0.4348837209 | O41: 86 | P41: 4.4 | Q41: 1.5 | R41: 0.66 | S41: 1.7 | T41: 1.410788382 | U41: 0.5 | V41: 0.374 | W41: 32 | Y41: 1a
B42: 0 | C42: 3 | D42: 3 | E42: Acker | F42: Ölfrüchte und Faserpflanzen | G42: +++Ölfrüchte und Faserpflanzen+++ | Y42: 1a
A43: 1 | B43: 2 | C43: 3 | D43: 3 | E43: Acker | G43: Raps | H43: 3.681318681 | I43: 1.978021978 | J43: 0.8571428571 | K43: 1.098901099 | L43: 0.9119511194 | M43: 0.5494505495 | N43: 0.450989011 | O43: 91 | P43: 3.35 | Q43: 1.8 | R43: 0.78 | S43: 1 | T43: 0.8298755187 | U43: 0.5 | V43: 0.4104 | W43: 23 | X43: =+IF(B43=1,"ja","") ->  | Y43: 1a
A44: 1 | B44: 2 | C44: 3 | D44: 3 | E44: Acker | G44: Rübsen | H44: 3.681318681 | I44: 1.978021978 | J44: 0.8633880306 | K44: 1.098901099 | L44: 0.9119511194 | M44: 0.5494505495 | N44: 0.450989011 | O44: 91 | P44: 3.35 | Q44: 1.8 | R44: 0.7856831078 | S44: 1 | T44: 0.8298755187 | U44: 0.5 | V44: 0.4104 | W44: 23 | Y44: 1a
A45: 1 | B45: 2 | C45: 3 | D45: 3 | E45: Acker | G45: Sonnenblumen | H45: 3.197802198 | I45: 1.758241758 | J45: 0.7692307692 | K45: 2.637362637 | L45: 2.188682687 | M45: 0.6593406593 | N45: 0.2901098901 | O45: 91 | P45: 2.91 | Q45: 1.6 | R45: 0.7 | S45: 2.4 | T45: 1.991701245 | U45: 0.6 | V45: 0.264 | W45: 20 | Y45: 1a
A46: 1 | B46: 2 | C46: 3 | D46: 3 | E46: Acker | G46: Körnersenf | H46: 5.582417582 | I46: 1.945054945 | J46: 0.8461538462 | K46: 1.021978022 | L46: 0.8461538462 | M46: 0.3296703297 | N46: 0.4505494505 | O46: 91 | P46: 5.08 | Q46: 1.77 | R46: 0.77 | S46: 0.93 | T46: 0.77 | U46: 0.3 | V46: 0.41 | W46: 35 | Y46: 1a
A47: 1 | B47: 2 | C47: 3 | D47: 3 | E47: Acker | G47: Öllein, Faserflachs | H47: 3.846153846 | I47: 1.318681319 | J47: 0.5714285714 | K47: 1.098901099 | L47: 0.9119511194 | M47: 0.8791208791 | N47: 0.2 | O47: 91 | P47: 3.5 | Q47: 1.2 | R47: 0.52 | S47: 1 | T47: 0.8298755187 | U47: 0.8 | V47: 0.182 | W47: 24 | Y47: 1a
A48: 1 | B48: 2 | C48: 3 | D48: 3 | E48: Acker | G48: Leindotter | H48: 3.846153846 | I48: 1.318681319 | J48: 0.5755920204 | K48: 1.098901099 | L48: 0.9119511194 | M48: 0.8791208791 | N48: 0.2 | O48: 91 | P48: 3.5 | Q48: 1.2 | R48: 0.5237887385 | S48: 1 | T48: 0.8298755187 | U48: 0.8 | V48: 0.182 | W48: 24 | Y48: 1a
A49: 3 | B49: 1 | C49: 4 | D49: 3 | E49: Acker | G49: Flachs (Faserlein) | O49: 86 | P49: 1 | Q49: 0.64 | R49: 0.28 | S49: 1.71 | T49: 1.42 | U49: 0.1 | V49: 0.08 | Y49: 1a
A50: 3 | B50: 1 | C50: 4 | D50: 3 | E50: Acker | G50: Hanf | H50: 1 | I50: 0.75 | J50: 0.325 | K50: 2 | L50: 1.659751037 | M50: 0.9 | N50: 0.08 | O50: 40 | P50: 0.4 | Q50: 0.3 | R50: 0.13 | S50: 0.8 | T50: 0.6639004149 | U50: 0.36 | V50: 0.032 | Y50: 1a
B51: 0 | C51: 5 | D51: 4 | E51: Acker | F51: Hackfrüchte | G51: +++Hackfrüchte+++ | Y51: 1a
A52: 1 | B52: 2 | C52: 5 | D52: 4 | E52: Acker | G52: Kartoffel | H52: 1.590909091 | I52: 0.6363636364 | J52: 0.2727272727 | K52: 2.727272727 | L52: 2.263296869 | M52: 0.1818181818 | N52: 0.2 | O52: 22 | P52: 0.35 | Q52: 0.14 | R52: 0.06 | S52: 0.6 | T52: 0.4979253112 | U52: 0.04 | V52: 0.044 | X52: =+IF(B52=1,"ja","") ->  | Y52: 1a
A53: 1 | B53: 2 | C53: 5 | D53: 4 | E53: Acker | G53: Zuckerrüben | H53: 0.7826086957 | I53: 0.4347826087 | J53: 0.1739130435 | K53: 1.086956522 | L53: 0.9020386073 | M53: 0.347826087 | N53: 0.2 | O53: 23 | P53: 0.18 | Q53: 0.1 | R53: 0.04 | S53: 0.25 | T53: 0.2074688797 | U53: 0.08 | V53: 0.046 | Y53: 1a
A54: 2 | B54: 1 | C54: 5 | D54: 7 | E54: Acker | G54: Zuckerrübenblatt | H54: 2.222222222 | I54: 0.6111111111 | J54: 0.2777777778 | K54: 3.944444444 | L54: 3.273397879 | M54: 0.5555555556 | N54: 0.4622222222 | O54: 18 | P54: 0.4 | Q54: 0.11 | R54: 0.05 | S54: 0.71 | T54: 0.5892116183 | U54: 0.1 | V54: 0.0832 | X54: ja | Y54: 1a
A55: 1 | B55: 2 | C55: 5 | D55: 4 | E55: Acker | G55: Futter-, Runkelrüben | H55: 1.2 | I55: 0.6 | J55: 0.2666666667 | K55: 3.333333333 | L55: 2.766251729 | M55: 0.3333333333 | N55: 0.1946666667 | O55: 15 | P55: 0.18 | Q55: 0.09 | R55: 0.04 | S55: 0.5 | T55: 0.4149377593 | U55: 0.05 | V55: 0.0292 | Y55: 1a
A56: 1 | B56: 2 | C56: 5 | D56: 4 | E56: Acker | G56: Kohl-, Steckrüben | H56: 1.166666667 | I56: 0.5833333333 | J56: 0.25 | K56: 3.75 | L56: 3.112033195 | M56: 0.4166666667 | N56: 0.1833333333 | O56: 12 | P56: 0.14 | Q56: 0.07 | R56: 0.03 | S56: 0.45 | T56: 0.3734439834 | U56: 0.05 | V56: 0.022 | Y56: 1a
B57: 0 | C57: 6 | D57: 5 | E57: Acker | F57: Mehrschnittiger Feldfutterbau | G57: +++Mehrschnittiger Feldfutterbau+++ | Y57: 1a
A58: 3 | B58: 1 | C58: 6 | D58: 5 | E58: Acker | G58: Esparsette | H58: 3.25 | I58: 0.7 | J58: 0.3055434308 | K58: 3.25 | L58: 2.697095436 | M58: 0.35 | N58: 0.33 | O58: 20 | P58: 0.65 | Q58: 0.14 | R58: 0.06110868616 | S58: 0.65 | T58: 0.5394190871 | U58: 0.07 | V58: 0.066 | W58: 20.3 | X58: =+IF(B58=1,"ja","") -> ja | Y58: 1a
A59: 3 | B59: 1 | C59: 6 | D59: 5 | E59: Acker | G59: Ackergras 3-4 Schnitte/Jahr | H59: 2.6 | I59: 0.8 | J59: 0.3491924924 | K59: 3.25 | L59: 2.697095436 | M59: 0.4 | N59: 0.3 | O59: 20 | P59: 0.52 | Q59: 0.16 | R59: 0.06983849847 | S59: 0.65 | T59: 0.5394190871 | U59: 0.08 | V59: 0.06 | W59: 16.2 | X59: ja | Y59: 1a
A60: 3 | B60: 1 | C60: 6 | D60: 5 | E60: Acker | G60: Ackergras 5 Schnitte/Jahr | H60: 2.65 | I60: 0.8 | J60: 0.35 | K60: 3.6 | L60: 2.987551867 | M60: 0.4 | N60: 0.3 | O60: 20 | P60: 0.53 | Q60: 0.16 | R60: 0.07 | S60: 0.72 | T60: 0.5975103734 | U60: 0.08 | V60: 0.06 | W60: 16.6 | X60: ja | Y60: 1a
A61: 3 | B61: 1 | C61: 6 | D61: 5 | E61: Acker | G61: Kleegras (Kleeanteil 30 %) | H61: 2.8 | I61: 0.75 | J61: 0.3273679616 | K61: 3.35 | L61: 2.780082988 | M61: 0.4 | N61: 0.35 | O61: 20 | P61: 0.56 | Q61: 0.15 | R61: 0.06547359232 | S61: 0.67 | T61: 0.5560165975 | U61: 0.08 | V61: 0.07 | W61: 17.6 | X61: ja | Y61: 1a
A62: 3 | B62: 1 | C62: 6 | D62: 5 | E62: Acker | G62: Kleegras (Kleeanteil 50 %) | H62: 2.9 | I62: 0.7 | J62: 0.3 | K62: 3.25 | L62: 2.697095436 | M62: 0.45 | N62: 0.35 | O62: 20 | P62: 0.58 | Q62: 0.14 | R62: 0.06 | S62: 0.65 | T62: 0.5394190871 | U62: 0.09 | V62: 0.07 | W62: 18.2 | X62: ja | Y62: 1a
A63: 3 | B63: 1 | C63: 6 | D63: 5 | E63: Acker | G63: Kleegras (Kleeanteil 70 %) | H63: 3.05 | I63: 0.7 | J63: 0.3055434308 | K63: 3.25 | L63: 2.697095436 | M63: 0.45 | N63: 0.35 | O63: 20 | P63: 0.61 | Q63: 0.14 | R63: 0.06110868616 | S63: 0.65 | T63: 0.5394190871 | U63: 0.09 | V63: 0.07 | W63: 19.2 | X63: ja | Y63: 1a
A64: 3 | B64: 1 | C64: 6 | D64: 5 | E64: Acker | G64: Luzernegras (Luz.anteil 30 %) | H64: 2.8 | I64: 0.75 | J64: 0.3273679616 | K64: 3.25 | L64: 2.697095436 | M64: 0.4 | N64: 0.35 | O64: 20 | P64: 0.56 | Q64: 0.15 | R64: 0.06547359232 | S64: 0.65 | T64: 0.5394190871 | U64: 0.08 | V64: 0.07 | W64: 17.6 | X64: ja | Y64: 1a
A65: 3 | B65: 1 | C65: 6 | D65: 5 | E65: Acker | G65: Luzernegras (Luz.anteil 50 %) | H65: 2.9 | I65: 0.75 | J65: 0.35 | K65: 3.25 | L65: 2.697095436 | M65: 0.45 | N65: 0.35 | O65: 20 | P65: 0.58 | Q65: 0.15 | R65: 0.07 | S65: 0.65 | T65: 0.5394190871 | U65: 0.09 | V65: 0.07 | W65: 18.2 | X65: ja | Y65: 1a
A66: 3 | B66: 1 | C66: 6 | D66: 5 | E66: Acker | G66: Luzernegras (Luz.anteil 70 %) | H66: 3.05 | I66: 0.7 | J66: 0.3055434308 | K66: =+S66/$O66*100 -> 3.25 | L66: 2.697095436 | M66: 0.45 | N66: 0.35 | O66: 20 | P66: 0.61 | Q66: 0.14 | R66: 0.06110868616 | S66: 0.65 | T66: 0.5394190871 | U66: 0.09 | V66: 0.07 | W66: 19.2 | X66: ja | Y66: 1a
A67: 3 | B67: 1 | C67: 6 | D67: 5 | E67: Acker | G67: Rotklee | H67: =+P67/$O67*100 -> 3.25 | I67: 0.65 | J67: 0.65 | K67: 3.25 | L67: 2.697095436 | M67: 0.5 | N67: 0.35 | O67: 20 | P67: 0.65 | Q67: 0.13 | R67: 0.13 | S67: 0.65 | T67: 0.5394190871 | U67: 0.1 | V67: 0.07 | W67: 20.46 | X67: ja | Y67: 1a
A68: 3 | B68: 1 | C68: 6 | D68: 5 | E68: Acker | G68: Luzerne | H68: 3.25 | I68: 0.7 | J68: 0.3 | K68: 3.25 | L68: 2.697095436 | M68: 0.45 | N68: 0.35 | O68: 20 | P68: 0.65 | Q68: 0.14 | R68: 0.06 | S68: 0.65 | T68: 0.5394190871 | U68: 0.09 | V68: 0.07 | W68: 20.46 | X68: ja | Y68: 1a
B69: 0 | C69: 7 | D69: 5 | E69: Acker | F69: Futterpflanzen | G69: +++Futterpflanzen+++ | Y69: 1a
A70: 3 | B70: 1 | C70: 7 | D70: 5 | E70: Acker | G70: Silomais (28 % TM) | H70: 1.357142857 | I70: 0.5714285714 | J70: 0.25 | K70: 1.607142857 | L70: 1.333728512 | M70: 0.3214285714 | N70: 0.08571428571 | O70: 28 | P70: 0.38 | Q70: 0.16 | R70: 0.07 | S70: 0.45 | T70: 0.3734439834 | U70: 0.09 | V70: 0.024 | X70: =+IF(B70=1,"ja","") -> ja | Y70: 1a
A71: 3 | B71: 1 | C71: 7 | D71: 5 | E71: Acker | G71: Silomais (32 % TM) | H71: 1.34375 | I71: 0.53125 | J71: 0.2318856395 | K71: 1.59375 | L71: 1.322614108 | M71: 0.3125 | N71: 0.08125 | O71: 32 | P71: 0.43 | Q71: 0.17 | R71: 0.07420340463 | S71: 0.51 | T71: 0.4232365145 | U71: 0.1 | V71: 0.026 | X71: ja | Y71: 1a
A72: 3 | B72: 1 | C72: 7 | D72: 5 | E72: Acker | G72: Silomais (35 % TM) | H72: 1.34375 | I72: 0.5142857143 | J72: 0.2285714286 | K72: 1.59375 | L72: =+T72/$O72*100 -> 1.322614108 | M72: 0.3125 | N72: 0.08571428571 | O72: 35 | P72: 0.4703125 | Q72: 0.18 | R72: 0.08 | S72: 0.5578125 | T72: 0.4629149378 | U72: 0.109375 | V72: 0.03 | X72: ja | Y72: 1a
A73: 3 | B73: 2 | C73: 7 | D73: 5 | E73: Acker | G73: CCM | H73: 1.68 | I73: 0.68 | J73: 0.3 | K73: 0.6 | L73: =+T73/$O73*100 -> 0.4979253112 | M73: =+U73/$O73*100 -> 0.1666666667 | N73: 0.15 | O73: 60 | P73: =+H73/100*$O73 -> 1.008 | Q73: =+I73/100*$O73 -> 0.408 | R73: 0.18 | S73: 0.36 | T73: =+S73/1.205 -> 0.2987551867 | U73: 0.1 | V73: 0.09 | W73: 10.5 | Y73: 1a
A74: 3 | B74: 2 | C74: 7 | D74: 5 | E74: Acker | G74: Lieschkolbensilage | H74: 1.52 | I74: 0.64 | J74: 0.2793539939 | K74: 0.72 | L74: 0.5975103734 | M74: 0.2 | N74: 0.15 | O74: 50 | P74: 0.76 | Q74: 0.32 | R74: 0.1396769969 | S74: 0.36 | T74: 0.2987551867 | U74: 0.1 | V74: 0.075 | Y74: 1a
A75: 3 | B75: 1 | C75: 7 | D75: 5 | E75: Acker | G75: GPS Getreide | H75: 1.6 | I75: 0.66 | J75: 0.29 | K75: 1.342857143 | L75: 1.114404268 | M75: 0.2857142857 | N75: 0.1714285714 | O75: 35 | P75: =+H75/100*$O75 -> 0.56 | Q75: =+I75/100*$O75 -> 0.231 | R75: 0.1 | S75: 0.47 | T75: 0.3900414938 | U75: 0.1 | V75: 0.06 | W75: 10 | X75: ja | Y75: 1a
A76: 3 | B76: 1 | C76: 7 | D76: 5 | E76: Acker | G76: GPS Lupinen | H76: 1.6 | I76: 0.6571428571 | J76: 0.2868366902 | K76: 1.342857143 | L76: 1.114404268 | M76: 0.2857142857 | N76: 0.2 | O76: 35 | P76: 0.56 | Q76: 0.23 | R76: 0.1003928416 | S76: 0.47 | T76: 0.3900414938 | U76: 0.1 | V76: 0.07 | X76: ja | Y76: 1a
A77: 3 | B77: 1 | C77: 7 | D77: 5 | E77: Acker | G77: GPS Erbsen/Ackerbohne | H77: 1.6 | I77: 0.6571428571 | J77: 0.2868366902 | K77: 1.342857143 | L77: 1.114404268 | M77: 0.2857142857 | N77: 0.2 | O77: 35 | P77: 0.56 | Q77: 0.23 | R77: 0.1003928416 | S77: 0.47 | T77: 0.3900414938 | U77: 0.1 | V77: 0.07 | X77: ja | Y77: 1a
A78: 3 | B78: 1 | C78: 7 | D78: 5 | E78: Acker | G78: GPS Sonnenblumen | H78: 1.34 | I78: 0.56 | J78: 0.25 | K78: 1.59375 | L78: 1.322614108 | M78: 0.3125 | N78: 0.08571428571 | O78: 35 | P78: =+H78/100*$O78 -> 0.469 | Q78: =+I78/100*$O78 -> 0.196 | R78: 0.08593408992 | S78: 0.5578125 | T78: 0.4629149378 | U78: 0.109375 | V78: 0.03 | W78: 8.4 | X78: ja | Y78: 1a
A79: 3 | B79: 1 | C79: 7 | D79: 5 | E79: Acker | G79: GPS Rübsen | H79: =+P79/$O79*100 -> 1.6 | I79: 0.6571428571 | J79: 0.2868366902 | K79: 1.342857143 | L79: 1.114404268 | M79: 0.2857142857 | N79: 0.1714285714 | O79: 35 | P79: 0.56 | Q79: 0.23 | R79: 0.1003928416 | S79: 0.47 | T79: 0.3900414938 | U79: 0.1 | V79: 0.06 | X79: ja | Y79: 1a
A80: 3 | B80: 1 | C80: 7 | D80: 5 | E80: Acker | G80: GPS Wicken | H80: 1.6 | I80: 0.6571428571 | J80: 0.2857142857 | K80: 1.342857143 | L80: 1.114285714 | M80: 0.2857142857 | N80: 0.2 | O80: 35 | P80: 0.56 | Q80: 0.23 | R80: 0.1 | S80: 0.47 | T80: 0.39 | U80: 0.1 | V80: 0.07 | X80: ja | Y80: 1a
A81: 3 | B81: 1 | C81: 7 | D81: 5 | E81: Acker | G81: GPS Raps | H81: 1.6 | I81: 0.6571428571 | J81: 0.2868366902 | K81: 1.342857143 | L81: 1.114404268 | M81: 0.2857142857 | N81: 0.1714285714 | O81: 35 | P81: 0.56 | Q81: 0.23 | R81: 0.1003928416 | S81: 0.47 | T81: 0.3900414938 | U81: 0.1 | V81: 0.06 | X81: ja | Y81: 1a
B82: 0 | C82: 8 | D82: 7 | E82: Acker | F82: Energiepflanzen | G82: +++Energiepflanzen+++ | Y82: 1a
A83: 3 | B83: 1 | C83: 8 | D83: 7 | E83: Acker | G83: Silphium, Silphie | H83: 1 | I83: 0.5 | J83: 0.2182453077 | K83: 2.285714286 | L83: 1.896858328 | M83: 0.6428571429 | N83: 0.1071428571 | O83: 28 | P83: 0.28 | Q83: 0.14 | R83: 0.06110868616 | S83: 0.64 | T83: 0.531120332 | U83: 0.18 | V83: 0.03 | X83: =+IF(B83=1,"ja","") -> ja | Y83: 1a
A84: 3 | B84: 1 | C84: 8 | D84: 7 | E84: Acker | G84: Sorgumhirse | H84: 1.464285714 | I84: 0.6428571429 | J84: 0.2806011099 | K84: 1.714285714 | L84: 1.422643746 | M84: 0.1428571429 | N84: 0.075 | O84: 28 | P84: 0.41 | Q84: 0.18 | R84: 0.07856831078 | S84: 0.48 | T84: 0.398340249 | U84: 0.04 | V84: 0.021 | X84: ja | Y84: 1a
A85: 3 | B85: 1 | C85: 8 | D85: 7 | E85: Acker | G85: Sida (Virginiamalve) | H85: 1.214285714 | I85: 0.6071428571 | J85: 0.2650121594 | K85: 2.107142857 | L85: 1.748666271 | M85: 0.3214285714 | N85: 2.5 | O85: 28 | P85: 0.34 | Q85: 0.17 | R85: 0.07420340463 | S85: 0.59 | T85: 0.489626556 | U85: 0.09 | V85: 0.7 | X85: ja | Y85: 1a
A86: 3 | B86: 1 | C86: 8 | D86: 7 | E86: Acker | G86: Igniscum | H86: 1.107142857 | I86: 0.3928571429 | J86: 0.1714784561 | K86: 1.464285714 | L86: 1.215174867 | M86: 0.3928571429 | N86: 0.1428571429 | O86: 28 | P86: 0.31 | Q86: 0.11 | R86: 0.0480139677 | S86: 0.41 | T86: 0.3402489627 | U86: 0.11 | V86: 0.04 | X86: ja | Y86: 1a
A87: 3 | B87: 1 | C87: 8 | D87: 7 | E87: Acker | G87: Riesenweizengras (Szarvasi) | H87: 0.9642857143 | I87: 0.3928571429 | J87: 0.1714784561 | K87: 1.892857143 | L87: 1.570835803 | M87: 0.1428571429 | N87: 0.1428571429 | O87: 28 | P87: 0.27 | Q87: 0.11 | R87: 0.0480139677 | S87: 0.53 | T87: 0.4398340249 | U87: 0.04 | V87: 0.04 | X87: ja | Y87: 1a
A88: 3 | B88: 1 | C88: 8 | D88: 7 | E88: Acker | G88: Chinaschilf (Miscanthus) | H88: 0.1875 | I88: 0.15 | J88: 0.0625 | K88: 0.525 | L88: 0.4356846473 | M88: 0.075 | N88: 0.05 | O88: 80 | P88: 0.15 | Q88: 0.12 | R88: 0.05 | S88: 0.42 | T88: 0.3485477178 | U88: 0.06 | V88: 0.04 | X88: ja | Y88: 1a
A89: 3 | B89: 1 | C89: 8 | D89: 7 | E89: Acker | G89: Switchgras | H89: 1.214285714 | I89: 0.5714285714 | J89: 0.25 | K89: 2.178571429 | L89: 1.821428571 | M89: 0.3928571429 | N89: 0.1785714286 | O89: 28 | P89: 0.34 | Q89: 0.16 | R89: 0.07 | S89: 0.61 | T89: 0.51 | U89: 0.11 | V89: 0.05 | X89: ja | Y89: 1a
A90: 3 | B90: 1 | C90: 8 | D90: 7 | E90: Acker | G90: Rohrglanzgras | H90: 1.464285714 | I90: 0.5357142857 | J90: 0.2338342583 | K90: 2.607142857 | L90: 2.163604031 | M90: 0.1785714286 | N90: 0.1785714286 | O90: 28 | P90: 0.41 | Q90: 0.15 | R90: 0.06547359232 | S90: 0.73 | T90: 0.6058091286 | U90: 0.05 | V90: 0.05 | X90: ja | Y90: 1a
A91: 3 | B91: 1 | C91: 8 | D91: 7 | E91: Acker | G91: GPS Hirse | H91: 1.25 | I91: 0.5714285714 | J91: 0.2494232088 | K91: 1.714285714 | L91: 1.422643746 | M91: 0.1428571429 | N91: 0.08571428571 | O91: 28 | P91: 0.35 | Q91: 0.16 | R91: 0.06983849847 | S91: 0.48 | T91: 0.398340249 | U91: 0.04 | V91: 0.024 | X91: ja | Y91: 1a
A92: 3 | B92: 1 | C92: 8 | D92: 7 | E92: Acker | G92: GPS Amarant | H92: 1.25 | I92: 0.5714285714 | J92: 0.2494232088 | K92: 1.714285714 | L92: 1.422643746 | M92: 0.1428571429 | N92: 0.08571428571 | O92: 28 | P92: 0.35 | Q92: 0.16 | R92: 0.06983849847 | S92: 0.48 | T92: 0.398340249 | U92: 0.04 | V92: 0.024 | X92: ja | Y92: 1a
A93: 3 | B93: 1 | C93: 8 | D93: 7 | E93: Acker | G93: GPS Buchweizen | H93: 1.25 | I93: 0.5714285714 | J93: 0.2494232088 | K93: 1.714285714 | L93: 1.422643746 | M93: 0.1428571429 | N93: 0.08571428571 | O93: 28 | P93: 0.35 | Q93: 0.16 | R93: 0.06983849847 | S93: 0.48 | T93: 0.398340249 | U93: 0.04 | V93: 0.024 | X93: ja | Y93: 1a
A94: 3 | B94: 1 | C94: 8 | D94: 7 | E94: Acker | G94: GPS Quinoa | H94: 1.25 | I94: 0.5714285714 | J94: 0.2494232088 | K94: 1.714285714 | L94: 1.422643746 | M94: 0.1428571429 | N94: 0.08571428571 | O94: 28 | P94: 0.35 | Q94: 0.16 | R94: 0.06983849847 | S94: 0.48 | T94: 0.398340249 | U94: 0.04 | V94: 0.024 | X94: ja | Y94: 1a
F95: Vermehrungspflanzen | G95: +++Vermehrungspflanzen+++ | Y95: 1a
A96: 1 | B96: 2 | C96: 9 | D96: 8 | E96: Acker | G96: Grassamenvermehrung | H96: 2.558139535 | I96: 0.8139534884 | J96: 0.3604651163 | K96: 0.5813953488 | L96: 0.4824857667 | M96: 0.1976744186 | N96: 0.2046511628 | O96: 86 | P96: 2.2 | Q96: 0.7 | R96: 0.31 | S96: 0.5 | T96: 0.4149377593 | U96: 0.17 | V96: 0.176 | Y96: 1a
A97: 1 | B97: 2 | C97: 9 | D97: 8 | E97: Acker | G97: Kleesamenvermehrung | H97: 6.043956044 | I97: 1.604395604 | J97: 0.7032967033 | K97: 1.373626374 | L97: 1.139938899 | M97: 0.2967032967 | N97: 0.4835164835 | O97: 91 | P97: 5.5 | Q97: 1.46 | R97: 0.64 | S97: 1.25 | T97: 1.037344398 | U97: 0.27 | V97: 0.44 | Y97: 1a
A98: 1 | B98: 2 | C98: 9 | D98: 8 | E98: Acker | G98: Luzernesamenvermehrung | H98: 6.043956044 | I98: 1.604395604 | J98: 0.7032967033 | K98: 1.373626374 | L98: 1.139938899 | M98: 0.2967032967 | N98: 0.4835164835 | O98: 91 | P98: 5.5 | Q98: 1.46 | R98: 0.64 | S98: 1.25 | T98: 1.037344398 | U98: 0.27 | V98: 0.44 | Y98: 1a
A99: 1 | B99: 2 | C99: 9 | D99: 8 | E99: Acker | G99: Phaceliasamenvermehrung | H99: 2.417582418 | I99: 0.7692307692 | J99: 0.3357620119 | K99: 0.5494505495 | L99: 0.4559755597 | M99: 0.1868131868 | N99: 0.1934065934 | O99: 91 | P99: 2.2 | Q99: 0.7 | R99: 0.3055434308 | S99: 0.5 | T99: 0.4149377593 | U99: 0.17 | V99: 0.176 | Y99: 1a
A100: 1 | B100: 2 | C100: 9 | D100: 8 | E100: Acker | G100: Wildkräutervermehr. (Leguminose) | H100: 3.076923077 | I100: 1.648351648 | J100: 0.7142857143 | K100: 1.978021978 | L100: 1.637362637 | M100: 0.4945054945 | N100: 0.1978021978 | O100: 91 | P100: 2.8 | Q100: 1.5 | R100: 0.65 | S100: 1.8 | T100: 1.49 | U100: 0.45 | V100: 0.18 | Y100: 1a
A101: 1 | B101: 2 | C101: 9 | D101: 8 | E101: Acker | G101: Wildkräuterverm. (Nichtleg.) | H101: 3.076923077 | I101: 1.648351648 | J101: 0.7194900255 | K101: 1.978021978 | L101: 1.641512015 | M101: 0.4945054945 | N101: 0.1934065934 | O101: 91 | P101: 2.8 | Q101: 1.5 | R101: 0.6547359232 | S101: 1.8 | T101: 1.493775934 | U101: 0.45 | V101: 0.176 | Y101: 1a
B102: 0 | C102: 10 | D102: 9 | E102: Acker | F102: Dauerkulturen | G102: +++Dauerkulturen+++ | Y102: 1a
A103: 1 | B103: 2 | C103: 10 | D103: 9 | E103: Acker | G103: Erdbeeren | P103: 0.17 | Q103: 0.05 | R103: 0.02 | S103: 0.28 | T103: 0.2323651452 | U103: 0.03 | V103: 0.0136 | X103: =+IF(B103=1,"ja","") ->  | Y103: 1a
A104: 1 | B104: 2 | C104: 10 | D104: 9 | E104: Acker | G104: Himbeeren | P104: 0.2 | Q104: 0.04 | R104: 0.01745962462 | S104: 0.2 | T104: 0.1659751037 | U104: 0.05 | V104: 0.02 | Y104: 1a
A105: 1 | B105: 2 | C105: 10 | D105: 9 | E105: Acker | G105: Johannis-/ Heidel-/ Holunderbeeren | P105: 0.2 | Q105: 0.1 | R105: 0.04364906155 | S105: 0.3 | T105: 0.2489626556 | U105: 0.03 | V105: 0.02 | Y105: 1a
A106: 1 | B106: 2 | C106: 10 | D106: 9 | E106: Acker | G106: Kernobst | P106: 0.11 | Q106: 0.03 | R106: 0.01309471846 | S106: 0.19 | T106: 0.1576763485 | U106: 0.01 | V106: 0.0088 | Y106: 1a
A107: 1 | B107: 2 | C107: 10 | D107: 9 | E107: Acker | G107: Steinobst | P107: 0.25 | Q107: 0.06 | R107: 0.02618943693 | S107: 0.4 | T107: 0.3319502075 | U107: 0.02 | V107: 0.02 | Y107: 1a
A108: 1 | B108: 2 | C108: 10 | D108: 9 | E108: Acker | G108: Streuobst | P108: 0.11 | Q108: 0.03 | R108: 0.01309471846 | S108: 0.19 | T108: 0.1576763485 | U108: 0.01 | V108: 0.0088 | Y108: 1a
A109: 1 | B109: 2 | C109: 10 | D109: 9 | E109: Acker | G109: Reben (Trauben) | P109: 0.25 | Q109: 0.1 | R109: 0.04364906155 | S109: 0.4 | T109: 0.3319502075 | U109: 0.08 | V109: 0.02 | Y109: 1a
A110: 3 | B110: 2 | C110: 10 | D110: 9 | E110: Acker | G110: Rebschulen | P110: 0.3 | Q110: 0.1 | R110: 0.04364906155 | S110: 0.3 | T110: 0.2489626556 | U110: 0.05 | V110: 0.024 | Y110: 1a
A111: 1 | B111: 2 | C111: 10 | D111: 9 | E111: Acker | G111: Haselnüsse | P111: 1.9 | Q111: 0.7 | R111: 0.3055434308 | S111: 0.6 | T111: 0.4979253112 | U111: 0.2 | V111: 0.152 | Y111: 1a
A112: 1 | B112: 2 | C112: 10 | D112: 9 | E112: Acker | G112: Walnüsse | P112: 1.9 | Q112: 0.7 | R112: 0.3055434308 | S112: 0.6 | T112: 0.4979253112 | U112: 0.2 | V112: 0.152 | Y112: 1a
A113: 1 | B113: 2 | C113: 10 | D113: 9 | E113: Acker | G113: Hopfen (10 % Wasser) | H113: 3.333333333 | I113: 1.111111111 | J113: 0.4849895727 | K113: 2.888888889 | L113: 2.397418165 | M113: 0.5555555556 | N113: 0.2666666667 | O113: 90 | P113: 3 | Q113: 1 | R113: 0.4364906155 | S113: 2.6 | T113: 2.157676349 | U113: 0.5 | V113: 0.24 | Y113: 1a
A114: 2 | B114: 2 | C114: 10 | D114: 9 | E114: Acker | G114: Hopfen Rebenhäcksel | H114: 2.222222222 | I114: 0.4814814815 | J114: 0.2101621482 | K114: 2.185185185 | L114: 1.813431689 | M114: 0.7777777778 | N114: 0.03703703704 | O114: 27 | P114: 0.6 | Q114: 0.13 | R114: 0.05674378001 | S114: 0.59 | T114: 0.489626556 | U114: 0.21 | V114: 0.01 | Y114: 1a
A115: 1 | B115: 2 | C115: 5 | D115: 9 | E115: Acker | G115: Topinambur | H115: 0.7272727273 | I115: 0.4090909091 | J115: 0.1785643427 | K115: 1.818181818 | L115: 1.508864579 | M115: 0.09090909091 | N115: 0.05818181818 | O115: 22 | P115: 0.16 | Q115: 0.09 | R115: 0.03928415539 | S115: 0.4 | T115: 0.3319502075 | U115: 0.02 | V115: 0.0128 | Y115: 1a
A116: 3 | B116: 2 | C116: 10 | D116: 9 | E116: Acker | G116: Tabak (Burley dachtrocken) | P116: 4 | Q116: 0.7 | R116: 0.3055434308 | S116: 5.7 | T116: 4.730290456 | U116: 0.4 | V116: 0.32 | Y116: 1a
A117: 3 | B117: 2 | C117: 10 | D117: 9 | E117: Acker | G117: Trüffel | P117: 1.9 | Q117: 0.7 | R117: 0.3055434308 | S117: 0.6 | T117: 0.4979253112 | U117: 0.2 | V117: 0.152 | Y117: 1a
A118: 3 | B118: 2 | C118: 10 | D118: 9 | E118: Acker | G118: Christbaumkulturen | P118: 0.5 | Q118: 0.3 | R118: 0.1309471846 | S118: 0.5 | T118: 0.4149377593 | U118: 0.1 | V118: 0.04 | Y118: 1a
A119: 3 | B119: 2 | C119: 10 | D119: 9 | E119: Acker | G119: Baumschule | P119: 0.3 | Q119: 0.1 | R119: 0.04364906155 | S119: 0.3 | T119: 0.2489626556 | U119: 0.05 | V119: 0.024 | Y119: 1a
A120: 3 | B120: 2 | C120: 10 | D120: 9 | E120: Acker | G120: Kurzumtriebsplantagen | P120: 0.3 | Q120: 0.1 | R120: 0.04364906155 | S120: 0.3 | T120: 0.2489626556 | U120: 0.05 | V120: 0.024 | Y120: 1a
A121: 3 | B121: 2 | C121: 15 | D121: 12 | E121: Acker | G121: Rollrasen | P121: 0.25 | Q121: 0.12 | R121: 0.05237887385 | S121: 0.2 | T121: 0.1659751037 | U121: 0.05 | V121: 0.07 | Y121: 1a
A122: 3 | B122: 2 | C122: 15 | D122: 12 | E122: Acker | G122: Zierpflanzen (Gladiolen, Lilien...) | P122: 0.5 | Q122: 0.2 | R122: 0.08729812309 | S122: 0.7 | T122: 0.5809128631 | U122: 0.1 | V122: 0.04 | Y122: 1a
F123: Zweitfrucht (2. Hauptfrucht) und Zwischenfrucht | G123: +++Zweitfrucht (2. Hauptfrucht)+++ | Y123: 1b
A124: 3 | B124: 1 | C124: 6 | D124: 5 | E124: Acker | G124: Weidelgras | H124: =+P124/$O124*100 -> 2.65 | I124: =+Q124/$O124*100 -> 0.8 | J124: 0.3491924924 | K124: 3.6 | L124: 2.987551867 | M124: 0.4 | N124: 0.3 | O124: 20 | P124: 0.53 | Q124: 0.16 | R124: 0.06983849847 | S124: 0.72 | T124: 0.5975103734 | U124: 0.08 | V124: 0.06 | X124: ja | Y124: 1b
A125: 3 | B125: 1 | C125: 6 | D125: 5 | E125: Acker | G125: Kleegras mit 30 % Leguminosen | H125: =+P125/$O125*100 -> 2.8 | I125: 0.75 | J125: 0.3273679616 | K125: 3.35 | L125: 2.780082988 | M125: 0.4 | N125: 0.3 | O125: 20 | P125: 0.56 | Q125: 0.15 | R125: 0.06547359232 | S125: 0.67 | T125: 0.5560165975 | U125: 0.08 | V125: 0.06 | X125: ja | Y125: 1b
A126: 3 | B126: 1 | C126: 6 | D126: 5 | E126: Acker | G126: Kleegras mit 50 % Leguminosen | H126: 2.9 | I126: 0.7 | J126: 0.3 | K126: 3.25 | L126: 2.697095436 | M126: 0.45 | N126: 0.35 | O126: 20 | P126: 0.58 | Q126: 0.14 | R126: 0.06 | S126: 0.65 | T126: 0.5394190871 | U126: 0.09 | V126: 0.07 | X126: ja | Y126: 1b
A127: 3 | B127: 1 | C127: 6 | D127: 5 | E127: Acker | G127: Kleegras mit 70 % Leguminosen | H127: 3.05 | I127: 0.7 | J127: 0.3055434308 | K127: 3.25 | L127: 2.697095436 | M127: 0.45 | N127: 0.4 | O127: 20 | P127: 0.61 | Q127: 0.14 | R127: 0.06110868616 | S127: 0.65 | T127: 0.5394190871 | U127: 0.09 | V127: 0.08 | X127: ja | Y127: 1b
A128: 3 | B128: 1 | C128: 6 | D128: 5 | E128: Acker | G128: Alexandrinerklee | H128: 2.3 | I128: 0.7 | J128: 0.3055434308 | K128: 2.5 | L128: 2.074688797 | M128: 0.25 | N128: 0.14 | O128: 20 | P128: 0.46 | Q128: 0.14 | R128: 0.06110868616 | S128: 0.5 | T128: 0.4149377593 | U128: 0.05 | V128: 0.028 | X128: ja | Y128: 1b
A129: 3 | B129: 1 | C129: 7 | D129: 5 | E129: Acker | G129: Serradella kleinkörnig | H129: 2.3 | I129: 0.7 | J129: 0.3055434308 | K129: 2.5 | L129: 2.074688797 | M129: 0.25 | N129: 0.14 | O129: 20 | P129: 0.46 | Q129: 0.14 | R129: 0.06110868616 | S129: 0.5 | T129: 0.4149377593 | U129: 0.05 | V129: 0.028 | X129: ja | Y129: 1b
A130: 3 | B130: 1 | C130: 7 | D130: 5 | E130: Acker | G130: GPS Futtererbsen/Ackerbohnen | H130: 2.3 | I130: 0.7 | J130: 0.3055434308 | K130: 2.5 | L130: 2.074688797 | M130: 0.25 | N130: 0.14 | O130: 20 | P130: 0.46 | Q130: 0.14 | R130: 0.06110868616 | S130: 0.5 | T130: 0.4149377593 | U130: 0.05 | V130: 0.028 | X130: ja | Y130: 1b
A131: 3 | B131: 1 | C131: 7 | D131: 5 | E131: Acker | G131: GPS Sommerwicken | H131: 2.3 | I131: 0.7 | J131: 0.3055434308 | K131: 2.5 | L131: 2.074688797 | M131: 0.25 | N131: 0.14 | O131: 20 | P131: 0.46 | Q131: 0.14 | R131: 0.06110868616 | S131: 0.5 | T131: 0.4149377593 | U131: 0.05 | V131: 0.028 | X131: ja | Y131: 1b
A132: 3 | B132: 1 | C132: 7 | D132: 5 | E132: Acker | G132: GPS Sommerraps | H132: 2.3 | I132: 0.7 | J132: 0.3055434308 | K132: 2.5 | L132: 2.074688797 | M132: 0.25 | N132: 0.14 | O132: 20 | P132: 0.46 | Q132: 0.14 | R132: 0.06110868616 | S132: 0.5 | T132: 0.4149377593 | U132: 0.05 | V132: 0.028 | X132: ja | Y132: 1b
A133: 3 | B133: 1 | C133: 7 | D133: 5 | E133: Acker | G133: GPS Winterraps | H133: 2.3 | I133: 0.7 | J133: 0.3055434308 | K133: 2.5 | L133: 2.074688797 | M133: 0.25 | N133: 0.14 | O133: 20 | P133: 0.46 | Q133: 0.14 | R133: 0.06110868616 | S133: 0.5 | T133: 0.4149377593 | U133: 0.05 | V133: 0.028 | X133: ja | Y133: 1b
A134: 3 | B134: 1 | C134: 7 | D134: 5 | E134: Acker | G134: GPS Winterrübsen | H134: 2.3 | I134: 0.7 | J134: 0.3055434308 | K134: 2.5 | L134: 2.074688797 | M134: 0.25 | N134: 0.14 | O134: 20 | P134: 0.46 | Q134: 0.14 | R134: 0.06110868616 | S134: 0.5 | T134: 0.4149377593 | U134: 0.05 | V134: 0.028 | X134: ja | Y134: 1b
A135: 3 | B135: 1 | C135: 7 | D135: 5 | E135: Acker | G135: GPS Sommerrübsen | H135: 2.3 | I135: 0.7 | J135: 0.3055434308 | K135: 2.5 | L135: 2.074688797 | M135: 0.25 | N135: 0.14 | O135: 20 | P135: 0.46 | Q135: 0.14 | R135: 0.06110868616 | S135: 0.5 | T135: 0.4149377593 | U135: 0.05 | V135: 0.028 | X135: ja | Y135: 1b
A136: 3 | B136: 1 | C136: 7 | D136: 5 | E136: Acker | G136: GPS Ölrettich | H136: 2.3 | I136: 0.7 | J136: 0.3055434308 | K136: 2.5 | L136: 2.074688797 | M136: 0.25 | N136: 0.14 | O136: 20 | P136: 0.46 | Q136: 0.14 | R136: 0.06110868616 | S136: 0.5 | T136: 0.4149377593 | U136: 0.05 | V136: 0.028 | X136: ja | Y136: 1b
A137: 3 | B137: 1 | C137: 7 | D137: 5 | E137: Acker | G137: GPS Senf weiß/gelb | H137: 2.3 | I137: 0.7 | J137: 0.3055434308 | K137: 2.5 | L137: 2.074688797 | M137: 0.25 | N137: 0.14 | O137: 20 | P137: 0.46 | Q137: 0.14 | R137: 0.06110868616 | S137: 0.5 | T137: 0.4149377593 | U137: 0.05 | V137: 0.028 | X137: ja | Y137: 1b
A138: 3 | B138: 1 | C138: 7 | D138: 5 | E138: Acker | G138: GPS Phacelia | H138: 2.3 | I138: 0.7 | J138: 0.3055434308 | K138: 2.5 | L138: 2.074688797 | M138: 0.25 | N138: 0.14 | O138: 20 | P138: 0.46 | Q138: 0.14 | R138: 0.06110868616 | S138: 0.5 | T138: 0.4149377593 | U138: 0.05 | V138: 0.028 | X138: ja | Y138: 1b
A139: 3 | B139: 1 | C139: 7 | D139: 5 | E139: Acker | G139: GPS Sonnenblumen | H139: 1.357142857 | I139: 0.5714285714 | J139: 0.2494232088 | K139: 1.607142857 | L139: 1.333728512 | M139: 0.3214285714 | N139: 0.07142857143 | O139: 28 | P139: 0.38 | Q139: 0.16 | R139: 0.06983849847 | S139: 0.45 | T139: 0.3734439834 | U139: 0.09 | V139: 0.02 | X139: ja | Y139: 1b
A140: 3 | B140: 1 | C140: 7 | D140: 5 | E140: Acker | G140: GPS Gemenge mit 30 % Leguminosen | H140: 2.3 | I140: 0.7 | J140: 0.3055434308 | K140: 2.5 | L140: 2.074688797 | M140: 0.25 | N140: 0.14 | O140: 20 | P140: 0.46 | Q140: 0.14 | R140: 0.06110868616 | S140: 0.5 | T140: 0.4149377593 | U140: 0.05 | V140: 0.028 | X140: ja | Y140: 1b
A141: 3 | B141: 1 | C141: 7 | D141: 5 | E141: Acker | G141: GPS Gemenge mit 50 % Leguminosen | H141: 2.3 | I141: 0.7 | J141: 0.3055434308 | K141: 2.5 | L141: 2.074688797 | M141: 0.25 | N141: 0.14 | O141: 20 | P141: 0.46 | Q141: 0.14 | R141: 0.06110868616 | S141: 0.5 | T141: 0.4149377593 | U141: 0.05 | V141: 0.028 | X141: ja | Y141: 1b
A142: 3 | B142: 1 | C142: 7 | D142: 5 | E142: Acker | G142: GPS Gemenge mit 70 % Leguminosen | H142: 2.3 | I142: 0.7 | J142: 0.3055434308 | K142: 2.5 | L142: 2.074688797 | M142: 0.25 | N142: 0.14 | O142: 20 | P142: 0.46 | Q142: 0.14 | R142: 0.06110868616 | S142: 0.5 | T142: 0.4149377593 | U142: 0.05 | V142: 0.028 | X142: ja | Y142: 1b
A143: 3 | B143: 1 | C143: 7 | D143: 5 | E143: Acker | G143: GPS Winterroggen/Grünroggen | H143: 1.6 | I143: 0.6666666667 | J143: 0.2909937436 | K143: 1.333333333 | L143: 1.106500692 | M143: 0.3 | N143: 0.1666666667 | O143: 30 | P143: 0.48 | Q143: 0.2 | R143: 0.08729812309 | S143: 0.4 | T143: 0.3319502075 | U143: 0.09 | V143: 0.05 | X143: ja | Y143: 1b
A144: 3 | B144: 1 | C144: 7 | D144: 5 | E144: Acker | G144: Silomais | H144: 1.357142857 | I144: 0.5714285714 | J144: 0.2494232088 | K144: 1.607142857 | L144: 1.333728512 | M144: 0.3214285714 | N144: 0.07142857143 | O144: 28 | P144: 0.38 | Q144: 0.16 | R144: 0.06983849847 | S144: 0.45 | T144: 0.3734439834 | U144: 0.09 | V144: 0.02 | X144: ja | Y144: 1b
A145: 3 | B145: 1 | C145: 8 | D145: 5 | E145: Acker | G145: GPS Sorghumhirse | H145: 1.464285714 | I145: 0.6428571429 | J145: 0.2806011099 | K145: 1.714285714 | L145: 1.422643746 | M145: 0.1428571429 | N145: 0.075 | O145: 28 | P145: 0.41 | Q145: 0.18 | R145: 0.07856831078 | S145: 0.48 | T145: 0.398340249 | U145: 0.04 | V145: 0.021 | X145: ja | Y145: 1b
A146: 3 | B146: 1 | C146: 7 | D146: 5 | E146: Acker | G146: Zwischenfrucht mit 0 - 25 % Leg. | H146: 2.875 | I146: 0.875 | J146: 0.3819292885 | K146: 3.125 | L146: 2.593360996 | M146: 0.3125 | N146: 0.175 | O146: 16 | P146: 0.46 | Q146: 0.14 | R146: 0.06110868616 | S146: 0.5 | T146: 0.4149377593 | U146: 0.05 | V146: 0.028 | X146: ja | Y146: 1b
A147: 3 | B147: 1 | C147: 7 | D147: 5 | E147: Acker | G147: Zwischenfrucht mit 25 - 75 % Leg. | H147: 2.875 | I147: 0.875 | J147: 0.3819292885 | K147: 3.125 | L147: 2.593360996 | M147: 0.3125 | N147: 0.175 | O147: 16 | P147: 0.46 | Q147: 0.14 | R147: 0.06110868616 | S147: 0.5 | T147: 0.4149377593 | U147: 0.05 | V147: 0.028 | X147: ja | Y147: 1b
A148: 3 | B148: 1 | C148: 7 | D148: 5 | E148: Acker | G148: Zwischenfrucht mit > 75 % Leg. | H148: 2.875 | I148: 0.875 | J148: 0.3819292885 | K148: 3.125 | L148: 2.593360996 | M148: 0.3125 | N148: 0.175 | O148: 16 | P148: 0.46 | Q148: 0.14 | R148: 0.06110868616 | S148: 0.5 | T148: 0.4149377593 | U148: 0.05 | V148: 0.028 | X148: ja | Y148: 1b
F149: Gemüse | G149: +++Gemüse+++ | Y149: 1c
A150: 1 | B150: 0 | C150: 12 | D150: 10 | E150: Acker | G150: Artischocke | P150: 0.19 | Q150: 0.05 | R150: 0.02182453077 | S150: 0.24 | T150: 0.1991701245 | U150: 0.02 | V150: 0.0152 | X150: =+IF(B150=1,"ja","") ->  | Y150: 1c
A151: 1 | B151: 0 | C151: 12 | D151: 10 | E151: Acker | G151: Auberginen | P151: 0.28 | Q151: 0.05 | R151: 0.02182453077 | S151: 0.3 | T151: 0.2489626556 | U151: 0.06 | V151: 0.0224 | Y151: 1c
A152: 3 | B152: 0 | C152: 12 | D152: 10 | E152: Acker | G152: Blattsalate | P152: 0.19 | Q152: 0.069 | R152: 0.0304 | S152: 0.45 | T152: 0.3734439834 | U152: 0.02 | V152: 0.0152 | Y152: 1c
A153: 3 | B153: 0 | C153: 12 | D153: 10 | E153: Acker | G153: Blumenkohl | P153: 0.28 | Q153: 0.103 | R153: 0.0453 | S153: 0.36 | T153: 0.2987551867 | U153: 0.02 | V153: 0.07 | Y153: 1c
A154: 3 | B154: 0 | C154: 12 | D154: 10 | E154: Acker | G154: Brokkoli | P154: 0.45 | Q154: 0.149 | R154: 0.0656 | S154: 0.46 | T154: 0.3817427386 | U154: 0.03 | V154: 0.09 | Y154: 1c
A155: 1 | B155: 0 | C155: 12 | D155: 10 | E155: Acker | G155: Buschbohnen | P155: 0.25 | Q155: 0.092 | R155: 0.0405 | S155: 0.3 | T155: 0.2489626556 | U155: 0.04 | V155: 0.02 | Y155: 1c
A156: 1 | B156: 0 | C156: 12 | D156: 10 | E156: Acker | G156: Chicoréerüben | P156: 0.25 | Q156: 0.121 | R156: 0.0532 | S156: 0.54 | T156: 0.4481327801 | U156: 0.07 | V156: 0.02 | Y156: 1c
A157: 3 | B157: 0 | C157: 12 | D157: 10 | E157: Acker | G157: Chinakohl | P157: 0.15 | Q157: 0.092 | R157: 0.0405 | S157: 0.3 | T157: 0.2489626556 | U157: 0.02 | V157: 0.012 | Y157: 1c
A158: 3 | B158: 0 | C158: 12 | D158: 10 | E158: Acker | G158: Eissalat | P158: 0.14 | Q158: 0.057 | R158: 0.0251 | S158: 0.3 | T158: 0.2489626556 | U158: 0.02 | V158: 0.0112 | Y158: 1c
A159: 3 | B159: 0 | C159: 12 | D159: 10 | E159: Acker | G159: Endivie, Frisèe | P159: 0.25 | Q159: 0.06 | R159: 0.0264 | S159: 0.55 | T159: 0.4564315353 | U159: 0.03 | V159: 0.02 | Y159: 1c
A160: 3 | B160: 0 | C160: 12 | D160: 10 | E160: Acker | G160: Endivie, glattblättrig | P160: 0.2 | Q160: 0.06 | R160: 0.0264 | S160: 0.55 | T160: 0.4564315353 | U160: 0.03 | V160: 0.016 | Y160: 1c
A161: 3 | B161: 0 | C161: 12 | D161: 10 | E161: Acker | G161: Feldsalat | P161: 0.45 | Q161: 0.099 | R161: 0.0436 | S161: 0.65 | T161: 0.5394190871 | U161: 0.07 | V161: 0.06 | Y161: 1c
A162: 1 | B162: 0 | C162: 12 | D162: 10 | E162: Acker | G162: Gemüseerbsen | P162: 1 | Q162: 0.229 | R162: 0.1008 | S162: 0.36 | T162: 0.2987551867 | U162: 0.06 | V162: 0.04 | Y162: 1c
A163: 3 | B163: 0 | C163: 12 | D163: 10 | E163: Acker | G163: Grünkohl | P163: 0.49 | Q163: 0.163 | R163: 0.0717 | S163: 0.59 | T163: 0.489626556 | U163: 0.04 | V163: 0.0392 | Y163: 1c
A164: 1 | B164: 0 | C164: 12 | D164: 10 | E164: Acker | G164: Gurke, Einlege- | P164: 0.15 | Q164: 0.069 | R164: 0.0304 | S164: 0.24 | T164: 0.1991701245 | U164: 0.02 | V164: 0.012 | Y164: 1c
A165: 1 | B165: 0 | C165: 12 | D165: 10 | E165: Acker | G165: Kichererbsen | P165: 1 | Q165: 0.23 | R165: 0.1003928416 | S165: 0.36 | T165: 0.2987551867 | U165: 0.06 | V165: 0.04 | Y165: 1c
A166: 3 | B166: 0 | C166: 12 | D166: 10 | E166: Acker | G166: Knollenfenchel | P166: 0.2 | Q166: 0.069 | R166: 0.0304 | S166: 0.48 | T166: 0.398340249 | U166: 0.03 | V166: 0.016 | Y166: 1c
A167: 3 | B167: 0 | C167: 12 | D167: 10 | E167: Acker | G167: Kohlrabi | P167: 0.28 | Q167: 0.103 | R167: 0.0453 | S167: 0.42 | T167: 0.3485477178 | U167: 0.03 | V167: 0.05 | Y167: 1c
A168: 3 | B168: 0 | C168: 12 | D168: 10 | E168: Acker | G168: Kopfsalat | P168: 0.18 | Q168: 0.069 | R168: 0.0304 | S168: 0.36 | T168: 0.2987551867 | U168: 0.03 | V168: 0.04 | Y168: 1c
A169: 1 | B169: 0 | C169: 12 | D169: 10 | E169: Acker | G169: Kürbis, Öl- | P169: 3 | Q169: 2.9 | R169: 1.265822785 | S169: 3 | T169: 2.489626556 | U169: 1.4 | V169: 0.02 | Y169: 1c
A170: 1 | B170: 0 | C170: 12 | D170: 10 | E170: Acker | G170: Kürbis, Speise- | P170: 0.25 | Q170: 0.206 | R170: 0.0906 | S170: 0.55 | T170: 0.4564315353 | U170: 0.08 | V170: 0.02 | Y170: 1c
A171: 1 | B171: 0 | C171: 12 | D171: 10 | E171: Acker | G171: Mairüben (mit Laub) | P171: 0.17 | Q171: 0.1 | R171: 0.05 | S171: 0.42 | T171: 0.35 | U171: 0.04 | V171: 0.01 | Y171: 1c
A172: 1 | B172: 0 | C172: 12 | D172: 10 | E172: Acker | G172: Markerbse | P172: 1 | Q172: 0.23 | R172: 0.1 | S172: 0.36 | T172: 0.3 | U172: 0.06 | V172: 0.04 | Y172: 1c
A173: 1 | B173: 0 | C173: 12 | D173: 10 | E173: Acker | G173: Melone, Wasser- | P173: 0.096 | Q173: 0.02 | R173: 0.008729812309 | S173: 0.13 | T173: 0.1078838174 | U173: 0.015 | V173: 0.01 | Y173: 1c
A174: 1 | B174: 0 | C174: 12 | D174: 10 | E174: Acker | G174: Melone, Zucker-, Honig- | P174: 0.15 | Q174: 0.054 | R174: 0.02357049323 | S174: 0.37 | T174: 0.3070539419 | U174: 0.02 | V174: 0.012 | Y174: 1c
A175: 3 | B175: 0 | C175: 12 | D175: 10 | E175: Acker | G175: Möhren, Bund- | P175: 0.17 | Q175: 0.082 | R175: 0.0361 | S175: 0.53 | T175: 0.4398340249 | U175: 0.05 | V175: 0.03 | Y175: 1c
A176: 1 | B176: 0 | C176: 12 | D176: 10 | E176: Acker | G176: Möhren, Industrie- | P176: 0.13 | Q176: 0.08 | R176: 0.0362 | S176: 0.42 | T176: 0.3485477178 | U176: 0.03 | V176: 0.02 | Y176: 1c
A177: 1 | B177: 0 | C177: 12 | D177: 10 | E177: Acker | G177: Möhren, Wasch- | P177: 0.13 | Q177: 0.08 | R177: 0.0352 | S177: 0.42 | T177: 0.3485477178 | U177: 0.03 | V177: 0.02 | Y177: 1c
A178: 1 | B178: 0 | C178: 12 | D178: 10 | E178: Acker | G178: Paprika | P178: 0.3 | Q178: 0.06 | R178: 0.02618943693 | S178: 0.26 | T178: 0.2157676349 | U178: 0.05 | V178: 0.024 | Y178: 1c
A179: 1 | B179: 0 | C179: 12 | D179: 10 | E179: Acker | G179: Pastinake | P179: 0.25 | Q179: 0.236 | R179: 0.1038 | S179: 0.72 | T179: 0.5975103734 | U179: 0.09 | V179: 0.02 | Y179: 1c
A180: 1 | B180: 0 | C180: 12 | D180: 10 | E180: Acker | G180: Petersilie, Wurzel- | P180: 0.42 | Q180: 0.137 | R180: 0.0603 | S180: 0.84 | T180: 0.6970954357 | U180: 0.04 | V180: 0.0336 | Y180: 1c
A181: 3 | B181: 0 | C181: 12 | D181: 10 | E181: Acker | G181: Porree | P181: 0.25 | Q181: 0.08 | R181: 0.0352 | S181: 0.36 | T181: 0.2987551867 | U181: 0.03 | V181: 0.04 | Y181: 1c
A182: 3 | B182: 0 | C182: 12 | D182: 10 | E182: Acker | G182: Radicchio | P182: 0.25 | Q182: 0.092 | R182: 0.0405 | S182: 0.48 | T182: 0.398340249 | U182: 0.03 | V182: 0.02 | Y182: 1c
A183: 1 | B183: 0 | C183: 12 | D183: 10 | E183: Acker | G183: Radies | P183: 0.2 | Q183: 0.069 | R183: 0.0304 | S183: 0.34 | T183: 0.2821576763 | U183: 0.03 | V183: 0.016 | Y183: 1c
A184: 3 | B184: 0 | C184: 12 | D184: 10 | E184: Acker | G184: Rettich, Bund- | P184: 0.17 | Q184: 0.076 | R184: 0.0334 | S184: 0.36 | T184: 0.2987551867 | U184: 0.03 | V184: 0.0136 | Y184: 1c
A185: 1 | B185: 0 | C185: 12 | D185: 10 | E185: Acker | G185: Rettich, deutsch | P185: 0.14 | Q185: 0.08 | R185: 0.0352 | S185: 0.4 | T185: 0.3319502075 | U185: 0.02 | V185: 0.0112 | Y185: 1c
A186: 1 | B186: 0 | C186: 12 | D186: 10 | E186: Acker | G186: Rettich, japanisch | P186: 0.1 | Q186: 0.06 | R186: 0.0264 | S186: 0.34 | T186: 0.2821576763 | U186: 0.02 | V186: 0.008 | Y186: 1c
A187: 3 | B187: 0 | C187: 12 | D187: 10 | E187: Acker | G187: Rhabarber | P187: 0.18 | Q187: 0.048 | R187: 0.0211 | S187: 0.5 | T187: 0.4149377593 | U187: 0.05 | V187: 0.0144 | Y187: 1c
A188: 3 | B188: 0 | C188: 12 | D188: 10 | E188: Acker | G188: Romana | P188: 0.2 | Q188: 0.092 | R188: 0.0405 | S188: 0.4 | T188: 0.3319502075 | U188: 0.02 | V188: 0.016 | Y188: 1c
A189: 1 | B189: 0 | C189: 12 | D189: 10 | E189: Acker | G189: Romana, Herzen | P189: 0.24 | Q189: 0.09 | R189: 0.04 | S189: 0.4 | T189: 0.33 | U189: 0.02 | V189: 0.02 | Y189: 1c
A190: 1 | B190: 0 | C190: 12 | D190: 10 | E190: Acker | G190: Rosenkohl, nur Röschen | P190: 0.65 | Q190: 0.195 | R190: 0.0858 | S190: 0.66 | T190: 0.5477178423 | U190: 0.04 | V190: 0.14 | Y190: 1c
A191: 1 | B191: 0 | C191: 12 | D191: 10 | E191: Acker | G191: Rote Rüben | P191: 0.28 | Q191: 0.115 | R191: 0.0506 | S191: 0.48 | T191: 0.398340249 | U191: 0.05 | V191: 0.02 | Y191: 1c
A192: 3 | B192: 0 | C192: 12 | D192: 10 | E192: Acker | G192: Rotkohl | P192: 0.22 | Q192: 0.08 | R192: 0.0352 | S192: 0.36 | T192: 0.2987551867 | U192: 0.03 | V192: 0.08 | Y192: 1c
A193: 3 | B193: 0 | C193: 12 | D193: 10 | E193: Acker | G193: Rucola | P193: 0.4 | Q193: 0.103 | R193: 0.0453 | S193: 0.53 | T193: 0.4398340249 | U193: 0.05 | V193: 0.032 | X193: =+IF(B193=1,"ja","") ->  | Y193: 1c
A194: 3 | B194: 0 | C194: 12 | D194: 10 | E194: Acker | G194: Salate, Baby Leaf Lettuce | P194: 0.35 | Q194: 0.08 | R194: 0.04 | S194: 0.6 | T194: 0.5 | U194: 0.04 | V194: 0.03 | Y194: 1c
A195: 1 | B195: 0 | C195: 12 | D195: 10 | E195: Acker | G195: Schwarzwurzel | P195: 0.23 | Q195: 0.16 | R195: 0.0704 | S195: 0.39 | T195: 0.3236514523 | U195: 0.04 | V195: 0.0184 | Y195: 1c
A196: 3 | B196: 0 | C196: 12 | D196: 10 | E196: Acker | G196: Sellerie, Bund- | P196: 0.27 | Q196: 0.126 | R196: 0.0554 | S196: 0.57 | T196: 0.4730290456 | U196: 0.03 | V196: 0.0216 | Y196: 1c
A197: 1 | B197: 0 | C197: 12 | D197: 10 | E197: Acker | G197: Sellerie, Knollen- | P197: 0.25 | Q197: 0.149 | R197: 0.0656 | S197: 0.54 | T197: 0.4481327801 | U197: 0.03 | V197: 0.02 | Y197: 1c
A198: 3 | B198: 0 | C198: 12 | D198: 10 | E198: Acker | G198: Sellerie, Stangen- | P198: 0.25 | Q198: 0.115 | R198: 0.0506 | S198: 0.54 | T198: 0.4481327801 | U198: 0.03 | V198: 0.02 | Y198: 1c
A199: 3 | B199: 0 | C199: 12 | D199: 10 | E199: Acker | G199: Spargel | P199: 0.26 | Q199: 0.082 | R199: 0.0361 | S199: 0.24 | T199: 0.1991701245 | U199: 0.02 | V199: 0.0208 | Y199: 1c
A200: 3 | B200: 0 | C200: 12 | D200: 10 | E200: Acker | G200: Spinat, Blatt-, Frischmarkt, Baby | P200: 0.45 | Q200: 0.12 | R200: 0.51 | S200: 0.66 | T200: 0.55 | U200: 0.08 | V200: 0.03 | Y200: 1c
... 274 more rows

Sheet Futtermittel alt (hidden)
A7: Ackerbohne | B7: 30 | C7: 4.1 | D7: 1.2 | E7: 1.4 | F7: 0.2 | G7: 86
A8: Alleinfutter Jungsau | B8: 16.00016 | C8: 2.5600256 | D8: 1.03021688 | E8: 0.7836356 | F8: 0.33120208 | G8: 88
A9: Alleinfutter Schwein, AnfangsMast | B9: 17.49968 | C9: 2.7999488 | D9: 1.26005 | E9: 0.9034608 | F9: 0.33120208 | G9: 88
A10: Alleinfutter Schwein, EndMast | B10: 14.9996 | C10: 2.399936 | D10: 1.03021688 | E10: 0.7836356 | F10: 0.33120208 | G10: 88
A11: AlleinFutter Schwein, Mast | B11: 16.99984 | C11: 2.7199744 | D11: 1.26005 | E11: 1.0243464 | F11: 0.33120208 | G11: 88
A12: Alleinfutter ZuchtSau | B12: 16.00016 | C12: 2.5600256 | D12: 1.27416256 | E12: 0.975568 | F12: 0.5033688 | G12: 88
A13: Alleinfutter ZuchtSau, säugend | B13: 16.5 | C13: 2.64 | D13: 1.14513344 | E13: 1.0847892 | F13: 0.49753264 | G13: 88
A14: Alleinfutter ZuchtSau, tragend | B14: 11.99968 | C14: 1.9199488 | D14: 0.96167016 | E14: 0.843018 | F14: 0.41874448 | G14: 88
A15: Altbrot | B15: 7.995 | C15: 1.2792 | D15: 0.3663309 | E15: 0.391625 | F15: 0.075439 | G15: 65
A16: Backabfälle | B16: 10.5996 | C16: 1.695936 | D16: 0.5241808 | E16: 1.0604 | F16: 0.3793504 | G16: 88
A17: Bierhefe, abgepreßt | B17: 13.125 | C17: 2.1 | D17: 0.652935 | E17: 0.4428375 | F17: 0.07461 | G17: 25
A18: Bierhefe, frisch | B18: 5.25 | C18: 0.84 | D18: 0.261174 | E18: 0.177135 | F18: 0.029844 | G18: 10
A19: BierHefe, trocken | B19: 46.8999 | C19: 7.503984 | D19: 2.350566 | E19: 1.594215 | F19: 0.268596 | G19: 90
A20: Biertreber, frisch | B20: 6.072 | C20: 0.97152 | D20: 0.329904 | E20: 0.023136 | F20: 0.079584 | G20: 24
A21: Biertreber, siliert | B21: 6.1503 | C21: 0.984048 | D21: 0.3395262 | E21: 0.0238108 | F21: 0.0819052 | G21: 24.7
A22: BierTreber, trocken | B22: 23.7996 | C22: 3.807936 | D22: 1.23714 | E22: 0.08676 | F22: 0.29844 | G22: 90
A23: Buttermilch | B23: 2.992 | C23: 0.47872 | D23: 0.15798736 | E23: 0.17352 | F23: 0.01485568 | G23: 8
A24: Ca-Formiat | B24: 0 | C24: 0 | D24: 0 | E24: 0 | F24: 0 | G24: 99
A25: Ca-Propionat | B25: 0 | C25: 0 | D25: 0 | E25: 0 | F25: 0 | G25: 99
A26: CCM (60 % TS) | B26: 10.5 | C26: 1.01 | D26: 0.41 | E26: 0.36 | F26: 0.1 | G26: 60
A27: Diät-Mineralfutter Ferkel | B27: 14.6997 | C27: 2.351952 | D27: 2.1711807 | E27: 0 | F27: 1.5712866 | G27: 90
A28: Dikalziumphosphat | B28: 0 | C28: 0 | D28: 40.28391305 | E28: 0 | F28: 0 | G28: 95
A29: DL-Methionin | B29: 99.000106 | C29: 15.84001696 | D29: 0 | E29: 0 | F29: 0 | G29: 99.7
A30: EiweißKonzentrat Schwein, Mast, 50% Rohprotein | B30: 45.5004 | C30: 7.280064 | D30: 3.47572192 | E30: 2.4378596 | F30: 0.58653408 | G30: 88
A31: Eiweißkonzentrat ZuchtSau, 46% Rohprotein | B31: 46.50008 | C31: 7.4400128 | D31: 4.17126952 | E31: 1.5906 | F31: 0.58653408 | G31: 88
A32: Eiweißkonzentrat ZuchtSau, 50% Rohprotein | B32: 50.6 | C32: 8.096 | D32: 4.63496792 | E32: 2.4378596 | F32: 0.58653408 | G32: 88
A33: Eiweißkonzentrat ZuchtSau, 54% Rohprotein | B33: 54.5996 | C33: 8.735936 | D33: 5.56236472 | E33: 1.5906 | F33: 0.58653408 | G33: 88
A34: Erbse | B34: 26 | C34: 3.6 | D34: 1.1 | E34: 1.4 | F34: 0.2 | G34: 86
A35: ErdnußExtraktionsSchrot, 5% Rohfaser | B35: 49.99984 | C35: 7.9999744 | D35: 1.3507736 | E35: 1.37852 | F35: 0.5398448 | G35: 88
A36: ErgänzungsFutter Aufzuchtferkel, (Anteil 30%) | B36: 35.00024 | C36: 5.6000384 | D36: 2.29026688 | E36: 1.2046144 | F36: 0.49753264 | G36: 88
A37: ErgänzungsFutter I Schwein, Mast, (Anteil 30%) | B37: 35.00024 | C37: 5.6000384 | D37: 1.37496656 | E37: 1.5662108 | F37: 0.58653408 | G37: 88
A38: ErgänzungsFutter II Schwein, Mast, 28% Rohprotein | B38: 27.99984 | C38: 4.4799744 | D38: 3.20758328 | E38: 1.4675936 | F38: 0.49753264 | G38: 88
A39: Ergänzungsfutter Jungsau, (Anteil 30%) | B39: 35.00024 | C39: 5.6000384 | D39: 1.83261672 | E39: 1.2046144 | F39: 0.58653408 | G39: 88
A40: ErgänzungsFutter Saugferkel, (Anteil 100%) | B40: 19.00008 | C40: 3.0400128 | D40: 1.26005 | E40: 0.9034608 | F40: 0.33120208 | G40: 88
A41: ErgänzungsFutter Schwein, Mast, (Anteil 20%) | B41: 44.99968 | C41: 7.1999488 | D41: 1.6027836 | E41: 1.807982 | F41: 0.58653408 | G41: 88
A42: ErgänzungsFutter Schwein, Mast, 40% Rohprotein | B42: 40.0004 | C42: 6.400064 | D42: 1.37496656 | E42: 1.98825 | F42: 0.6638632 | G42: 88
A43: ErgänzungsFutter ZuchtSau, säugend (Anteil 30%) | B43: 35.00024 | C43: 5.6000384 | D43: 1.83261672 | E43: 1.807982 | F43: 0.58653408 | G43: 88
A44: ErgänzungsFutter ZuchtSau, tragend (Anteil 25%) | B44: 24.99992 | C44: 3.9999872 | D44: 2.29026688 | E44: 1.807982 | F44: 0.58653408 | G44: 88
A45: Fasermix, 20% Rohfaser | B45: 9 | C45: 1.44 | D45: 0.6866127 | E45: 1.0845 | F45: 0.4640742 | G45: 90
A46: Fasermix, 30% Rohfaser | B46: 8.0001 | C46: 1.280016 | D46: 1.1464164 | E46: 1.0845 | F46: 0.4312458 | G46: 90
A47: FerkelaufzuchtFutter I | B47: 18.0004 | C47: 2.880064 | D47: 1.26005 | E47: 0.9034608 | F47: 0.33120208 | G47: 88
A48: FerkelaufzuchtFutter II | B48: 17.49968 | C48: 2.7999488 | D48: 1.03021688 | E48: 0.7836356 | F48: 0.33120208 | G48: 88
A49: Fischmehl, 55-60% Rohprotein | B49: 58.09984 | C49: 9.2959744 | D49: 7.5034832 | E49: 0.99774 | F49: 0.4423544 | G49: 92
A50: Fischmehl, 60-65% Rohprotein | B50: 60.8004 | C50: 9.728064 | D50: 5.814558 | E50: 0.8676 | F50: 0.37305 | G50: 90
A51: Fischmehl, 65-70% Rohprotein | B51: 65.60008 | C51: 10.4960128 | D51: 5.6706832 | E51: 0.81912285 | F51: 0.2866682 | G51: 91
A52: Fischpreßsaft, getrocknet, 72% Rohprotein | B52: 75.30016 | C52: 12.0480256 | D52: 3.2248116 | E52: 3.8801 | F52: 0.3660864 | G52: 92
A53: FlüssigFutter Ferkel | B53: 4.57378 | C53: 0.7318048 | D53: 0.41890935 | E53: 0.28352445 | F53: 0.08656418 | G53: 23
A54: FlüssigFutter Schwein, Mast, Molke | B54: 4.44314 | C54: 0.7109024 | D54: 0.35936626 | E54: 0.3780326 | F54: 0.08656418 | G54: 23
A55: FlüssigFutter Schwein, Mast, Wasser | B55: 4.44314 | C55: 0.7109024 | D55: 0.35989319 | E55: 0.2832473 | F55: 0.08618284 | G55: 23
A56: Fumarsäure | B56: 0 | C56: 0 | D56: 0 | E56: 0 | F56: 0 | G56: 99
A57: Futterharnstoff | B57: 288.59985 | C57: 46.175976 | D57: 0 | E57: 0 | F57: 0 | G57: 99
A58: Gerstenstroh (90 % TS) | C58: 5 | D58: 3 | E58: 17 | F58: 1 | G58: 90
A59: Hafer | B59: 11 | C59: 1.51 | D59: 0.8 | E59: 0.6 | F59: 0.2 | G59: 86
A60: HaferFlocken | B60: 11.69987 | C60: 1.8719792 | D60: 0.92774045 | E60: 0.4627441 | F60: 0.22028188 | G60: 91
A61: HaferfutterMehl | B61: 13.800438 | C61: 2.20807008 | D61: 1.18703583 | E61: 0.876276 | F61: 0.3014244 | G61: 90.9
A62: HaferschälKleie | B62: 6.800012 | C62: 1.08800192 | D62: 0.35363876 | E62: 1.09414 | F62: 0.18065568 | G62: 90.8
A63: Haferstroh (90 % TS) | C63: 5 | D63: 3 | E63: 17 | F63: 2 | G63: 90
A64: Kartoffel | C64: 0.35 | D64: 0.14 | E64: 0.6 | F64: 0.04 | G64: 22
A65: Kartoffel, gedämpft, 15% Stärke | B65: 2.156 | C65: 0.34496 | D65: 0.126005 | E65: 0.58322 | F65: 0.0510664 | G65: 22
A66: Kartoffel, gedämpft, siliert, 16% Stärke | B66: 2.376 | C66: 0.38016 | D66: 0.100804 | E66: 0.58322 | F66: 0.0510664 | G66: 22
A67: Kartoffeleiweiß | B67: 76.39996 | C67: 12.2239936 | D67: 1.0841012 | E67: 0.8158332 | F67: 0.075439 | G67: 91
A68: KartoffelFlocken | B68: 7.80032 | C68: 1.2480512 | D68: 0.5241808 | E68: 2.54496 | F68: 0.145904 | G68: 88
A69: Kartoffelpresspülpe, siliert | B69: 0.882 | C69: 0.14112 | D69: 0.1113426 | E69: 0.47718 | F69: 0.0208908 | G69: 18
A70: KartoffelPülpe, getrocknet | B70: 6.10016 | C70: 0.9760256 | D70: 0.50402 | E70: 2.33288 | F70: 0.1021328 | G70: 88
A71: Kartoffelschälabfälle, gedämpft | B71: 1.6632 | C71: 0.266112 | D71: 0.061857 | E71: 0.286308 | F71: 0.0089532 | G71: 10.8
A72: Kartoffelschlempe, frisch | B72: 1.842 | C72: 0.29472 | D72: 0.1003458 | E72: 0.39765 | F72: 0.004974 | G72: 6
A73: KartoffelSchrot, -Schnitzel | B73: 8.1004 | C73: 1.296064 | D73: 0.5241808 | E73: 2.54496 | F73: 0.145904 | G73: 88
A74: KartoffelStärke | B74: 0.30008 | C74: 0.0480128 | D74: 0.1209648 | E74: 0.10604 | F74: 0.0145904 | G74: 88
A75: KokosExtraktionsSchrot | B75: 20.9 | C75: 3.344 | D75: 1.2902912 | E75: 2.43892 | F75: 0.5544352 | G75: 88
A76: Körnermais | B76: 10 | C76: 1.38 | D76: 0.8 | E76: 0.5 | F76: 0.2 | G76: 86
A77: Labmolke | B77: 0.685 | C77: 0.1096 | D77: 0.09816935 | E77: 0.150625 | F77: 0.0118547 | G77: 5
A78: Labmolke, eingedickt | B78: 1.644 | C78: 0.26304 | D78: 0.23560644 | E78: 0.3615 | F78: 0.02845128 | G78: 12
A79: LeinExtraktionsSchrot | B79: 33.90024 | C79: 5.4240384 | D79: 1.915276 | E79: 1.27248 | F79: 0.8316528 | G79: 88
A80: Lignozellulose | B80: 1.40024 | C80: 0.2240384 | D80: 0.0421544 | E80: 1.3258856 | F80: 0.79623792 | G80: 92
A81: LKS (50 % TS) | C81: 0.76 | D81: 0.32 | E81: 0.36 | F81: 0.1 | G81: 50
A82: LKS gesiebt, 9% RFas | B82: 4.75 | C82: 0.76 | D82: 0.400925 | E82: 0.247025 | F82: 0.103625 | G82: 50
A83: L-Lysin-HCl | B83: 78.00018 | C83: 12.4800288 | D83: 0 | E83: 0 | F83: 0 | G83: 98.5
A84: L-Threonin | B84: 98.0001 | C84: 15.680016 | D84: 0 | E84: 0 | F84: 0 | G84: 99
A85: Lupine blau | B85: 33 | C85: 4.48 | D85: 1.02 | E85: 0.99 | F85: 0.2 | G85: 86
A86: Magermilch | B86: 3.1046 | C86: 0.496736 | D86: 0.21475834 | E86: 0.124356 | F86: 0.02281408 | G86: 8.6
A87: MagermilchPulver | B87: 34.300391 | C87: 5.48806256 | D87: 2.32829748 | E87: 1.587467 | F87: 0.24962848 | G87: 94.1
A88: Maiscobs (89 % TS) | C88: 1.22 | D88: 0.51 | E88: 1.45 | F88: 0.27 | G88: 89
A89: MaisfutterMehl | B89: 10.39984 | C89: 1.6639744 | D89: 1.00804 | E89: 0.21208 | F89: 0.437712 | G89: 88
A90: MaisKeimExtraktionsSchrot | B90: 11.60016 | C90: 1.8560256 | D90: 1.51206 | E90: 0.84832 | F90: 0.4523024 | G90: 88
A91: MaisKleberfutter, 23-30% Rohprotein | B91: 22.6996 | C91: 3.631936 | D91: 1.915276 | E91: 1.48456 | F91: 0.7003392 | G91: 88
A92: MaisKleberfutter, bis 23% Rohprotein | B92: 19.3996 | C92: 3.103936 | D92: 1.915276 | E92: 1.48456 | F92: 0.7003392 | G92: 88
A93: MaisKornSilage Schrot | B93: 6.5 | C93: 1.04 | D93: 0.5212025 | E93: 0.3211325 | F93: 0.1347125 | G93: 65
A94: MaisSchlempe, flüssig | B94: 2.009 | C94: 0.32144 | D94: 0.1379182 | E94: 0.07616805 | F94: 0.0545482 | G94: 7
A95: MaisSchlempe, trocken | B95: 32.4 | C95: 5.184 | D95: 1.092807 | E95: 0.8676 | F95: 0.358128 | G95: 90
A96: MalzKeime | B96: 27.1998 | C96: 4.351968 | D96: 1.7072532 | E96: 2.32806 | F96: 0.228804 | G96: 92
A97: ManiokMehl, -Schnitzel | B97: 2.30032 | C97: 0.3680512 | D97: 0.2217688 | E97: 0.84832 | F97: 0.1604944 | G97: 88
A98: Melasse (Zuckerrübe) | B98: 10.53 | C98: 1.6848 | D98: 0.09113598 | E98: 5.07546 | F98: 0.0258648 | G98: 78
A99: MelasseSchnitzel, 12% Zucker | B99: 8.19 | C99: 1.3104 | D99: 0.1667848 | E99: 1.31586 | F99: 0.2715804 | G99: 91
A100: MelasseSchnitzel, 18% Zucker | B100: 8.6912 | C100: 1.390592 | D100: 0.158060672 | E100: 1.5547392 | F100: 0.26740224 | G100: 89.6
A101: MelasseSchnitzel, 22% Zucker | B101: 9.977 | C101: 1.59632 | D101: 0.16623496 | E101: 1.6394025 | F101: 0.27068508 | G101: 90.7
A102: MilchzuckerMelasse | B102: 6.75 | C102: 1.08 | D102: 1.23714 | E102: 1.446 | F102: 0.09948 | G102: 30
A103: MilchzuckerMelasse, proteinarm | B103: 2.4075 | C103: 0.3852 | D103: 1.628901 | E103: 1.355625 | F103: 0.07461 | G103: 22.5
A104: Mineralfutter Ferkel | B104: 11.49975 | C104: 1.83996 | D104: 4.58142725 | E104: 0 | F104: 1.9893513 | G104: 95
A105: Mineralfutter Ferkel, 3 Aminosäuren | B105: 11.49975 | C105: 1.83996 | D105: 6.8732291 | E105: 0 | F105: 3.3155855 | G105: 95
A106: Mineralfutter Ferkel, 4 Aminosäuren (4%) | B106: 20.52 | C106: 3.2832 | D106: 5.7240635 | E106: 0 | F106: 1.653855 | G106: 95
A107: Mineralfutter Schwein, AnfangsMast (3,0%) | B107: 15.96 | C107: 2.5536 | D107: 2.2852725 | E107: 0 | F107: 1.653855 | G107: 95
A108: Mineralfutter Schwein, EndMast (2,5%) | B108: 11.97 | C108: 1.9152 | D108: 2.2852725 | E108: 0 | F108: 1.653855 | G108: 95
A109: Mineralfutter Schwein, Mast | B109: 5.49955 | C109: 0.879928 | D109: 4.58142725 | E109: 0 | F109: 1.9893513 | G109: 95
A110: Mineralfutter Schwein, Mast, Molke (2,5%) | B110: 7.98 | C110: 1.2768 | D110: 0 | E110: 0 | F110: 1.653855 | G110: 95
A111: Mineralfutter ZuchtSau, säugend (3,0%) | B111: 13.015 | C111: 2.0824 | D111: 6.877582 | E111: 0 | F111: 1.653855 | G111: 95
A112: Mineralfutter ZuchtSau, tragend (2,5%) | B112: 9.5 | C112: 1.52 | D112: 2.2852725 | E112: 0 | F112: 1.653855 | G112: 95
A113: Molke, entzuckert | B113: 22.8004 | C113: 3.648064 | D113: 3.35878928 | E113: 5.506368 | F113: 0.50509312 | G113: 95.2
A114: MolkenPulver (Labmolke) | B114: 12.69984 | C114: 2.0319744 | D114: 1.88485152 | E114: 2.892 | F114: 0.22761024 | G114: 96
A115: Monokalziumphosphat | B115: 0 | C115: 0 | D115: 52.452445 | E115: 0 | F115: 0 | G115: 95
A116: NaßSchnitzel | B116: 1.4351 | C116: 0.229616 | D116: 0.02618613 | E116: 0.107277535 | F116: 0.0947547 | G116: 12.7
A117: Natriumbikarbonat | B117: 0 | C117: 0 | D117: 0 | E117: 0 | F117: 0 | G117: 99
A118: ObstTrester ApfelTrester | B118: 1.452 | C118: 0.23232 | D118: 0.050402 | E118: 0.18557 | F118: 0.072952 | G118: 22
A119: PalmkernExtraktionsSchrot | B119: 16.5 | C119: 2.64 | D119: 1.4515776 | E119: 0.84832 | F119: 0.5690256 | G119: 88
A120: Permeatmolke | B120: 0.21 | C120: 0.0336 | D120: 0.153497 | E120: 0.150625 | F120: 0.011606 | G120: 5
A121: Preßschnitzel siliert | B121: 2.352 | C121: 0.37632 | D121: 0.05388432 | E121: 0.141708 | F121: 0.0974904 | G121: 28
A122: Propionsäure | B122: 0 | C122: 0 | D122: 0 | E122: 0 | F122: 0 | G122: 99
A123: Propylenglykol | B123: 0 | C123: 0 | D123: 0 | E123: 0 | F123: 0 | G123: 99
A124: RapsExtraktionsSchrot | B124: 35.2998 | C124: 5.647968 | D124: 2.7959364 | E124: 1.674468 | F124: 0.8624916 | G124: 90
A125: RapsKuchen, 8% Rohfett | B125: 33.70003 | C125: 5.3920048 | D125: 2.65813275 | E125: 1.6031561 | F125: 0.82832022 | G125: 91
A126: Reinglyzerin | B126: 0 | C126: 0 | D126: 0 | E126: 0 | F126: 0 | G126: 99
A127: ReisfutterMehl | B127: 13.00024 | C127: 2.0800384 | D127: 2.9636376 | E127: 1.16644 | F127: 1.0359184 | G127: 88
A128: RoggenKleie | B128: 14.3 | C128: 2.288 | D128: 2.2781704 | E128: 1.48456 | F128: 0.5252544 | G128: 88
A129: RoggennachMehl | B129: 13.6004 | C129: 2.176064 | D129: 1.0483616 | E129: 0.84832 | F129: 0.291808 | G129: 88
A130: RoggenSchlempe, trocken | B130: 32.4 | C130: 5.184 | D130: 1.092807 | E130: 0.8676 | F130: 0.358128 | G130: 90
A131: Roggenstroh (90 % TS) | C131: 5 | D131: 3 | E131: 20 | F131: 2 | G131: 90
A132: Rohglyzerin | B132: 0 | C132: 0 | D132: 0 | E132: 0 | F132: 0 | G132: 88
A133: Rübenkleinteile | B133: 1.275 | C133: 0.204 | D133: 0.08062029 | E133: 0.2355775 | F133: 0.0648278 | G133: 17
A134: Sauermolke | B134: 0.8736 | C134: 0.139776 | D134: 0.20655656 | E134: 0.1687 | F134: 0.01299872 | G134: 5.6
A135: Sauermolke, eingedickt | B135: 1.872 | C135: 0.29952 | D135: 0.4426212 | E135: 0.3615 | F135: 0.0278544 | G135: 12
A136: Silomais (32 % TS) | C136: 0.43 | D136: 0.18 | E136: 0.51 | F136: 0.1 | G136: 32
A137: Sojabohnen | B137: 32 | C137: 4.4 | D137: 1.5 | E137: 1.7 | F137: 0.5 | G137: 86
A138: Sojabohnen, getoastet | B138: 37.4 | C138: 5.984 | D138: 1.52088035 | E138: 2.24208325 | F138: 0.5735851 | G138: 93.5
A139: SojaExtraktionsSchrot, 40% Rohprotein | B139: 40.0004 | C139: 6.400064 | D139: 1.4918992 | E139: 2.651 | F139: 0.5398448 | G139: 88
A140: SojaExtraktionsSchrot, 42% Rohprotein | B140: 41.99976 | C140: 6.7199616 | D140: 1.4918992 | E140: 2.651 | F140: 0.5398448 | G140: 88
A141: SojaExtraktionsSchrot, 44% Rohprotein | B141: 44 | C141: 7.04 | D141: 1.411256 | E141: 2.33288 | F141: 0.437712 | G141: 88
A142: SojaExtraktionsSchrot, 48% Rohprotein | B142: 47.9996 | C142: 7.679936 | D142: 1.5322208 | E142: 2.43892 | F142: 0.3939408 | G142: 88
A143: Sojaschalen | B143: 11.49984 | C143: 1.8399744 | D143: 0.29031552 | E143: 1.5195532 | F143: 0.437712 | G143: 88
A144: Sommerfuttergerste | B144: 12 | C144: 1.65 | D144: 0.8 | E144: 0.6 | F144: 0.2 | G144: 86
A145: SonnenblumenExtraktionsSchrot, 11% Rohfaser | B145: 40.20016 | C145: 6.4320256 | D145: 1.9959192 | E145: 1.37852 | F145: 0.7878816 | G145: 88
A146: SonnenblumenExtraktionsSchrot, 20% Rohfaser | B146: 33.6996 | C146: 5.391936 | D146: 2.1572056 | E146: 1.37852 | F146: 0.7587008 | G146: 88
A147: SonnenblumenKuchen | B147: 21.89968 | C147: 3.5039488 | D147: 1.90116344 | E147: 1.37852 | F147: 0.7878816 | G147: 88
A148: TorulaHefe | B148: 45.800112 | C148: 7.32801792 | D148: 4.64944704 | E148: 1.746768 | F148: 0.3004296 | G148: 90.6
A149: Triticale | B149: 12 | C149: 1.65 | D149: 0.8 | E149: 0.6 | F149: 0.2 | G149: 86
A150: TrockenSchnitzel | B150: 7.5198 | C150: 1.203168 | D150: 0.15567345 | E150: 0.4912785 | F150: 0.27038664 | G150: 90.6
A151: Tryptophan | B151: 98.0001 | C151: 15.680016 | D151: 0 | E151: 0 | F151: 0 | G151: 99
A152: Viehsalz | B152: 0 | C152: 0 | D152: 0 | E152: 0 | F152: 0 | G152: 99
A153: VitaminKonzentrat | B153: 0 | C153: 0 | D153: 0 | E153: 0 | F153: 0 | G153: 95
A154: Wasser | B154: 0 | C154: 0 | D154: 0 | E154: 0 | F154: 0 | G154: 0.01
A155: WeizenFlocken | B155: 12.1 | C155: 1.936 | D155: 0.7661104 | E155: 0.5302 | F155: 0.1896752 | G155: 88
A156: WeizenKeime | B156: 25.9996 | C156: 4.159936 | D156: 1.9959192 | E156: 1.0604 | F156: 0.4085312 | G156: 88
A157: WeizenKleie | B157: 16.00016 | C157: 2.5600256 | D157: 2.620904 | E157: 1.27248 | F157: 0.7732912 | G157: 88
A158: WeizennachMehl | B158: 16.00016 | C158: 2.5600256 | D158: 1.4918992 | E158: 0.95436 | F158: 0.4231216 | G158: 88
A159: Weizenschlempe, flüssig | B159: 2.16 | C159: 0.3456 | D159: 0.0728538 | E159: 0.05784 | F159: 0.0238752 | G159: 6
A160: WeizenSchlempe, trocken | B160: 34.3998 | C160: 5.503968 | D160: 2.226852 | E160: 1.45323 | F160: 0.537192 | G160: 90
A161: Weizenstroh (90 % TS) | C161: 5 | D161: 3 | E161: 14 | F161: 2 | G161: 90
A162: Wintergerste mehrzeilig | B162: 12 | C162: 1.65 | D162: 0.8 | E162: 0.6 | F162: 0.2 | G162: 86
A163: Winterroggen | B163: 11 | C163: 1.51 | D163: 0.8 | E163: 0.6 | F163: 0.1 | G163: 86
A164: Winterweizen A/B-Sorte | B164: 14 | C164: 2.11 | D164: 0.8 | E164: 0.55 | F164: 0.2 | G164: 86
A165: Zuckerrübenschnitzel | B165: 7.299604 | C165: 1.16793664 | D165: 0.2098556 | E165: 1.324536 | F165: 0.24299648 | G165: 91.6

Sheet Hauptfrüchte (hidden)
A1: Hauptfrüchte
C2: Rp | D2: N | E2: P2O5 | F2: TS | G2: Rp % | H2: Rp %
C3: in TM | D3: FM | E3: FM | F3: % | G3: FM | H3: TM berechnet
B5: +++Getreide+++
B6: Winterweizen C-Sorte | C6: 12 | D6: 1.81 | E6: 0.8 | F6: 86 | G6: =+D6*5.7 -> 10.317 | H6: =+G6/F6*100 -> 11.99651163
B7: Winterweizen A/B-Sorte | C7: 14 | D7: 2.11 | E7: 0.8 | F7: 86 | G7: =+D7*5.7 -> 12.027 | H7: =+G7/F7*100 -> 13.98488372
B8: Winterweizen E-Sorte | C8: 16 | D8: 2.41 | E8: 0.8 | F8: 86 | G8: 13.737 | H8: 15.97325581
B9: Winterbrauweizen | C9: 12 | D9: 1.81 | E9: 0.75 | F9: 86 | G9: 10.317 | H9: 11.99651163
B10: Sommerweizen | C10: 14 | D10: 2.11 | E10: 0.75 | F10: 86 | G10: 12.027 | H10: 13.98488372
B11: Weizenstroh | C11: =+H11 -> 3.63372093 | D11: 0.5 | E11: 0.3 | F11: 86 | G11: =+D11*6.25 -> 3.125 | H11: 3.63372093
B12: Wintergerste | C12: 12 | D12: 1.65 | E12: 0.8 | F12: 86 | G12: 10.3125 | H12: 11.99127907
B13: Winterbraugerste | C13: 11 | D13: 1.51 | E13: 0.8 | F13: 86 | G13: 9.4375 | H13: 10.97383721
B14: Sommerfuttergerste | C14: 12 | D14: 1.65 | E14: 0.8 | F14: 86 | G14: 10.3125 | H14: 11.99127907
B15: Sommerbraugerste | C15: 10 | D15: 1.38 | E15: 0.8 | F15: 86 | G15: 8.625 | H15: 10.02906977
B16: Gerstenstroh | C16: =+H16 -> 3.63372093 | D16: 0.5 | E16: 0.3 | F16: 86 | G16: 3.125 | H16: 3.63372093
B17: Winterroggen | C17: 11 | D17: 1.51 | E17: 0.8 | F17: 86 | G17: 9.4375 | H17: 10.97383721
B18: Sommerroggen | C18: 11 | D18: 1.51 | E18: 0.8 | F18: 86 | G18: 9.4375 | H18: 10.97383721
B19: Roggenstroh | C19: =+H19 -> 3.63372093 | D19: 0.5 | E19: 0.3 | F19: 86 | G19: 3.125 | H19: 3.63372093
B20: Hafer | C20: 11 | D20: 1.51 | E20: 0.8 | F20: 86 | G20: 9.4375 | H20: 10.97383721
B21: Haferstroh | C21: =+H21 -> 3.63372093 | D21: 0.5 | E21: 0.3 | F21: 86 | G21: 3.125 | H21: 3.63372093
B22: Triticale | C22: 12 | D22: 1.65 | E22: 0.8 | F22: 86 | G22: 10.3125 | H22: 11.99127907
B23: Dinkel | C23: 12 | D23: 1.65 | E23: 0.8 | F23: 86 | G23: 10.3125 | H23: 11.99127907
B24: Emmer/Einkorn | C24: 12 | D24: 1.81 | E24: 0.75 | F24: 86 | G24: 11.3125 | H24: 13.15406977
B25: Hartweizen (Durum) | C25: 12 | D25: 1.81 | E25: 0.8 | F25: 86 | G25: 11.3125 | H25: 13.15406977
B26: Buchweizen | C26: 16.93313953 | D26: 2.33 | E26: 0.65 | F26: 86 | G26: 14.5625 | H26: 16.93313953
B27: ++++Körnermais, sonstige Körnernutzung+++
B28: Körnermais | C28: 10 | D28: 1.38 | E28: 0.8 | F28: 86 | G28: 8.625 | H28: 10.02906977
B29: Körnermaisstroh | C29: =+H29 -> 6.540697674 | D29: 0.9 | E29: 0.2 | F29: 86 | G29: 5.625 | H29: 6.540697674
B30: Hirse | C30: 17.00581395 | D30: 2.34 | E30: 0.89 | F30: 86 | G30: 14.625 | H30: 17.00581395
B31: Amarant | C31: 17.00581395 | D31: 2.34 | E31: 0.89 | F31: 86 | G31: 14.625 | H31: 17.00581395
B32: Quinoa | C32: 16.27906977 | D32: 2.24 | E32: 0.94 | F32: 86 | G32: 14 | H32: 16.27906977
B33: +++Körnerleguminosen+++
B34: Ackerbohnen | C34: 29.8 | D34: 4.1 | E34: 1.2 | F34: 86 | G34: 25.625 | H34: 29.79651163
B35: Erbsen | C35: 26 | D35: 3.6 | E35: 1.1 | F35: 86 | G35: 22.5 | H35: 26.1627907
B36: Wicken | C36: 26 | D36: 3.6 | E36: 1.1 | F36: 86 | G36: 22.5 | H36: 26.1627907
B37: Lupinen blau | C37: 33 | D37: 4.48 | E37: 1.02 | F37: 86 | G37: 28 | H37: 32.55813953
B38: Linsen | C38: 26 | D38: 3.5776 | E38: 1.1 | F38: 86 | G38: 22.36 | H38: 26
B39: Sojabohnen | C39: 32 | D39: 4.4 | E39: 1.5 | F39: 86 | G39: 27.5 | H39: 31.97674419
B40: +++Ölfrüchte und Faserpflanzen+++
B41: Raps | C41: 23 | D41: 3.35 | E41: 1.8 | F41: 91 | G41: 20.9375 | H41: 23.00824176
B42: Rübsen | C42: 23 | D42: 3.35 | E42: 1.8 | F42: 91 | G42: 20.9375 | H42: 23.00824176
B43: Sonnenblumen | C43: 20 | D43: 2.91 | E43: 1.6 | F43: 91 | G43: 18.1875 | H43: 19.98626374
B44: Körnersenf | C44: 35 | D44: 5.08 | E44: 1.77 | F44: 91 | G44: 31.75 | H44: 34.89010989
B45: Öllein, Faserflachs | C45: 24 | D45: 3.5 | E45: 1.2 | F45: 91 | G45: 21.875 | H45: 24.03846154
B46: Leindotter | C46: 24 | D46: 3.5 | E46: 1.2 | F46: 91 | G46: 21.875 | H46: 24.03846154
B47: Flachs (Faserlein) | C47: =+H47 -> 7.26744186 | D47: 1 | E47: 0.64 | F47: 86 | G47: 6.25 | H47: 7.26744186
B48: Hanf | C48: =+H48 -> 6.25 | D48: 0.4 | E48: 0.3 | F48: 40 | G48: 2.5 | H48: 6.25
B49: +++Hackfrüchte+++
B50: Kartoffel | C50: =+H50 -> 9.943181818 | D50: 0.35 | E50: 0.14 | F50: 22 | G50: 2.1875 | H50: 9.943181818
B51: Zuckerrüben | C51: =+H51 -> 4.891304348 | D51: 0.18 | E51: 0.1 | F51: 23 | G51: 1.125 | H51: 4.891304348
B52: Zuckerrübenblatt | C52: =+H52 -> 13.88888889 | D52: 0.4 | E52: 0.11 | F52: 18 | G52: 2.5 | H52: 13.88888889
B53: Futter-, Runkelrüben | C53: =+H53 -> 7.5 | D53: 0.18 | E53: 0.09 | F53: 15 | G53: 1.125 | H53: 7.5
B54: Kohl-, Steckrüben | C54: =+H54 -> 7.291666667 | D54: 0.14 | E54: 0.07 | F54: 12 | G54: 0.875 | H54: 7.291666667
B55: +++Mehrschnittiger Feldfutterbau+++
B56: Esparsette | C56: 20.3 | D56: 0.65 | E56: 0.14 | F56: 20 | G56: 4.0625 | H56: 20.3125
B57: Ackergras 3-4 Schnitte/Jahr | C57: 16.2 | D57: 0.52 | E57: 0.16 | F57: 20 | G57: 3.25 | H57: 16.25
B58: Ackergras 5 Schnitte/Jahr | C58: 16.6 | D58: 0.53 | E58: 0.16 | F58: 20 | G58: 3.3125 | H58: 16.5625
B59: Kleegras (Kleeanteil 30 %) | C59: 17.6 | D59: 0.56 | E59: 0.15 | F59: 20 | G59: 3.5 | H59: 17.5
B60: Kleegras (Kleeanteil 50 %) | C60: 18.2 | D60: 0.58 | E60: 0.14 | F60: 20 | G60: 3.625 | H60: 18.125
B61: Kleegras (Kleeanteil 70 %) | C61: 19.2 | D61: 0.61 | E61: 0.14 | F61: 20 | G61: 3.8125 | H61: 19.0625
B62: Luzernegras (Luz.anteil 30 %) | C62: 17.6 | D62: 0.56 | E62: 0.15 | F62: 20 | G62: 3.5 | H62: 17.5
B63: Luzernegras (Luz.anteil 50 %) | C63: 18.2 | D63: 0.58 | E63: 0.15 | F63: 20 | G63: 3.625 | H63: 18.125
B64: Luzernegras (Luz.anteil 70 %) | C64: 19.2 | D64: 0.61 | E64: 0.14 | F64: 20 | G64: 3.8125 | H64: 19.0625
B65: Rotklee | C65: 20.46 | D65: 0.65 | E65: 0.13 | F65: 20 | G65: 4.0625 | H65: 20.3125
B66: Luzerne | C66: 20.46 | D66: 0.65 | E66: 0.14 | F66: 20 | G66: 4.0625 | H66: 20.3125
B67: +++Grünland+++
B68: 1 Schnittnutzung | C68: 8.6 | D68: 1.376 | E68: 0.5 | F68: 100 | G68: =+D68*6.25 -> 8.6 | H68: =+G68/F68*100 -> 8.6
B69: 2 Schnittnutzungen | C69: 11.4 | D69: 1.824 | E69: 0.65 | F69: 100 | G69: 11.4 | H69: 11.4
B70: 3 Schnittnutzungen | C70: 15 | D70: 2.4 | E70: 0.71 | F70: 100 | G70: 15 | H70: 15
B71: 4 Schnittnutzungen | C71: 17 | D71: 2.72 | E71: 0.81 | F71: 100 | G71: 17 | H71: 17
B72: 5 Schnittnutzungen | C72: 17.5 | D72: 2.8 | E72: 0.87 | F72: 100 | G72: 17.5 | H72: 17.5
B73: 6 Schnittnutzungen | C73: 18.2 | D73: 2.912 | E73: 0.89 | F73: 100 | G73: 18.2 | H73: 18.2
B74: +++Futterpflanzen+++
B75: Silomais (28 % TM) | C75: =+H75 -> 8.482142857 | D75: 0.38 | E75: 0.16 | F75: 28 | G75: 2.375 | H75: 8.482142857
B76: Silomais (32 % TM) | C76: =+H76 -> 8.3984375 | D76: 0.43 | E76: 0.17 | F76: 32 | G76: 2.6875 | H76: 8.3984375
B77: Silomais (35 % TM) | C77: =+H77 -> 8.3984375 | D77: 0.4703125 | E77: 0.18 | F77: 35 | G77: 2.939453125 | H77: 8.3984375
B78: CCM | C78: 10.5 | D78: 1.008 | E78: 0.408 | F78: 60 | G78: =+D78*6.25 -> 6.3 | H78: =+G78/F78*100 -> 10.5
B79: Lieschkolbensilage | C79: =+H79 -> 9.5 | D79: 0.76 | E79: 0.32 | F79: 50 | G79: 4.75 | H79: 9.5
B80: GPS Getreide | C80: 10 | D80: 0.56 | E80: 0.231 | F80: 35 | G80: 3.5 | H80: 10
B81: GPS Lupinen | C81: =+H81 -> 10 | D81: 0.56 | E81: 0.23 | F81: 35 | G81: 3.5 | H81: 10
B82: GPS Erbsen/Ackerbohne | C82: =+H82 -> 10 | D82: 0.56 | E82: 0.23 | F82: 35 | G82: 3.5 | H82: 10
B83: GPS Sonnenblumen | C83: 8.4 | D83: 0.469 | E83: 0.196 | F83: 35 | G83: 2.93125 | H83: 8.375
B84: GPS Rübsen | C84: =+H84 -> 10 | D84: 0.56 | E84: 0.23 | F84: 35 | G84: 3.5 | H84: 10
B85: GPS Wicken | C85: =+H85 -> 10 | D85: 0.56 | E85: 0.23 | F85: 35 | G85: 3.5 | H85: 10
B86: GPS Raps | C86: =+H86 -> 10 | D86: 0.56 | E86: 0.23 | F86: 35 | G86: 3.5 | H86: 10

Sheet Jahr (hidden)
A3: 2016/17
A4: 2017
A5: 2017/18
A6: 2018
A7: 2018/19
A8: 2019
A9: 2019/20
A10: 2020

Sheet Tabelle1 (hidden)
